Workbook

Sheet Statistic
B2: V & B Monthly Statistics Analysis Report
B6: Item | C6: Jan | D6: Feb | E6: Mar | F6: Apr | G6: May | H6: Jun | I6: Jul | J6: Aug | K6: Sep | L6: Oct | M6: Nov | N6: Dec
B7: Income | C7: =SUM(Analysis!B4:B5) -> 1024762 | D7: =SUM(Analysis!D4:D5) -> 682388 | E7: =SUM(Analysis!F4:F5) -> 1140860 | F7: =SUM(Analysis!H4:H5) -> 1399549.8 | G7: =SUM(Analysis!J4:J5) -> 948311 | H7: =SUM(Analysis!L4:L5) -> 958794 | I7: =SUM(Analysis!N4:N5) -> 1079527 | J7: =SUM(Analysis!P4:P5) -> 1125943 | K7: =SUM(Analysis!R4:R5) -> 1122645 | L7: =SUM(Analysis!T4:T5) -> 1143112 | M7: =SUM(Analysis!V4:V5) -> 1244652 | N7: =SUM(Analysis!X4:X5) -> 1420482.01
B8: Expenses | C8: =SUM(Analysis!B6:B17) -> 1037162.45 | D8: =SUM(Analysis!D6:D17) -> 869794.15 | E8: =SUM(Analysis!F6:F17) -> 997865.07 | F8: =SUM(Analysis!H6:H17) -> 1194863.74 | G8: =SUM(Analysis!J6:J17) -> 1037158.57 | H8: =SUM(Analysis!L6:L17) -> 1051116.79 | I8: =SUM(Analysis!N6:N17) -> 1074730.51 | J8: =SUM(Analysis!P6:P17) -> 1141487.08 | K8: =SUM(Analysis!R6:R17) -> 1099298.96 | L8: =SUM(Analysis!T6:T17) -> 1126806.14 | M8: =SUM(Analysis!V6:V17) -> 1157529.09 | N8: =SUM(Analysis!X6:X17) -> 1264189.7
B9: Profit | C9: =C7-C8 -> -12400.45 | D9: -187406.15 | E9: 142994.93 | F9: 204686.06 | G9: -88847.57 | H9: -92322.79 | I9: 4796.49 | J9: -15544.08 | K9: 23346.04 | L9: 16305.86 | M9: 87122.91 | N9: 156292.31
B35: Finance Analysis
B37: Amount
C38: Jan | D38: Feb | E38: Mar | F38: Apr | G38: May | H38: Jun | I38: Jul | J38: Aug | K38: Sep | L38: Oct | M38: Nov | N38: Dec
B39: Direct Labour | C39: =Analysis!B8 -> 349187.7 | D39: =Analysis!D8 -> 297826.6 | E39: =Analysis!F8 -> 361138.15 | F39: =Analysis!H8 -> 455379.25 | G39: =Analysis!J8 -> 302482.7 | H39: =Analysis!L8 -> 353471.65 | I39: =Analysis!N8 -> 299929.1 | J39: =Analysis!P8 -> 357027 | K39: =Analysis!R8 -> 363262.35 | L39: =Analysis!T8 -> 358014.85 | M39: =Analysis!V8 -> 376316.15 | N39: =Analysis!X8 -> 413960.65
B40: Direct Material | C40: =Analysis!B6 -> 255512.51 | D40: =Analysis!D6 -> 221335.24 | E40: =Analysis!F6 -> 291960.59 | F40: =Analysis!H6 -> 296982.72 | G40: =Analysis!J6 -> 365657.89 | H40: =Analysis!L6 -> 319739.76 | I40: =Analysis!N6 -> 375749.19 | J40: =Analysis!P6 -> 359195.85 | K40: =Analysis!R6 -> 360957.68 | L40: =Analysis!T6 -> 357948.18 | M40: =Analysis!V6 -> 396355.22 | N40: =Analysis!X6 -> 481585.5
B41: Indirect Labour | C41: =Analysis!B9 -> 0 | D41: =Analysis!D9 -> 0 | E41: =Analysis!F9 -> 0 | F41: =Analysis!H9 -> 0 | G41: =Analysis!J9 -> 0 | H41: =Analysis!L9 -> 0 | I41: =Analysis!N9 -> 0 | J41: =Analysis!P9 -> 0 | K41: =Analysis!R9 -> 0 | L41: =Analysis!T9 -> 0 | M41: =Analysis!V9 -> 0 | N41: =Analysis!X9 -> 0
B42: Indirect Material | C42: =Analysis!B7 -> 0 | D42: =Analysis!D7 -> 0 | E42: =Analysis!F7 -> 0 | F42: =Analysis!H7 -> 0 | G42: =Analysis!J7 -> 0 | H42: =Analysis!L7 -> 0 | I42: =Analysis!N7 -> 0 | J42: =Analysis!P7 -> 0 | K42: =Analysis!R7 -> 0 | L42: =Analysis!T7 -> 0 | M42: =Analysis!V7 -> 0 | N42: =Analysis!X7 -> 0
B43: Overhead | C43: =Analysis!B10 -> 278974 | D43: =Analysis!D10 -> 243349.5 | E43: =Analysis!F10 -> 233572 | F43: =Analysis!H10 -> 290863 | G43: =Analysis!J10 -> 258088 | H43: =Analysis!L10 -> 267502.4 | I43: =Analysis!N10 -> 282856 | J43: =Analysis!P10 -> 264562 | K43: =Analysis!R10 -> 257211 | L43: =Analysis!T10 -> 301996 | M43: =Analysis!V10 -> 248464 | N43: =Analysis!X10 -> 248194
B44: Expenses | C44: =SUM(Analysis!B11:B12) -> 153488.24 | D44: =SUM(Analysis!D11:D12) -> 107282.81 | E44: =SUM(Analysis!F11:F12) -> 111194.33 | F44: =SUM(Analysis!H11:H12) -> 151638.77 | G44: =SUM(Analysis!J11:J12) -> 110929.98 | H44: =SUM(Analysis!L11:L12) -> 110402.98 | I44: =SUM(Analysis!N11:N12) -> 116196.22 | J44: =SUM(Analysis!P11:P12) -> 160702.23 | K44: =SUM(Analysis!R11:R12) -> 117867.93 | L44: =SUM(Analysis!T11:T12) -> 108847.11 | M44: =SUM(Analysis!V11:V12) -> 136393.72 | N44: =SUM(Analysis!X11:X12) -> 120449.55
B60: Percentage %
C61: Jan | D61: Feb | E61: Mar | F61: Apr | G61: May | H61: Jun | I61: Jul | J61: Aug | K61: Sep | L61: Oct | M61: Nov | N61: Dec
B62: Direct Labour | C62: =Analysis!C8 -> 0.3366759952 | D62: =Analysis!E8 -> 0.3424104427 | E62: =Analysis!G8 -> 0.3619108042 | F62: =Analysis!I8 -> 0.3811139587 | G62: =Analysis!K8 -> 0.2916455678 | H62: =Analysis!M8 -> 0.3362819939 | I62: =Analysis!O8 -> 0.2790737745 | J62: =Analysis!Q8 -> 0.3127735795 | K62: =Analysis!S8 -> 0.3304490982 | L62: =Analysis!U8 -> 0.3177253276 | M62: =Analysis!W8 -> 0.3251029743 | N62: =Analysis!Y8 -> 0.3274513706
B63: Direct Material | C63: =Analysis!C6 -> 0.2463572703 | D63: =Analysis!E6 -> 0.2544685314 | E63: =Analysis!G6 -> 0.292585239 | F63: =Analysis!I6 -> 0.2485494455 | G63: =Analysis!K6 -> 0.3525573626 | H63: =Analysis!M6 -> 0.3041905172 | I63: =Analysis!O6 -> 0.3496217763 | J63: =Analysis!Q6 -> 0.314673601 | K63: =Analysis!S6 -> 0.3283526076 | L63: =Analysis!U6 -> 0.3176661604 | M63: =Analysis!W6 -> 0.3424149107 | N63: =Analysis!Y6 -> 0.380944015
B64: Indirect Labour | C64: =Analysis!C9 -> 0 | D64: =Analysis!E9 -> 0 | E64: =Analysis!G9 -> 0 | F64: =Analysis!I9 -> 0 | G64: =Analysis!K9 -> 0 | H64: =Analysis!M9 -> 0 | I64: =Analysis!O9 -> 0 | J64: =Analysis!Q9 -> 0 | K64: =Analysis!S9 -> 0 | L64: =Analysis!U9 -> 0 | M64: =Analysis!W9 -> 0 | N64: =Analysis!Y9 -> 0
B65: Indirect Material | C65: =Analysis!C7 -> 0 | D65: =Analysis!E7 -> 0 | E65: =Analysis!G7 -> 0 | F65: =Analysis!I7 -> 0 | G65: =Analysis!K7 -> 0 | H65: =Analysis!M7 -> 0 | I65: =Analysis!O7 -> 0 | J65: =Analysis!Q7 -> 0 | K65: =Analysis!S7 -> 0 | L65: =Analysis!U7 -> 0 | M65: =Analysis!W7 -> 0 | N65: =Analysis!Y7 -> 0
B66: Overhead | C66: =Analysis!C10 -> 0.2689781143 | D66: =Analysis!E10 -> 0.2797782671 | E66: =Analysis!G10 -> 0.2340717268 | F66: =Analysis!I10 -> 0.2434277569 | G66: =Analysis!K10 -> 0.2488414091 | H66: =Analysis!M10 -> 0.2544935088 | I66: =Analysis!O10 -> 0.2631878386 | J66: =Analysis!Q10 -> 0.2317695966 | K66: =Analysis!S10 -> 0.2339772977 | L66: =Analysis!U10 -> 0.2680106092 | M66: =Analysis!W10 -> 0.214650329 | N66: =Analysis!Y10 -> 0.1963265481
B67: Expenses | C67: =SUM(Analysis!C11:C12) -> 0.1479886203 | D67: =SUM(Analysis!E11:E12) -> 0.1233427587 | E67: =SUM(Analysis!G11:G12) -> 0.11143223 | F67: =SUM(Analysis!I11:I12) -> 0.126908839 | G67: =SUM(Analysis!K11:K12) -> 0.1069556606 | H67: =SUM(Analysis!M11:M12) -> 0.1050339801 | I67: =SUM(Analysis!O11:O12) -> 0.1081166106 | J67: =SUM(Analysis!Q11:Q12) -> 0.1407832229 | K67: =SUM(Analysis!S11:S12) -> 0.1072209966 | L67: =SUM(Analysis!U11:U12) -> 0.09659790281 | M67: =SUM(Analysis!W11:W12) -> 0.117831786 | N67: =SUM(Analysis!Y11:Y12) -> 0.09527806626
B69: Business Budget
C70: Jan | D70: Feb | E70: Mar | F70: Apr | G70: May | H70: Jun | I70: Jul | J70: Aug | K70: Sep | L70: Oct | M70: Nov | N70: Dec
B71: Labour | C71: =Analysis!$C$8 -> 0.3366759952 | D71: =Analysis!$E$8 -> 0.3424104427 | E71: =Analysis!$G$8 -> 0.3619108042 | F71: =Analysis!$I$8 -> 0.3811139587 | G71: =Analysis!$K$8 -> 0.2916455678 | H71: =Analysis!$M$8 -> 0.3362819939 | I71: =Analysis!$O$8 -> 0.2790737745 | J71: =Analysis!$Q$8 -> 0.3127735795 | K71: =Analysis!$S$8 -> 0.3304490982 | L71: =Analysis!$U$8 -> 0.3177253276 | M71: =Analysis!$W$8 -> 0.3251029743 | N71: =Analysis!$Y$8 -> 0.3274513706
B72: Set Budget | C72: =Master!$C$9 -> 0.3 | D72: =Master!$C$9 -> 0.3 | E72: =Master!$C$9 -> 0.3 | F72: =Master!$C$9 -> 0.3 | G72: =Master!$C$9 -> 0.3 | H72: =Master!$C$9 -> 0.3 | I72: =Master!$C$9 -> 0.3 | J72: =Master!$C$9 -> 0.3 | K72: =Master!$C$9 -> 0.3 | L72: =Master!$C$9 -> 0.3 | M72: =Master!$C$9 -> 0.3 | N72: =Master!$C$9 -> 0.3
B73: Material | C73: =Analysis!$C$6 -> 0.2463572703 | D73: =Analysis!$E$6 -> 0.2544685314 | E73: =Analysis!$G$6 -> 0.292585239 | F73: =Analysis!$I$6 -> 0.2485494455 | G73: =Analysis!$K$6 -> 0.3525573626 | H73: =Analysis!$M$6 -> 0.3041905172 | I73: =Analysis!$O$6 -> 0.3496217763 | J73: =Analysis!$Q$6 -> 0.314673601 | K73: =Analysis!$S$6 -> 0.3283526076 | L73: =Analysis!$U$6 -> 0.3176661604 | M73: =Analysis!$W$6 -> 0.3424149107 | N73: =Analysis!$Y$6 -> 0.380944015
B74: Set Material | C74: =Master!$C$7 -> 0.3 | D74: =Master!$C$7 -> 0.3 | E74: =Master!$C$7 -> 0.3 | F74: =Master!$C$7 -> 0.3 | G74: =Master!$C$7 -> 0.3 | H74: =Master!$C$7 -> 0.3 | I74: =Master!$C$7 -> 0.3 | J74: =Master!$C$7 -> 0.3 | K74: =Master!$C$7 -> 0.3 | L74: =Master!$C$7 -> 0.3 | M74: =Master!$C$7 -> 0.3 | N74: =Master!$C$7 -> 0.3
B75: Overhead | C75: =Analysis!$C$10 -> 0.2689781143 | D75: =Analysis!$E$10 -> 0.2797782671 | E75: =Analysis!$G$10 -> 0.2340717268 | F75: =Analysis!$I$10 -> 0.2434277569 | G75: =Analysis!$K$10 -> 0.2488414091 | H75: =Analysis!$M$10 -> 0.2544935088 | I75: =Analysis!$O$10 -> 0.2631878386 | J75: =Analysis!$Q$10 -> 0.2317695966 | K75: =Analysis!$S$10 -> 0.2339772977 | L75: =Analysis!$U$10 -> 0.2680106092 | M75: =Analysis!$W$10 -> 0.214650329 | N75: =Analysis!$Y$10 -> 0.1963265481
B76: Set Overhead | C76: =Master!$C$13 -> 0 | D76: =Master!$C$13 -> 0 | E76: =Master!$C$13 -> 0 | F76: =Master!$C$13 -> 0 | G76: =Master!$C$13 -> 0 | H76: =Master!$C$13 -> 0 | I76: =Master!$C$13 -> 0 | J76: =Master!$C$13 -> 0 | K76: =Master!$C$13 -> 0 | L76: =Master!$C$13 -> 0 | M76: =Master!$C$13 -> 0 | N76: =Master!$C$13 -> 0
B77: Expenses | C77: =SUM(Analysis!$C$11:$C$12) -> 0.1479886203 | D77: =SUM(Analysis!$E$11:$E$12) -> 0.1233427587 | E77: =SUM(Analysis!$G$11:$G$12) -> 0.11143223 | F77: =SUM(Analysis!$I$11:$I$12) -> 0.126908839 | G77: =SUM(Analysis!$K$11:$K$12) -> 0.1069556606 | H77: =SUM(Analysis!$M$11:$M$12) -> 0.1050339801 | I77: =SUM(Analysis!$O$11:$O$12) -> 0.1081166106 | J77: =SUM(Analysis!$Q$11:$Q$12) -> 0.1407832229 | K77: =SUM(Analysis!$S$11:$S$12) -> 0.1072209966 | L77: =SUM(Analysis!$U$11:$U$12) -> 0.09659790281 | M77: =SUM(Analysis!$W$11:$W$12) -> 0.117831786 | N77: =SUM(Analysis!$Y$11:$Y$12) -> 0.09527806626
B78: Set Expenses | C78: =Master!$C$11 -> 0.15 | D78: =Master!$C$11 -> 0.15 | E78: =Master!$C$11 -> 0.15 | F78: =Master!$C$11 -> 0.15 | G78: =Master!$C$11 -> 0.15 | H78: =Master!$C$11 -> 0.15 | I78: =Master!$C$11 -> 0.15 | J78: =Master!$C$11 -> 0.15 | K78: =Master!$C$11 -> 0.15 | L78: =Master!$C$11 -> 0.15 | M78: =Master!$C$11 -> 0.15 | N78: =Master!$C$11 -> 0.15
B103: Standard Budget
C104: Jan | D104: Feb | E104: Mar | F104: Apr | G104: May | H104: Jun | I104: Jul | J104: Aug | K104: Sep | L104: Oct | M104: Nov | N104: Dec
B105: Labour | C105: =Analysis!$C$8 -> 0.3366759952 | D105: =Analysis!$E$8 -> 0.3424104427 | E105: =Analysis!$G$8 -> 0.3619108042 | F105: =Analysis!$I$8 -> 0.3811139587 | G105: =Analysis!$K$8 -> 0.2916455678 | H105: =Analysis!$M$8 -> 0.3362819939 | I105: =Analysis!$O$8 -> 0.2790737745 | J105: =Analysis!$Q$8 -> 0.3127735795 | K105: =Analysis!$S$8 -> 0.3304490982 | L105: =Analysis!$U$8 -> 0.3177253276 | M105: =Analysis!$W$8 -> 0.3251029743 | N105: =Analysis!$Y$8 -> 0.3274513706
B106: Set Budget | C106: =Master!$C$9 -> 0.3 | D106: =Master!$C$9 -> 0.3 | E106: =Master!$C$9 -> 0.3 | F106: =Master!$C$9 -> 0.3 | G106: =Master!$C$9 -> 0.3 | H106: =Master!$C$9 -> 0.3 | I106: =Master!$C$9 -> 0.3 | J106: =Master!$C$9 -> 0.3 | K106: =Master!$C$9 -> 0.3 | L106: =Master!$C$9 -> 0.3 | M106: =Master!$C$9 -> 0.3 | N106: =Master!$C$9 -> 0.3
B107: Material | C107: =Analysis!$C$6 -> 0.2463572703 | D107: =Analysis!$E$6 -> 0.2544685314 | E107: =Analysis!$G$6 -> 0.292585239 | F107: =Analysis!$I$6 -> 0.2485494455 | G107: =Analysis!$K$6 -> 0.3525573626 | H107: =Analysis!$M$6 -> 0.3041905172 | I107: =Analysis!$O$6 -> 0.3496217763 | J107: =Analysis!$Q$6 -> 0.314673601 | K107: =Analysis!$S$6 -> 0.3283526076 | L107: =Analysis!$U$6 -> 0.3176661604 | M107: =Analysis!$W$6 -> 0.3424149107 | N107: =Analysis!$Y$6 -> 0.380944015
B108: Set Material | C108: =Master!$C$7 -> 0.3 | D108: =Master!$C$7 -> 0.3 | E108: =Master!$C$7 -> 0.3 | F108: =Master!$C$7 -> 0.3 | G108: =Master!$C$7 -> 0.3 | H108: =Master!$C$7 -> 0.3 | I108: =Master!$C$7 -> 0.3 | J108: =Master!$C$7 -> 0.3 | K108: =Master!$C$7 -> 0.3 | L108: =Master!$C$7 -> 0.3 | M108: =Master!$C$7 -> 0.3 | N108: =Master!$C$7 -> 0.3
B109: Overhead | C109: =Analysis!$C$10 -> 0.2689781143 | D109: =Analysis!$E$10 -> 0.2797782671 | E109: =Analysis!$G$10 -> 0.2340717268 | F109: =Analysis!$I$10 -> 0.2434277569 | G109: =Analysis!$K$10 -> 0.2488414091 | H109: =Analysis!$M$10 -> 0.2544935088 | I109: =Analysis!$O$10 -> 0.2631878386 | J109: =Analysis!$Q$10 -> 0.2317695966 | K109: =Analysis!$S$10 -> 0.2339772977 | L109: =Analysis!$U$10 -> 0.2680106092 | M109: =Analysis!$W$10 -> 0.214650329 | N109: =Analysis!$Y$10 -> 0.1963265481
B110: Set Overhead | C110: =Master!$C$13 -> 0 | D110: =Master!$C$13 -> 0 | E110: =Master!$C$13 -> 0 | F110: =Master!$C$13 -> 0 | G110: =Master!$C$13 -> 0 | H110: =Master!$C$13 -> 0 | I110: =Master!$C$13 -> 0 | J110: =Master!$C$13 -> 0 | K110: =Master!$C$13 -> 0 | L110: =Master!$C$13 -> 0 | M110: =Master!$C$13 -> 0 | N110: =Master!$C$13 -> 0

Sheet Analysis
A1: 2021 Financial Analysis | F1: View By | V1: Date: | W1: =TODAY() -> 2022-01-10 | XER1: 3 | XES1: 2 | XET1: 2 | XFD1: 2
XER2: =IF(XER1=1,"VB",IF(XER1=2,"WOW",IF(XER1=3,"Bigdata",""))) -> Bigdata
A3: AccType | B3: Jan | C3: Pct | D3: Feb | E3: Pct | F3: Mar | G3: Pct | H3: Apr | I3: Pct | J3: May | K3: Pct | L3: Jun | M3: Pct | N3: Jul | O3: Pct | P3: Aug | Q3: Pct | R3: Sep | S3: Pct | T3: Oct | U3: Pct | V3: Nov | W3: Pct | X3: Dec | Y3: Pct | Z3: Total
A4: Direct Income | B4: =SUMIF(INDIRECT($XER$2&"!$D$3:$D$46"),$A$4,INDIRECT($XER$2&"!$F$3:$F$46")) -> 824762 | C4: =IF(B$4=0,"",B4/SUM(B$4:B$5)) -> 0.8048327319 | D4: =SUMIF(INDIRECT($XER$2&"!$D$3:$D$46"),$A$4,INDIRECT($XER$2&"!$G$3:$G$46")) -> 682388 | E4: =IF(D$4=0,"",D4/SUM(D$4:D$5)) -> 1 | F4: =SUMIF(INDIRECT($XER$2&"!$D$3:$D$46"),$A$4,INDIRECT($XER$2&"!$H$3:$H$46")) -> 940860 | G4: =IF(F$4=0,"",F4/SUM(F$4:F$5)) -> 0.8246936522 | H4: =SUMIF(INDIRECT($XER$2&"!$D$3:$D$46"),$A$4,INDIRECT($XER$2&"!$I$3:$I$46")) -> 925383 | I4: =IF(H$4=0,"",H4/SUM(H$4:H$5)) -> 0.6612004803 | J4: =SUMIF(INDIRECT($XER$2&"!$D$3:$D$46"),$A$4,INDIRECT($XER$2&"!$J$3:$J$46")) -> 948311 | K4: =IF(J$4=0,"",J4/SUM(J$4:J$5)) -> 1 | L4: =SUMIF(INDIRECT($XER$2&"!$D$3:$D$46"),$A$4,INDIRECT($XER$2&"!$K$3:$K$46")) -> 958794 | M4: =IF(L$4=0,"",L4/SUM(L$4:L$5)) -> 1 | N4: =SUMIF(INDIRECT($XER$2&"!$D$3:$D$46"),$A$4,INDIRECT($XER$2&"!$L$3:$L$46")) -> 1079527 | O4: =IF(N$4=0,"",N4/SUM(N$4:N$5)) -> 1 | P4: =SUMIF(INDIRECT($XER$2&"!$D$3:$D$46"),$A$4,INDIRECT($XER$2&"!$M$3:$M$46")) -> 1125943 | Q4: =IF(P$4=0,"",P4/SUM(P$4:P$5)) -> 1 | R4: =SUMIF(INDIRECT($XER$2&"!$D$3:$D$46"),$A$4,INDIRECT($XER$2&"!$N$3:$N$46")) -> 1122645 | S4: =IF(R$4=0,"",R4/SUM(R$4:R$5)) -> 1 | T4: =SUMIF(INDIRECT($XER$2&"!$D$3:$D$46"),$A$4,INDIRECT($XER$2&"!$O$3:$O$46")) -> 1143112 | U4: =IF(T$4=0,"",T4/SUM(T$4:T$5)) -> 1 | V4: =SUMIF(INDIRECT($XER$2&"!$D$3:$D$46"),$A$4,INDIRECT($XER$2&"!$P$3:$P$46")) -> 1244652 | W4: =IF(V$4=0,"",V4/SUM(V$4:V$5)) -> 1 | X4: =SUMIF(INDIRECT($XER$2&"!$D$3:$D$46"),$A$4,INDIRECT($XER$2&"!$Q$3:$Q$46")) -> 1420482 | Y4: =IF(X$4=0,"",X4/SUM(X$4:X$5)) -> 0.999999993 | Z4: =SUM(B4,D4,F4,H4,J4,L4,N4,P4,R4,T4,V4,X4) -> 12416859
A5: Indirect Income | B5: =SUMIF(INDIRECT($XER$2&"!$D$3:$D$46"),$A$5,INDIRECT($XER$2&"!$F$3:$F$46")) -> 200000 | C5: =IF(B$4=0,"",B5/SUM(B$4:B$5)) -> 0.1951672681 | D5: =SUMIF(INDIRECT($XER$2&"!$D$3:$D$46"),$A$5,INDIRECT($XER$2&"!$G$3:$G$46")) -> 0 | E5: 0 | F5: =SUMIF(INDIRECT($XER$2&"!$D$3:$D$46"),$A$5,INDIRECT($XER$2&"!$H$3:$H$46")) -> 200000 | G5: =IF(F$4=0,"",F5/SUM(F$4:F$5)) -> 0.1753063478 | H5: =SUMIF(INDIRECT($XER$2&"!$D$3:$D$46"),$A$5,INDIRECT($XER$2&"!$I$3:$I$46")) -> 474166.8 | I5: =IF(H$4=0,"",H5/SUM(H$4:H$5)) -> 0.3387995197 | J5: =SUMIF(INDIRECT($XER$2&"!$D$3:$D$46"),$A$5,INDIRECT($XER$2&"!$J$3:$J$46")) -> 0 | K5: =IF(J$4=0,"",J5/SUM(J$4:J$5)) -> 0 | L5: =SUMIF(INDIRECT($XER$2&"!$D$3:$D$46"),$A$5,INDIRECT($XER$2&"!$K$3:$K$46")) -> 0 | M5: =IF(L$4=0,"",L5/SUM(L$4:L$5)) -> 0 | N5: =SUMIF(INDIRECT($XER$2&"!$D$3:$D$46"),$A$5,INDIRECT($XER$2&"!$L$3:$L$46")) -> 0 | O5: =IF(N$4=0,"",N5/SUM(N$4:N$5)) -> 0 | P5: =SUMIF(INDIRECT($XER$2&"!$D$3:$D$46"),$A$5,INDIRECT($XER$2&"!$M$3:$M$46")) -> 0 | Q5: =IF(P$4=0,"",P5/SUM(P$4:P$5)) -> 0 | R5: =SUMIF(INDIRECT($XER$2&"!$D$3:$D$46"),$A$5,INDIRECT($XER$2&"!$N$3:$N$46")) -> 0 | S5: =IF(R$4=0,"",R5/SUM(R$4:R$5)) -> 0 | T5: =SUMIF(INDIRECT($XER$2&"!$D$3:$D$46"),$A$5,INDIRECT($XER$2&"!$O$3:$O$46")) -> 0 | U5: =IF(T$4=0,"",T5/SUM(T$4:T$5)) -> 0 | V5: =SUMIF(INDIRECT($XER$2&"!$D$3:$D$46"),$A$5,INDIRECT($XER$2&"!$P$3:$P$46")) -> 0 | W5: =IF(V$4=0,"",V5/SUM(V$4:V$5)) -> 0 | X5: =SUMIF(INDIRECT($XER$2&"!$D$3:$D$46"),$A$5,INDIRECT($XER$2&"!$Q$3:$Q$46")) -> 0.01 | Y5: =IF(X$4=0,"",X5/SUM(X$4:X$5)) -> 7.039863884e-09 | Z5: 874166.81
A6: Direct Material | B6: =SUMIF(INDIRECT($XER$2&"!$D$3:$D$46"),$A$6,INDIRECT($XER$2&"!$F$3:$F$46")) -> 255512.51 | C6: =IF(B$4=0,"",B6/SUM(B$6:B$17)) -> 0.2463572703 | D6: =SUMIF(INDIRECT($XER$2&"!$D$3:$D$46"),$A$6,INDIRECT($XER$2&"!$G$3:$G$46")) -> 221335.24 | E6: =IF(D$4=0,"",D6/SUM(D$6:D$17)) -> 0.2544685314 | F6: =SUMIF(INDIRECT($XER$2&"!$D$3:$D$46"),$A$6,INDIRECT($XER$2&"!$H$3:$H$46")) -> 291960.59 | G6: =IF(F$4=0,"",F6/SUM(F$6:F$17)) -> 0.292585239 | H6: =SUMIF(INDIRECT($XER$2&"!$D$3:$D$46"),$A$6,INDIRECT($XER$2&"!$I$3:$I$46")) -> 296982.72 | I6: =IF(H$4=0,"",H6/SUM(H$6:H$17)) -> 0.2485494455 | J6: =SUMIF(INDIRECT($XER$2&"!$D$3:$D$46"),$A$6,INDIRECT($XER$2&"!$J$3:$J$46")) -> 365657.89 | K6: =IF(J$4=0,"",J6/SUM(J$6:J$17)) -> 0.3525573626 | L6: =SUMIF(INDIRECT($XER$2&"!$D$3:$D$46"),$A$6,INDIRECT($XER$2&"!$K$3:$K$46")) -> 319739.76 | M6: =IF(L$4=0,"",L6/SUM(L$6:L$17)) -> 0.3041905172 | N6: =SUMIF(INDIRECT($XER$2&"!$D$3:$D$46"),$A$6,INDIRECT($XER$2&"!$L$3:$L$46")) -> 375749.19 | O6: =IF(N$4=0,"",N6/SUM(N$6:N$17)) -> 0.3496217763 | P6: =SUMIF(INDIRECT($XER$2&"!$D$3:$D$46"),$A$6,INDIRECT($XER$2&"!$M$3:$M$46")) -> 359195.85 | Q6: =IF(P$4=0,"",P6/SUM(P$6:P$17)) -> 0.314673601 | R6: =SUMIF(INDIRECT($XER$2&"!$D$3:$D$46"),$A$6,INDIRECT($XER$2&"!$N$3:$N$46")) -> 360957.68 | S6: =IF(R$4=0,"",R6/SUM(R$6:R$17)) -> 0.3283526076 | T6: =SUMIF(INDIRECT($XER$2&"!$D$3:$D$46"),$A$6,INDIRECT($XER$2&"!$O$3:$O$46")) -> 357948.18 | U6: =IF(T$4=0,"",T6/SUM(T$6:T$17)) -> 0.3176661604 | V6: =SUMIF(INDIRECT($XER$2&"!$D$3:$D$46"),$A$6,INDIRECT($XER$2&"!$P$3:$P$46")) -> 396355.22 | W6: =IF(V$4=0,"",V6/SUM(V$6:V$17)) -> 0.3424149107 | X6: =SUMIF(INDIRECT($XER$2&"!$D$3:$D$46"),$A$6,INDIRECT($XER$2&"!$Q$3:$Q$46")) -> 481585.5 | Y6: =IF(X$4=0,"",X6/SUM(X$6:X$17)) -> 0.380944015 | Z6: 4082980.33
A7: Indirect Material | B7: =SUMIF(INDIRECT($XER$2&"!$D$3:$D$46"),$A$7,INDIRECT($XER$2&"!$F$3:$F$46")) -> 0 | C7: =IF(B$4=0,"",B7/SUM(B$6:B$17)) -> 0 | D7: =SUMIF(INDIRECT($XER$2&"!$D$3:$D$46"),$A$7,INDIRECT($XER$2&"!$G$3:$G$46")) -> 0 | E7: 0 | F7: =SUMIF(INDIRECT($XER$2&"!$D$3:$D$46"),$A$7,INDIRECT($XER$2&"!$H$3:$H$46")) -> 0 | G7: =IF(F$4=0,"",F7/SUM(F$6:F$17)) -> 0 | H7: =SUMIF(INDIRECT($XER$2&"!$D$3:$D$46"),$A$7,INDIRECT($XER$2&"!$I$3:$I$46")) -> 0 | I7: =IF(H$4=0,"",H7/SUM(H$6:H$17)) -> 0 | J7: =SUMIF(INDIRECT($XER$2&"!$D$3:$D$46"),$A$7,INDIRECT($XER$2&"!$J$3:$J$46")) -> 0 | K7: =IF(J$4=0,"",J7/SUM(J$6:J$17)) -> 0 | L7: =SUMIF(INDIRECT($XER$2&"!$D$3:$D$46"),$A$7,INDIRECT($XER$2&"!$K$3:$K$46")) -> 0 | M7: =IF(L$4=0,"",L7/SUM(L$6:L$17)) -> 0 | N7: =SUMIF(INDIRECT($XER$2&"!$D$3:$D$46"),$A$7,INDIRECT($XER$2&"!$L$3:$L$46")) -> 0 | O7: =IF(N$4=0,"",N7/SUM(N$6:N$17)) -> 0 | P7: =SUMIF(INDIRECT($XER$2&"!$D$3:$D$46"),$A$7,INDIRECT($XER$2&"!$M$3:$M$46")) -> 0 | Q7: =IF(P$4=0,"",P7/SUM(P$6:P$17)) -> 0 | R7: =SUMIF(INDIRECT($XER$2&"!$D$3:$D$46"),$A$7,INDIRECT($XER$2&"!$N$3:$N$46")) -> 0 | S7: =IF(R$4=0,"",R7/SUM(R$6:R$17)) -> 0 | T7: =SUMIF(INDIRECT($XER$2&"!$D$3:$D$46"),$A$7,INDIRECT($XER$2&"!$O$3:$O$46")) -> 0 | U7: =IF(T$4=0,"",T7/SUM(T$6:T$17)) -> 0 | V7: =SUMIF(INDIRECT($XER$2&"!$D$3:$D$46"),$A$7,INDIRECT($XER$2&"!$P$3:$P$46")) -> 0 | W7: =IF(V$4=0,"",V7/SUM(V$6:V$17)) -> 0 | X7: =SUMIF(INDIRECT($XER$2&"!$D$3:$D$46"),$A$7,INDIRECT($XER$2&"!$Q$3:$Q$46")) -> 0 | Y7: =IF(X$4=0,"",X7/SUM(X$6:X$17)) -> 0 | Z7: 0
A8: Direct Labour | B8: =SUMIF(INDIRECT($XER$2&"!$D$3:$D$46"),$A$8,INDIRECT($XER$2&"!$F$3:$F$46")) -> 349187.7 | C8: 0.3366759952 | D8: =SUMIF(INDIRECT($XER$2&"!$D$3:$D$46"),$A$8,INDIRECT($XER$2&"!$G$3:$G$46")) -> 297826.6 | E8: 0.3424104427 | F8: =SUMIF(INDIRECT($XER$2&"!$D$3:$D$46"),$A$8,INDIRECT($XER$2&"!$H$3:$H$46")) -> 361138.15 | G8: =IF(F$4=0,"",F8/SUM(F$6:F$17)) -> 0.3619108042 | H8: =SUMIF(INDIRECT($XER$2&"!$D$3:$D$46"),$A$8,INDIRECT($XER$2&"!$I$3:$I$46")) -> 455379.25 | I8: =IF(H$4=0,"",H8/SUM(H$6:H$17)) -> 0.3811139587 | J8: =SUMIF(INDIRECT($XER$2&"!$D$3:$D$46"),$A$8,INDIRECT($XER$2&"!$J$3:$J$46")) -> 302482.7 | K8: =IF(J$4=0,"",J8/SUM(J$6:J$17)) -> 0.2916455678 | L8: =SUMIF(INDIRECT($XER$2&"!$D$3:$D$46"),$A$8,INDIRECT($XER$2&"!$K$3:$K$46")) -> 353471.65 | M8: =IF(L$4=0,"",L8/SUM(L$6:L$17)) -> 0.3362819939 | N8: =SUMIF(INDIRECT($XER$2&"!$D$3:$D$46"),$A$8,INDIRECT($XER$2&"!$L$3:$L$46")) -> 299929.1 | O8: =IF(N$4=0,"",N8/SUM(N$6:N$17)) -> 0.2790737745 | P8: =SUMIF(INDIRECT($XER$2&"!$D$3:$D$46"),$A$8,INDIRECT($XER$2&"!$M$3:$M$46")) -> 357027 | Q8: =IF(P$4=0,"",P8/SUM(P$6:P$17)) -> 0.3127735795 | R8: =SUMIF(INDIRECT($XER$2&"!$D$3:$D$46"),$A$8,INDIRECT($XER$2&"!$N$3:$N$46")) -> 363262.35 | S8: =IF(R$4=0,"",R8/SUM(R$6:R$17)) -> 0.3304490982 | T8: =SUMIF(INDIRECT($XER$2&"!$D$3:$D$46"),$A$8,INDIRECT($XER$2&"!$O$3:$O$46")) -> 358014.85 | U8: =IF(T$4=0,"",T8/SUM(T$6:T$17)) -> 0.3177253276 | V8: =SUMIF(INDIRECT($XER$2&"!$D$3:$D$46"),$A$8,INDIRECT($XER$2&"!$P$3:$P$46")) -> 376316.15 | W8: =IF(V$4=0,"",V8/SUM(V$6:V$17)) -> 0.3251029743 | X8: =SUMIF(INDIRECT($XER$2&"!$D$3:$D$46"),$A$8,INDIRECT($XER$2&"!$Q$3:$Q$46")) -> 413960.65 | Y8: =IF(X$4=0,"",X8/SUM(X$6:X$17)) -> 0.3274513706 | Z8: 4287996.15
A9: Indirect Labour | B9: =SUMIF(INDIRECT($XER$2&"!$D$3:$D$46"),$A$9,INDIRECT($XER$2&"!$F$3:$F$46")) -> 0 | C9: 0 | D9: =SUMIF(INDIRECT($XER$2&"!$D$3:$D$46"),$A$9,INDIRECT($XER$2&"!$G$3:$G$46")) -> 0 | E9: 0 | F9: =SUMIF(INDIRECT($XER$2&"!$D$3:$D$46"),$A$9,INDIRECT($XER$2&"!$H$3:$H$46")) -> 0 | G9: =IF(F$4=0,"",F9/SUM(F$6:F$17)) -> 0 | H9: =SUMIF(INDIRECT($XER$2&"!$D$3:$D$46"),$A$9,INDIRECT($XER$2&"!$I$3:$I$46")) -> 0 | I9: =IF(H$4=0,"",H9/SUM(H$6:H$17)) -> 0 | J9: =SUMIF(INDIRECT($XER$2&"!$D$3:$D$46"),$A$9,INDIRECT($XER$2&"!$J$3:$J$46")) -> 0 | K9: =IF(J$4=0,"",J9/SUM(J$6:J$17)) -> 0 | L9: =SUMIF(INDIRECT($XER$2&"!$D$3:$D$46"),$A$9,INDIRECT($XER$2&"!$K$3:$K$46")) -> 0 | M9: =IF(L$4=0,"",L9/SUM(L$6:L$17)) -> 0 | N9: =SUMIF(INDIRECT($XER$2&"!$D$3:$D$46"),$A$9,INDIRECT($XER$2&"!$L$3:$L$46")) -> 0 | O9: =IF(N$4=0,"",N9/SUM(N$6:N$17)) -> 0 | P9: =SUMIF(INDIRECT($XER$2&"!$D$3:$D$46"),$A$9,INDIRECT($XER$2&"!$M$3:$M$46")) -> 0 | Q9: =IF(P$4=0,"",P9/SUM(P$6:P$17)) -> 0 | R9: =SUMIF(INDIRECT($XER$2&"!$D$3:$D$46"),$A$9,INDIRECT($XER$2&"!$N$3:$N$46")) -> 0 | S9: =IF(R$4=0,"",R9/SUM(R$6:R$17)) -> 0 | T9: =SUMIF(INDIRECT($XER$2&"!$D$3:$D$46"),$A$9,INDIRECT($XER$2&"!$O$3:$O$46")) -> 0 | U9: =IF(T$4=0,"",T9/SUM(T$6:T$17)) -> 0 | V9: =SUMIF(INDIRECT($XER$2&"!$D$3:$D$46"),$A$9,INDIRECT($XER$2&"!$P$3:$P$46")) -> 0 | W9: =IF(V$4=0,"",V9/SUM(V$6:V$17)) -> 0 | X9: =SUMIF(INDIRECT($XER$2&"!$D$3:$D$46"),$A$9,INDIRECT($XER$2&"!$Q$3:$Q$46")) -> 0 | Y9: =IF(X$4=0,"",X9/SUM(X$6:X$17)) -> 0 | Z9: 0
A10: Overhead | B10: =SUMIF(INDIRECT($XER$2&"!$D$3:$D$46"),$A$10,INDIRECT($XER$2&"!$F$3:$F$46")) -> 278974 | C10: 0.2689781143 | D10: =SUMIF(INDIRECT($XER$2&"!$D$3:$D$46"),$A$10,INDIRECT($XER$2&"!$G$3:$G$46")) -> 243349.5 | E10: 0.2797782671 | F10: =SUMIF(INDIRECT($XER$2&"!$D$3:$D$46"),$A$10,INDIRECT($XER$2&"!$H$3:$H$46")) -> 233572 | G10: =IF(F$4=0,"",F10/SUM(F$6:F$17)) -> 0.2340717268 | H10: =SUMIF(INDIRECT($XER$2&"!$D$3:$D$46"),$A$10,INDIRECT($XER$2&"!$I$3:$I$46")) -> 290863 | I10: =IF(H$4=0,"",H10/SUM(H$6:H$17)) -> 0.2434277569 | J10: =SUMIF(INDIRECT($XER$2&"!$D$3:$D$46"),$A$10,INDIRECT($XER$2&"!$J$3:$J$46")) -> 258088 | K10: =IF(J$4=0,"",J10/SUM(J$6:J$17)) -> 0.2488414091 | L10: =SUMIF(INDIRECT($XER$2&"!$D$3:$D$46"),$A$10,INDIRECT($XER$2&"!$K$3:$K$46")) -> 267502.4 | M10: =IF(L$4=0,"",L10/SUM(L$6:L$17)) -> 0.2544935088 | N10: =SUMIF(INDIRECT($XER$2&"!$D$3:$D$46"),$A$10,INDIRECT($XER$2&"!$L$3:$L$46")) -> 282856 | O10: =IF(N$4=0,"",N10/SUM(N$6:N$17)) -> 0.2631878386 | P10: =SUMIF(INDIRECT($XER$2&"!$D$3:$D$46"),$A$10,INDIRECT($XER$2&"!$M$3:$M$46")) -> 264562 | Q10: =IF(P$4=0,"",P10/SUM(P$6:P$17)) -> 0.2317695966 | R10: =SUMIF(INDIRECT($XER$2&"!$D$3:$D$46"),$A$10,INDIRECT($XER$2&"!$N$3:$N$46")) -> 257211 | S10: =IF(R$4=0,"",R10/SUM(R$6:R$17)) -> 0.2339772977 | T10: =SUMIF(INDIRECT($XER$2&"!$D$3:$D$46"),$A$10,INDIRECT($XER$2&"!$O$3:$O$46")) -> 301996 | U10: =IF(T$4=0,"",T10/SUM(T$6:T$17)) -> 0.2680106092 | V10: =SUMIF(INDIRECT($XER$2&"!$D$3:$D$46"),$A$10,INDIRECT($XER$2&"!$P$3:$P$46")) -> 248464 | W10: =IF(V$4=0,"",V10/SUM(V$6:V$17)) -> 0.214650329 | X10: =SUMIF(INDIRECT($XER$2&"!$D$3:$D$46"),$A$10,INDIRECT($XER$2&"!$Q$3:$Q$46")) -> 248194 | Y10: =IF(X$4=0,"",X10/SUM(X$6:X$17)) -> 0.1963265481 | Z10: 3175631.9
A11: Current Exp | B11: =SUMIF(INDIRECT($XER$2&"!$D$3:$D$46"),$A$11,INDIRECT($XER$2&"!$F$3:$F$46")) -> 28738.5 | C11: 0.02770877407 | D11: =SUMIF(INDIRECT($XER$2&"!$D$3:$D$46"),$A$11,INDIRECT($XER$2&"!$G$3:$G$46")) -> 28211.13 | E11: 0.03243426045 | F11: =SUMIF(INDIRECT($XER$2&"!$D$3:$D$46"),$A$11,INDIRECT($XER$2&"!$H$3:$H$46")) -> 33413.54 | G11: =IF(F$4=0,"",F11/SUM(F$6:F$17)) -> 0.03348502819 | H11: =SUMIF(INDIRECT($XER$2&"!$D$3:$D$46"),$A$11,INDIRECT($XER$2&"!$I$3:$I$46")) -> 31714.1 | I11: =IF(H$4=0,"",H11/SUM(H$6:H$17)) -> 0.02654202227 | J11: =SUMIF(INDIRECT($XER$2&"!$D$3:$D$46"),$A$11,INDIRECT($XER$2&"!$J$3:$J$46")) -> 28073.23 | K11: =IF(J$4=0,"",J11/SUM(J$6:J$17)) -> 0.02706744254 | L11: =SUMIF(INDIRECT($XER$2&"!$D$3:$D$46"),$A$11,INDIRECT($XER$2&"!$K$3:$K$46")) -> 24885.23 | M11: =IF(L$4=0,"",L11/SUM(L$6:L$17)) -> 0.02367503805 | N11: =SUMIF(INDIRECT($XER$2&"!$D$3:$D$46"),$A$11,INDIRECT($XER$2&"!$L$3:$L$46")) -> 30874.41 | O11: =IF(N$4=0,"",N11/SUM(N$6:N$17)) -> 0.02872758307 | P11: =SUMIF(INDIRECT($XER$2&"!$D$3:$D$46"),$A$11,INDIRECT($XER$2&"!$M$3:$M$46")) -> 38929.69 | Q11: =IF(P$4=0,"",P11/SUM(P$6:P$17)) -> 0.03410436323 | R11: =SUMIF(INDIRECT($XER$2&"!$D$3:$D$46"),$A$11,INDIRECT($XER$2&"!$N$3:$N$46")) -> 36342.68 | S11: =IF(R$4=0,"",R11/SUM(R$6:R$17)) -> 0.03305986936 | T11: =SUMIF(INDIRECT($XER$2&"!$D$3:$D$46"),$A$11,INDIRECT($XER$2&"!$O$3:$O$46")) -> 27858.86 | U11: =IF(T$4=0,"",T11/SUM(T$6:T$17)) -> 0.02472373819 | V11: =SUMIF(INDIRECT($XER$2&"!$D$3:$D$46"),$A$11,INDIRECT($XER$2&"!$P$3:$P$46")) -> 28706.03 | W11: =IF(V$4=0,"",V11/SUM(V$6:V$17)) -> 0.02479940267 | X11: =SUMIF(INDIRECT($XER$2&"!$D$3:$D$46"),$A$11,INDIRECT($XER$2&"!$Q$3:$Q$46")) -> 44805.42 | Y11: =IF(X$4=0,"",X11/SUM(X$6:X$17)) -> 0.03544200684 | Z11: 382552.82
A12: Non-recurrent Exp | B12: =SUMIF(INDIRECT($XER$2&"!$D$3:$D$46"),$A$12,INDIRECT($XER$2&"!$F$3:$F$46")) -> 124749.74 | C12: 0.1202798462 | D12: =SUMIF(INDIRECT($XER$2&"!$D$3:$D$46"),$A$12,INDIRECT($XER$2&"!$G$3:$G$46")) -> 79071.68 | E12: 0.09090849829 | F12: =SUMIF(INDIRECT($XER$2&"!$D$3:$D$46"),$A$12,INDIRECT($XER$2&"!$H$3:$H$46")) -> 77780.79 | G12: =IF(F$4=0,"",F12/SUM(F$6:F$17)) -> 0.07794720182 | H12: =SUMIF(INDIRECT($XER$2&"!$D$3:$D$46"),$A$12,INDIRECT($XER$2&"!$I$3:$I$46")) -> 119924.67 | I12: =IF(H$4=0,"",H12/SUM(H$6:H$17)) -> 0.1003668167 | J12: =SUMIF(INDIRECT($XER$2&"!$D$3:$D$46"),$A$12,INDIRECT($XER$2&"!$J$3:$J$46")) -> 82856.75 | K12: =IF(J$4=0,"",J12/SUM(J$6:J$17)) -> 0.07988821806 | L12: =SUMIF(INDIRECT($XER$2&"!$D$3:$D$46"),$A$12,INDIRECT($XER$2&"!$K$3:$K$46")) -> 85517.75 | M12: =IF(L$4=0,"",L12/SUM(L$6:L$17)) -> 0.08135894204 | N12: =SUMIF(INDIRECT($XER$2&"!$D$3:$D$46"),$A$12,INDIRECT($XER$2&"!$L$3:$L$46")) -> 85321.81 | O12: =IF(N$4=0,"",N12/SUM(N$6:N$17)) -> 0.07938902749 | P12: =SUMIF(INDIRECT($XER$2&"!$D$3:$D$46"),$A$12,INDIRECT($XER$2&"!$M$3:$M$46")) -> 121772.54 | Q12: =IF(P$4=0,"",P12/SUM(P$6:P$17)) -> 0.1066788597 | R12: =SUMIF(INDIRECT($XER$2&"!$D$3:$D$46"),$A$12,INDIRECT($XER$2&"!$N$3:$N$46")) -> 81525.25 | S12: =IF(R$4=0,"",R12/SUM(R$6:R$17)) -> 0.0741611272 | T12: =SUMIF(INDIRECT($XER$2&"!$D$3:$D$46"),$A$12,INDIRECT($XER$2&"!$O$3:$O$46")) -> 80988.25 | U12: =IF(T$4=0,"",T12/SUM(T$6:T$17)) -> 0.07187416462 | V12: =SUMIF(INDIRECT($XER$2&"!$D$3:$D$46"),$A$12,INDIRECT($XER$2&"!$P$3:$P$46")) -> 107687.69 | W12: =IF(V$4=0,"",V12/SUM(V$6:V$17)) -> 0.09303238332 | X12: =SUMIF(INDIRECT($XER$2&"!$D$3:$D$46"),$A$12,INDIRECT($XER$2&"!$Q$3:$Q$46")) -> 75644.13 | Y12: =IF(X$4=0,"",X12/SUM(X$6:X$17)) -> 0.05983605941 | Z12: 1122841.05
B13: =SUMIF(INDIRECT($XER$2&"!$D$3:$D$46"),$A$13,INDIRECT($XER$2&"!$F$3:$F$46")) -> 0 | C13: 0 | D13: =SUMIF(INDIRECT($XER$2&"!$D$3:$D$46"),$A$13,INDIRECT($XER$2&"!$G$3:$G$46")) -> 0 | E13: 0 | F13: =SUMIF(INDIRECT($XER$2&"!$D$3:$D$46"),$A$13,INDIRECT($XER$2&"!$H$3:$H$46")) -> 0 | G13: =IF(F$4=0,"",F13/SUM(F$6:F$17)) -> 0 | H13: =SUMIF(INDIRECT($XER$2&"!$D$3:$D$46"),$A$13,INDIRECT($XER$2&"!$I$3:$I$46")) -> 0 | I13: =IF(H$4=0,"",H13/SUM(H$6:H$17)) -> 0 | J13: =SUMIF(INDIRECT($XER$2&"!$D$3:$D$46"),$A$13,INDIRECT($XER$2&"!$J$3:$J$46")) -> 0 | K13: =IF(J$4=0,"",J13/SUM(J$6:J$17)) -> 0 | L13: =SUMIF(INDIRECT($XER$2&"!$D$3:$D$46"),$A$13,INDIRECT($XER$2&"!$K$3:$K$46")) -> 0 | M13: =IF(L$4=0,"",L13/SUM(L$6:L$17)) -> 0 | N13: =SUMIF(INDIRECT($XER$2&"!$D$3:$D$46"),$A$13,INDIRECT($XER$2&"!$L$3:$L$46")) -> 0 | O13: =IF(N$4=0,"",N13/SUM(N$6:N$17)) -> 0 | P13: =SUMIF(INDIRECT($XER$2&"!$D$3:$D$46"),$A$13,INDIRECT($XER$2&"!$M$3:$M$46")) -> 0 | Q13: =IF(P$4=0,"",P13/SUM(P$6:P$17)) -> 0 | R13: =SUMIF(INDIRECT($XER$2&"!$D$3:$D$46"),$A$13,INDIRECT($XER$2&"!$N$3:$N$46")) -> 0 | S13: =IF(R$4=0,"",R13/SUM(R$6:R$17)) -> 0 | T13: =SUMIF(INDIRECT($XER$2&"!$D$3:$D$46"),$A$13,INDIRECT($XER$2&"!$O$3:$O$46")) -> 0 | U13: =IF(T$4=0,"",T13/SUM(T$6:T$17)) -> 0 | V13: =SUMIF(INDIRECT($XER$2&"!$D$3:$D$46"),$A$13,INDIRECT($XER$2&"!$P$3:$P$46")) -> 0 | W13: =IF(V$4=0,"",V13/SUM(V$6:V$17)) -> 0 | X13: =SUMIF(INDIRECT($XER$2&"!$D$3:$D$46"),$A$13,INDIRECT($XER$2&"!$Q$3:$Q$46")) -> 0 | Y13: =IF(X$4=0,"",X13/SUM(X$6:X$17)) -> 0 | Z13: 0
B14: =SUMIF(INDIRECT($XER$2&"!$D$3:$D$46"),$A$14,INDIRECT($XER$2&"!$F$3:$F$46")) -> 0 | C14: 0 | D14: =SUMIF(INDIRECT($XER$2&"!$D$3:$D$46"),$A$14,INDIRECT($XER$2&"!$G$3:$G$46")) -> 0 | E14: 0 | F14: =SUMIF(INDIRECT($XER$2&"!$D$3:$D$46"),$A$14,INDIRECT($XER$2&"!$H$3:$H$46")) -> 0 | G14: =IF(F$4=0,"",F14/SUM(F$6:F$17)) -> 0 | H14: =SUMIF(INDIRECT($XER$2&"!$D$3:$D$46"),$A$14,INDIRECT($XER$2&"!$I$3:$I$46")) -> 0 | I14: =IF(H$4=0,"",H14/SUM(H$6:H$17)) -> 0 | J14: =SUMIF(INDIRECT($XER$2&"!$D$3:$D$46"),$A$14,INDIRECT($XER$2&"!$J$3:$J$46")) -> 0 | K14: =IF(J$4=0,"",J14/SUM(J$6:J$17)) -> 0 | L14: =SUMIF(INDIRECT($XER$2&"!$D$3:$D$46"),$A$14,INDIRECT($XER$2&"!$K$3:$K$46")) -> 0 | M14: =IF(L$4=0,"",L14/SUM(L$6:L$17)) -> 0 | N14: =SUMIF(INDIRECT($XER$2&"!$D$3:$D$46"),$A$14,INDIRECT($XER$2&"!$L$3:$L$46")) -> 0 | O14: =IF(N$4=0,"",N14/SUM(N$6:N$17)) -> 0 | P14: =SUMIF(INDIRECT($XER$2&"!$D$3:$D$46"),$A$14,INDIRECT($XER$2&"!$M$3:$M$46")) -> 0 | Q14: =IF(P$4=0,"",P14/SUM(P$6:P$17)) -> 0 | R14: =SUMIF(INDIRECT($XER$2&"!$D$3:$D$46"),$A$14,INDIRECT($XER$2&"!$N$3:$N$46")) -> 0 | S14: =IF(R$4=0,"",R14/SUM(R$6:R$17)) -> 0 | T14: =SUMIF(INDIRECT($XER$2&"!$D$3:$D$46"),$A$14,INDIRECT($XER$2&"!$O$3:$O$46")) -> 0 | U14: =IF(T$4=0,"",T14/SUM(T$6:T$17)) -> 0 | V14: =SUMIF(INDIRECT($XER$2&"!$D$3:$D$46"),$A$14,INDIRECT($XER$2&"!$P$3:$P$46")) -> 0 | W14: =IF(V$4=0,"",V14/SUM(V$6:V$17)) -> 0 | X14: =SUMIF(INDIRECT($XER$2&"!$D$3:$D$46"),$A$14,INDIRECT($XER$2&"!$Q$3:$Q$46")) -> 0 | Y14: =IF(X$4=0,"",X14/SUM(X$6:X$17)) -> 0 | Z14: 0
B15: =SUMIF(INDIRECT($XER$2&"!$D$3:$D$46"),$A$15,INDIRECT($XER$2&"!$F$3:$F$46")) -> 0 | C15: 0 | D15: =SUMIF(INDIRECT($XER$2&"!$D$3:$D$46"),$A$15,INDIRECT($XER$2&"!$G$3:$G$46")) -> 0 | E15: 0 | F15: =SUMIF(INDIRECT($XER$2&"!$D$3:$D$46"),$A$15,INDIRECT($XER$2&"!$H$3:$H$46")) -> 0 | G15: =IF(F$4=0,"",F15/SUM(F$6:F$17)) -> 0 | H15: =SUMIF(INDIRECT($XER$2&"!$D$3:$D$46"),$A$15,INDIRECT($XER$2&"!$I$3:$I$46")) -> 0 | I15: =IF(H$4=0,"",H15/SUM(H$6:H$17)) -> 0 | J15: =SUMIF(INDIRECT($XER$2&"!$D$3:$D$46"),$A$15,INDIRECT($XER$2&"!$J$3:$J$46")) -> 0 | K15: =IF(J$4=0,"",J15/SUM(J$6:J$17)) -> 0 | L15: =SUMIF(INDIRECT($XER$2&"!$D$3:$D$46"),$A$15,INDIRECT($XER$2&"!$K$3:$K$46")) -> 0 | M15: =IF(L$4=0,"",L15/SUM(L$6:L$17)) -> 0 | N15: =SUMIF(INDIRECT($XER$2&"!$D$3:$D$46"),$A$15,INDIRECT($XER$2&"!$L$3:$L$46")) -> 0 | O15: =IF(N$4=0,"",N15/SUM(N$6:N$17)) -> 0 | P15: =SUMIF(INDIRECT($XER$2&"!$D$3:$D$46"),$A$15,INDIRECT($XER$2&"!$M$3:$M$46")) -> 0 | Q15: =IF(P$4=0,"",P15/SUM(P$6:P$17)) -> 0 | R15: =SUMIF(INDIRECT($XER$2&"!$D$3:$D$46"),$A$15,INDIRECT($XER$2&"!$N$3:$N$46")) -> 0 | S15: =IF(R$4=0,"",R15/SUM(R$6:R$17)) -> 0 | T15: =SUMIF(INDIRECT($XER$2&"!$D$3:$D$46"),$A$15,INDIRECT($XER$2&"!$O$3:$O$46")) -> 0 | U15: =IF(T$4=0,"",T15/SUM(T$6:T$17)) -> 0 | V15: =SUMIF(INDIRECT($XER$2&"!$D$3:$D$46"),$A$15,INDIRECT($XER$2&"!$P$3:$P$46")) -> 0 | W15: =IF(V$4=0,"",V15/SUM(V$6:V$17)) -> 0 | X15: =SUMIF(INDIRECT($XER$2&"!$D$3:$D$46"),$A$15,INDIRECT($XER$2&"!$Q$3:$Q$46")) -> 0 | Y15: =IF(X$4=0,"",X15/SUM(X$6:X$17)) -> 0 | Z15: 0
B16: =SUMIF(INDIRECT($XER$2&"!$D$3:$D$46"),$A$16,INDIRECT($XER$2&"!$F$3:$F$46")) -> 0 | C16: 0 | D16: =SUMIF(INDIRECT($XER$2&"!$D$3:$D$46"),$A$16,INDIRECT($XER$2&"!$G$3:$G$46")) -> 0 | E16: 0 | F16: =SUMIF(INDIRECT($XER$2&"!$D$3:$D$46"),$A$16,INDIRECT($XER$2&"!$H$3:$H$46")) -> 0 | G16: =IF(F$4=0,"",F16/SUM(F$6:F$17)) -> 0 | H16: =SUMIF(INDIRECT($XER$2&"!$D$3:$D$46"),$A$16,INDIRECT($XER$2&"!$I$3:$I$46")) -> 0 | I16: =IF(H$4=0,"",H16/SUM(H$6:H$17)) -> 0 | J16: =SUMIF(INDIRECT($XER$2&"!$D$3:$D$46"),$A$16,INDIRECT($XER$2&"!$J$3:$J$46")) -> 0 | K16: =IF(J$4=0,"",J16/SUM(J$6:J$17)) -> 0 | L16: =SUMIF(INDIRECT($XER$2&"!$D$3:$D$46"),$A$16,INDIRECT($XER$2&"!$K$3:$K$46")) -> 0 | M16: =IF(L$4=0,"",L16/SUM(L$6:L$17)) -> 0 | N16: =SUMIF(INDIRECT($XER$2&"!$D$3:$D$46"),$A$16,INDIRECT($XER$2&"!$L$3:$L$46")) -> 0 | O16: =IF(N$4=0,"",N16/SUM(N$6:N$17)) -> 0 | P16: =SUMIF(INDIRECT($XER$2&"!$D$3:$D$46"),$A$16,INDIRECT($XER$2&"!$M$3:$M$46")) -> 0 | Q16: =IF(P$4=0,"",P16/SUM(P$6:P$17)) -> 0 | R16: =SUMIF(INDIRECT($XER$2&"!$D$3:$D$46"),$A$16,INDIRECT($XER$2&"!$N$3:$N$46")) -> 0 | S16: =IF(R$4=0,"",R16/SUM(R$6:R$17)) -> 0 | T16: =SUMIF(INDIRECT($XER$2&"!$D$3:$D$46"),$A$16,INDIRECT($XER$2&"!$O$3:$O$46")) -> 0 | U16: =IF(T$4=0,"",T16/SUM(T$6:T$17)) -> 0 | V16: =SUMIF(INDIRECT($XER$2&"!$D$3:$D$46"),$A$16,INDIRECT($XER$2&"!$P$3:$P$46")) -> 0 | W16: =IF(V$4=0,"",V16/SUM(V$6:V$17)) -> 0 | X16: =SUMIF(INDIRECT($XER$2&"!$D$3:$D$46"),$A$16,INDIRECT($XER$2&"!$Q$3:$Q$46")) -> 0 | Y16: =IF(X$4=0,"",X16/SUM(X$6:X$17)) -> 0 | Z16: 0
B17: =SUMIF(INDIRECT($XER$2&"!$D$3:$D$46"),$A$17,INDIRECT($XER$2&"!$F$3:$F$46")) -> 0 | C17: 0 | D17: =SUMIF(INDIRECT($XER$2&"!$D$3:$D$46"),$A$17,INDIRECT($XER$2&"!$G$3:$G$46")) -> 0 | E17: 0 | F17: =SUMIF(INDIRECT($XER$2&"!$D$3:$D$46"),$A$17,INDIRECT($XER$2&"!$H$3:$H$46")) -> 0 | G17: =IF(F$4=0,"",F17/SUM(F$6:F$17)) -> 0 | H17: =SUMIF(INDIRECT($XER$2&"!$D$3:$D$46"),$A$17,INDIRECT($XER$2&"!$I$3:$I$46")) -> 0 | I17: =IF(H$4=0,"",H17/SUM(H$6:H$17)) -> 0 | J17: =SUMIF(INDIRECT($XER$2&"!$D$3:$D$46"),$A$17,INDIRECT($XER$2&"!$J$3:$J$46")) -> 0 | K17: =IF(J$4=0,"",J17/SUM(J$6:J$17)) -> 0 | L17: =SUMIF(INDIRECT($XER$2&"!$D$3:$D$46"),$A$17,INDIRECT($XER$2&"!$K$3:$K$46")) -> 0 | M17: =IF(L$4=0,"",L17/SUM(L$6:L$17)) -> 0 | N17: =SUMIF(INDIRECT($XER$2&"!$D$3:$D$46"),$A$17,INDIRECT($XER$2&"!$L$3:$L$46")) -> 0 | O17: =IF(N$4=0,"",N17/SUM(N$6:N$17)) -> 0 | P17: =SUMIF(INDIRECT($XER$2&"!$D$3:$D$46"),$A$17,INDIRECT($XER$2&"!$M$3:$M$46")) -> 0 | Q17: =IF(P$4=0,"",P17/SUM(P$6:P$17)) -> 0 | R17: =SUMIF(INDIRECT($XER$2&"!$D$3:$D$46"),$A$17,INDIRECT($XER$2&"!$N$3:$N$46")) -> 0 | S17: =IF(R$4=0,"",R17/SUM(R$6:R$17)) -> 0 | T17: =SUMIF(INDIRECT($XER$2&"!$D$3:$D$46"),$A$17,INDIRECT($XER$2&"!$O$3:$O$46")) -> 0 | U17: =IF(T$4=0,"",T17/SUM(T$6:T$17)) -> 0 | V17: =SUMIF(INDIRECT($XER$2&"!$D$3:$D$46"),$A$17,INDIRECT($XER$2&"!$P$3:$P$46")) -> 0 | W17: =IF(V$4=0,"",V17/SUM(V$6:V$17)) -> 0 | X17: =SUMIF(INDIRECT($XER$2&"!$D$3:$D$46"),$A$17,INDIRECT($XER$2&"!$Q$3:$Q$46")) -> 0 | Y17: =IF(X$4=0,"",X17/SUM(X$6:X$17)) -> 0 | Z17: 0
A19: Profit | B19: =SUM(B4:B5)-SUM(B6:B17) -> -12400.45 | D19: =SUM(D4:D5)-SUM(D6:D17) -> -187406.15 | F19: =SUM(F4:F5)-SUM(F6:F17) -> 142994.93 | H19: =SUM(H4:H5)-SUM(H6:H17) -> 204686.06 | J19: =SUM(J4:J5)-SUM(J6:J17) -> -88847.57 | L19: =SUM(L4:L5)-SUM(L6:L17) -> -92322.79 | N19: =SUM(N4:N5)-SUM(N6:N17) -> 4796.49 | P19: =SUM(P4:P5)-SUM(P6:P17) -> -15544.08 | R19: =SUM(R4:R5)-SUM(R6:R17) -> 23346.04 | T19: =SUM(T4:T5)-SUM(T6:T17) -> 16305.86 | V19: =SUM(V4:V5)-SUM(V6:V17) -> 87122.91 | X19: =SUM(X4:X5)-SUM(X6:X17) -> 156292.31
A22: AccType | B22: 一 | C22: % | D22: 二 | E22: % | F22: 三 | G22: % | H22: 四 | I22: % | J22: 五 | K22: % | L22: 六 | M22: % | N22: 七 | O22: % | P22: 八 | Q22: % | R22: 九 | S22: % | T22: 十 | U22: % | V22: 十一 | W22: % | X22: 十二 | Y22: % | Z22: Total
A23: 營業額 | B23: =SUMIF(INDIRECT($XER$2&"!$E$3:$E$46"),"Income",INDIRECT($XER$2&"!$F$3:$F$46")) -> 1024762 | C23: =IF(B23=0,"",B23/B23) -> 1 | D23: =SUMIF(INDIRECT($XER$2&"!$E$3:$E$46"),"Income",INDIRECT($XER$2&"!$G$3:$G$46")) -> 682388 | E23: =IF(D23=0,"",D23/D23) -> 1 | F23: =SUMIF(INDIRECT($XER$2&"!$E$3:$E$46"),"Income",INDIRECT($XER$2&"!$H$3:$H$46")) -> 1140860 | G23: =IF(F23=0,"",F23/F23) -> 1 | H23: =SUMIF(INDIRECT($XER$2&"!$E$3:$E$46"),"Income",INDIRECT($XER$2&"!$I$3:$I$46")) -> 1399549.8 | I23: =IF(H23=0,"",H23/H23) -> 1 | J23: =SUMIF(INDIRECT($XER$2&"!$E$3:$E$46"),"Income",INDIRECT($XER$2&"!$J$3:$J$46")) -> 948311 | K23: =IF(J23=0,"",J23/J23) -> 1 | L23: =SUMIF(INDIRECT($XER$2&"!$E$3:$E$46"),"Income",INDIRECT($XER$2&"!$K$3:$K$46")) -> 958794 | M23: =IF(L23=0,"",L23/L23) -> 1 | N23: =SUMIF(INDIRECT($XER$2&"!$E$3:$E$46"),"Income",INDIRECT($XER$2&"!$L$3:$L$46")) -> 1079527 | O23: =IF(N23=0,"",N23/N23) -> 1 | P23: =SUMIF(INDIRECT($XER$2&"!$E$3:$E$46"),"Income",INDIRECT($XER$2&"!$M$3:$M$46")) -> 1125943 | Q23: =IF(P23=0,"",P23/P23) -> 1 | R23: =SUMIF(INDIRECT($XER$2&"!$E$3:$E$46"),"Income",INDIRECT($XER$2&"!$N$3:$N$46")) -> 1122645 | S23: =IF(R23=0,"",R23/R23) -> 1 | T23: =SUMIF(INDIRECT($XER$2&"!$E$3:$E$46"),"Income",INDIRECT($XER$2&"!$O$3:$O$46")) -> 1143112 | U23: =IF(T23=0,"",T23/T23) -> 1 | V23: =SUMIF(INDIRECT($XER$2&"!$E$3:$E$46"),"Income",INDIRECT($XER$2&"!$P$3:$P$46")) -> 1244652 | W23: =IF(V23=0,"",V23/V23) -> 1 | X23: =SUMIF(INDIRECT($XER$2&"!$E$3:$E$46"),"Income",INDIRECT($XER$2&"!$Q$3:$Q$46")) -> 1420482.01 | Y23: =IF(X23=0,"",X23/X23) -> 1 | Z23: =SUM(B23,D23,F23,H23,J23,L23,N23,P23,R23,T23,V23,X23) -> 13291025.81
A24: 食材 | B24: =SUMIF(INDIRECT($XER$2&"!$E$3:$E$46"),"Food Cost",INDIRECT($XER$2&"!$F$3:$F$46")) -> 255512.51 | C24: =IF(B24=0,"",B24/B$23) -> 0.2493383927 | D24: =SUMIF(INDIRECT($XER$2&"!$E$3:$E$46"),"Food Cost",INDIRECT($XER$2&"!$G$3:$G$46")) -> 221335.24 | E24: =IF(D24=0,"",D24/D$23) -> 0.3243539453 | F24: =SUMIF(INDIRECT($XER$2&"!$E$3:$E$46"),"Food Cost",INDIRECT($XER$2&"!$H$3:$H$46")) -> 291960.59 | G24: =IF(F24=0,"",F24/F$23) -> 0.2559127237 | H24: =SUMIF(INDIRECT($XER$2&"!$E$3:$E$46"),"Food Cost",INDIRECT($XER$2&"!$I$3:$I$46")) -> 296982.72 | I24: =IF(H24=0,"",H24/H$23) -> 0.2121987513 | J24: =SUMIF(INDIRECT($XER$2&"!$E$3:$E$46"),"Food Cost",INDIRECT($XER$2&"!$J$3:$J$46")) -> 365657.89 | K24: =IF(J24=0,"",J24/J$23) -> 0.385588578 | L24: =SUMIF(INDIRECT($XER$2&"!$E$3:$E$46"),"Food Cost",INDIRECT($XER$2&"!$K$3:$K$46")) -> 319739.76 | M24: =IF(L24=0,"",L24/L$23) -> 0.3334811857 | N24: =SUMIF(INDIRECT($XER$2&"!$E$3:$E$46"),"Food Cost",INDIRECT($XER$2&"!$L$3:$L$46")) -> 375749.19 | O24: =IF(N24=0,"",N24/N$23) -> 0.3480683577 | P24: =SUMIF(INDIRECT($XER$2&"!$E$3:$E$46"),"Food Cost",INDIRECT($XER$2&"!$M$3:$M$46")) -> 359195.85 | Q24: =IF(P24=0,"",P24/P$23) -> 0.3190177922 | R24: =SUMIF(INDIRECT($XER$2&"!$E$3:$E$46"),"Food Cost",INDIRECT($XER$2&"!$N$3:$N$46")) -> 360957.68 | S24: =IF(R24=0,"",R24/R$23) -> 0.3215243287 | T24: =SUMIF(INDIRECT($XER$2&"!$E$3:$E$46"),"Food Cost",INDIRECT($XER$2&"!$O$3:$O$46")) -> 357948.18 | U24: =IF(T24=0,"",T24/T$23) -> 0.3131348284 | V24: =SUMIF(INDIRECT($XER$2&"!$E$3:$E$46"),"Food Cost",INDIRECT($XER$2&"!$P$3:$P$46")) -> 396355.22 | W24: =IF(V24=0,"",V24/V$23) -> 0.318446618 | X24: =SUMIF(INDIRECT($XER$2&"!$E$3:$E$46"),"Food Cost",INDIRECT($XER$2&"!$Q$3:$Q$46")) -> 481585.5 | Y24: =IF(X24=0,"",X24/X$23) -> 0.3390296368 | Z24: =SUM(B24,D24,F24,H24,J24,L24,N24,P24,R24,T24,V24,X24) -> 4082980.33
A25: 工資 | B25: =SUMIF(INDIRECT($XER$2&"!$E$3:$E$46"),"Labour",INDIRECT($XER$2&"!$F$3:$F$46")) -> 349187.7 | C25: =IF(B25=0,"",B25/B$23) -> 0.3407500473 | D25: =SUMIF(INDIRECT($XER$2&"!$E$3:$E$46"),"Labour",INDIRECT($XER$2&"!$G$3:$G$46")) -> 297826.6 | E25: =IF(D25=0,"",D25/D$23) -> 0.4364475929 | F25: =SUMIF(INDIRECT($XER$2&"!$E$3:$E$46"),"Labour",INDIRECT($XER$2&"!$H$3:$H$46")) -> 361138.15 | G25: =IF(F25=0,"",F25/F$23) -> 0.3165490507 | H25: =SUMIF(INDIRECT($XER$2&"!$E$3:$E$46"),"Labour",INDIRECT($XER$2&"!$I$3:$I$46")) -> 455379.25 | I25: =IF(H25=0,"",H25/H$23) -> 0.3253755243 | J25: =SUMIF(INDIRECT($XER$2&"!$E$3:$E$46"),"Labour",INDIRECT($XER$2&"!$J$3:$J$46")) -> 302482.7 | K25: =IF(J25=0,"",J25/J$23) -> 0.3189699371 | L25: =SUMIF(INDIRECT($XER$2&"!$E$3:$E$46"),"Labour",INDIRECT($XER$2&"!$K$3:$K$46")) -> 353471.65 | M25: =IF(L25=0,"",L25/L$23) -> 0.368662768 | N25: =SUMIF(INDIRECT($XER$2&"!$E$3:$E$46"),"Labour",INDIRECT($XER$2&"!$L$3:$L$46")) -> 299929.1 | O25: =IF(N25=0,"",N25/N$23) -> 0.2778338105 | P25: =SUMIF(INDIRECT($XER$2&"!$E$3:$E$46"),"Labour",INDIRECT($XER$2&"!$M$3:$M$46")) -> 357027 | Q25: =IF(P25=0,"",P25/P$23) -> 0.3170915402 | R25: =SUMIF(INDIRECT($XER$2&"!$E$3:$E$46"),"Labour",INDIRECT($XER$2&"!$N$3:$N$46")) -> 363262.35 | S25: =IF(R25=0,"",R25/R$23) -> 0.3235772217 | T25: =SUMIF(INDIRECT($XER$2&"!$E$3:$E$46"),"Labour",INDIRECT($XER$2&"!$O$3:$O$46")) -> 358014.85 | U25: =IF(T25=0,"",T25/T$23) -> 0.3131931517 | V25: =SUMIF(INDIRECT($XER$2&"!$E$3:$E$46"),"Labour",INDIRECT($XER$2&"!$P$3:$P$46")) -> 376316.15 | W25: =IF(V25=0,"",V25/V$23) -> 0.3023464792 | X25: =SUMIF(INDIRECT($XER$2&"!$E$3:$E$46"),"Labour",INDIRECT($XER$2&"!$Q$3:$Q$46")) -> 413960.65 | Y25: =IF(X25=0,"",X25/X$23) -> 0.2914226629 | Z25: 4287996.15
A26: 水電 | B26: =SUMIF(INDIRECT($XER$2&"!$E$3:$E$46"),"Utilities",INDIRECT($XER$2&"!$F$3:$F$46")) -> 59796 | C26: =IF(B26=0,"",B26/B$23) -> 0.05835110982 | D26: =SUMIF(INDIRECT($XER$2&"!$E$3:$E$46"),"Utilities",INDIRECT($XER$2&"!$G$3:$G$46")) -> 59621.5 | E26: =IF(D26=0,"",D26/D$23) -> 0.0873718471 | F26: =SUMIF(INDIRECT($XER$2&"!$E$3:$E$46"),"Utilities",INDIRECT($XER$2&"!$H$3:$H$46")) -> 53716 | G26: =IF(F26=0,"",F26/F$23) -> 0.0470837789 | H26: =SUMIF(INDIRECT($XER$2&"!$E$3:$E$46"),"Utilities",INDIRECT($XER$2&"!$I$3:$I$46")) -> 74535 | I26: =IF(H26=0,"",H26/H$23) -> 0.05325641145 | J26: =SUMIF(INDIRECT($XER$2&"!$E$3:$E$46"),"Utilities",INDIRECT($XER$2&"!$J$3:$J$46")) -> 75561 | K26: =IF(J26=0,"",J26/J$23) -> 0.0796795566 | L26: =SUMIF(INDIRECT($XER$2&"!$E$3:$E$46"),"Utilities",INDIRECT($XER$2&"!$K$3:$K$46")) -> 86732.4 | M26: =IF(L26=0,"",L26/L$23) -> 0.09045989024 | N26: =SUMIF(INDIRECT($XER$2&"!$E$3:$E$46"),"Utilities",INDIRECT($XER$2&"!$L$3:$L$46")) -> 93698 | O26: =IF(N26=0,"",N26/N$23) -> 0.08679542059 | P26: =SUMIF(INDIRECT($XER$2&"!$E$3:$E$46"),"Utilities",INDIRECT($XER$2&"!$M$3:$M$46")) -> 92641 | Q26: =IF(P26=0,"",P26/P$23) -> 0.08227858781 | R26: =SUMIF(INDIRECT($XER$2&"!$E$3:$E$46"),"Utilities",INDIRECT($XER$2&"!$N$3:$N$46")) -> 91908 | S26: =IF(R26=0,"",R26/R$23) -> 0.08186737571 | T26: =SUMIF(INDIRECT($XER$2&"!$E$3:$E$46"),"Utilities",INDIRECT($XER$2&"!$O$3:$O$46")) -> 94947 | U26: =IF(T26=0,"",T26/T$23) -> 0.0830601026 | V26: =SUMIF(INDIRECT($XER$2&"!$E$3:$E$46"),"Utilities",INDIRECT($XER$2&"!$P$3:$P$46")) -> 81143 | W26: =IF(V26=0,"",V26/V$23) -> 0.06519332311 | X26: =SUMIF(INDIRECT($XER$2&"!$E$3:$E$46"),"Utilities",INDIRECT($XER$2&"!$Q$3:$Q$46")) -> 79041 | Y26: =IF(X26=0,"",X26/X$23) -> 0.05564378813 | Z26: 943339.9
A27: 租金 | B27: =SUMIF(INDIRECT($XER$2&"!$E$3:$E$46"),"Rent",INDIRECT($XER$2&"!$F$3:$F$46")) -> 194450 | C27: =IF(B27=0,"",B27/B$23) -> 0.1897513764 | D27: =SUMIF(INDIRECT($XER$2&"!$E$3:$E$46"),"Rent",INDIRECT($XER$2&"!$G$3:$G$46")) -> 157450 | E27: =IF(D27=0,"",D27/D$23) -> 0.2307338347 | F27: =SUMIF(INDIRECT($XER$2&"!$E$3:$E$46"),"Rent",INDIRECT($XER$2&"!$H$3:$H$46")) -> 157450 | G27: =IF(F27=0,"",F27/F$23) -> 0.1380099223 | H27: =SUMIF(INDIRECT($XER$2&"!$E$3:$E$46"),"Rent",INDIRECT($XER$2&"!$I$3:$I$46")) -> 188150 | I27: =IF(H27=0,"",H27/H$23) -> 0.1344360879 | J27: =SUMIF(INDIRECT($XER$2&"!$E$3:$E$46"),"Rent",INDIRECT($XER$2&"!$J$3:$J$46")) -> 157450 | K27: =IF(J27=0,"",J27/J$23) -> 0.1660320296 | L27: =SUMIF(INDIRECT($XER$2&"!$E$3:$E$46"),"Rent",INDIRECT($XER$2&"!$K$3:$K$46")) -> 157450 | M27: =IF(L27=0,"",L27/L$23) -> 0.1642167139 | N27: =SUMIF(INDIRECT($XER$2&"!$E$3:$E$46"),"Rent",INDIRECT($XER$2&"!$L$3:$L$46")) -> 174700 | O27: =IF(N27=0,"",N27/N$23) -> 0.1618301349 | P27: =SUMIF(INDIRECT($XER$2&"!$E$3:$E$46"),"Rent",INDIRECT($XER$2&"!$M$3:$M$46")) -> 157450 | Q27: =IF(P27=0,"",P27/P$23) -> 0.13983834 | R27: =SUMIF(INDIRECT($XER$2&"!$E$3:$E$46"),"Rent",INDIRECT($XER$2&"!$N$3:$N$46")) -> 157450 | S27: =IF(R27=0,"",R27/R$23) -> 0.1402491438 | T27: =SUMIF(INDIRECT($XER$2&"!$E$3:$E$46"),"Rent",INDIRECT($XER$2&"!$O$3:$O$46")) -> 191150 | U27: =IF(T27=0,"",T27/T$23) -> 0.1672189602 | V27: =SUMIF(INDIRECT($XER$2&"!$E$3:$E$46"),"Rent",INDIRECT($XER$2&"!$P$3:$P$46")) -> 157450 | W27: =IF(V27=0,"",V27/V$23) -> 0.1265012228 | X27: =SUMIF(INDIRECT($XER$2&"!$E$3:$E$46"),"Rent",INDIRECT($XER$2&"!$Q$3:$Q$46")) -> 157450 | Y27: =IF(X27=0,"",X27/X$23) -> 0.1108426569 | Z27: 2008050
A28: 其他 | B28: =SUMIF(INDIRECT($XER$2&"!$E$3:$E$46"),"Other",INDIRECT($XER$2&"!$F$3:$F$46")) -> 178216.24 | C28: =IF(B28=0,"",B28/B$23) -> 0.1739098835 | D28: =SUMIF(INDIRECT($XER$2&"!$E$3:$E$46"),"Other",INDIRECT($XER$2&"!$G$3:$G$46")) -> 133560.81 | E28: =IF(D28=0,"",D28/D$23) -> 0.1957256136 | F28: =SUMIF(INDIRECT($XER$2&"!$E$3:$E$46"),"Other",INDIRECT($XER$2&"!$H$3:$H$46")) -> 133600.33 | G28: =IF(F28=0,"",F28/F$23) -> 0.1171049296 | H28: =SUMIF(INDIRECT($XER$2&"!$E$3:$E$46"),"Other",INDIRECT($XER$2&"!$I$3:$I$46")) -> 179816.77 | I28: =IF(H28=0,"",H28/H$23) -> 0.1284818661 | J28: =SUMIF(INDIRECT($XER$2&"!$E$3:$E$46"),"Other",INDIRECT($XER$2&"!$J$3:$J$46")) -> 136006.98 | K28: =IF(J28=0,"",J28/J$23) -> 0.1434202282 | L28: =SUMIF(INDIRECT($XER$2&"!$E$3:$E$46"),"Other",INDIRECT($XER$2&"!$K$3:$K$46")) -> 133722.98 | M28: =IF(L28=0,"",L28/L$23) -> 0.13946998 | N28: =SUMIF(INDIRECT($XER$2&"!$E$3:$E$46"),"Other",INDIRECT($XER$2&"!$L$3:$L$46")) -> 130654.22 | O28: =IF(N28=0,"",N28/N$23) -> 0.1210291359 | P28: =SUMIF(INDIRECT($XER$2&"!$E$3:$E$46"),"Other",INDIRECT($XER$2&"!$M$3:$M$46")) -> 175173.23 | Q28: =IF(P28=0,"",P28/P$23) -> 0.1555791279 | R28: =SUMIF(INDIRECT($XER$2&"!$E$3:$E$46"),"Other",INDIRECT($XER$2&"!$N$3:$N$46")) -> 125720.93 | S28: =IF(R28=0,"",R28/R$23) -> 0.1119863626 | T28: =SUMIF(INDIRECT($XER$2&"!$E$3:$E$46"),"Other",INDIRECT($XER$2&"!$O$3:$O$46")) -> 124746.11 | U28: =IF(T28=0,"",T28/T$23) -> 0.1091285106 | V28: =SUMIF(INDIRECT($XER$2&"!$E$3:$E$46"),"Other",INDIRECT($XER$2&"!$P$3:$P$46")) -> 146264.72 | W28: =IF(V28=0,"",V28/V$23) -> 0.1175145503 | X28: =SUMIF(INDIRECT($XER$2&"!$E$3:$E$46"),"Other",INDIRECT($XER$2&"!$Q$3:$Q$46")) -> 132152.55 | Y28: =IF(X28=0,"",X28/X$23) -> 0.09303359639 | Z28: 1729635.87
A30: 開支預算
A31: 食材 | B31: =IF(B24=0,0,B23*C31) -> 256190.5 | C31: =IF(B24=0,0,Master!$F$5) -> 0.25 | D31: =IF(D24=0,0,D23*E31) -> 170597 | E31: =IF(D24=0,0,Master!$F$5) -> 0.25 | F31: =IF(F24=0,0,F23*G31) -> 285215 | G31: =IF(F24=0,0,Master!$F$5) -> 0.25 | H31: =IF(H24=0,0,H23*I31) -> 349887.45 | I31: =IF(H24=0,0,Master!$F$5) -> 0.25 | J31: =IF(J24=0,0,J23*K31) -> 237077.75 | K31: =IF(J24=0,0,Master!$F$5) -> 0.25 | L31: =IF(L24=0,0,L23*M31) -> 239698.5 | M31: =IF(L24=0,0,Master!$F$5) -> 0.25 | N31: =IF(N24=0,0,N23*O31) -> 269881.75 | O31: =IF(N24=0,0,Master!$F$5) -> 0.25 | P31: =IF(P24=0,0,P23*Q31) -> 281485.75 | Q31: =IF(P24=0,0,Master!$F$5) -> 0.25 | R31: =IF(R24=0,0,R23*S31) -> 280661.25 | S31: =IF(R24=0,0,Master!$F$5) -> 0.25 | T31: =IF(T24=0,0,T23*U31) -> 285778 | U31: =IF(T24=0,0,Master!$F$5) -> 0.25 | V31: =IF(V24=0,0,V23*W31) -> 311163 | W31: =IF(V24=0,0,Master!$F$5) -> 0.25 | X31: =IF(X24=0,0,X23*Y31) -> 355120.5025 | Y31: =IF(X24=0,0,Master!$F$5) -> 0.25 | Z31: =SUM(B31,D31,F31,H31,J31,L31,N31,P31,R31,T31,V31,X31) -> 3322756.453
A32: 工資 | B32: =IF(B25=0,0,B23*C32) -> 256190.5 | C32: =IF(B25=0,0,Master!$F$6) -> 0.25 | D32: =IF(D25=0,0,D23*E32) -> 170597 | E32: =IF(D25=0,0,Master!$F$6) -> 0.25 | F32: =IF(F25=0,0,F23*G32) -> 285215 | G32: =IF(F25=0,0,Master!$F$6) -> 0.25 | H32: =IF(H25=0,0,H23*I32) -> 349887.45 | I32: =IF(H25=0,0,Master!$F$6) -> 0.25 | J32: =IF(J25=0,0,J23*K32) -> 237077.75 | K32: =IF(J25=0,0,Master!$F$6) -> 0.25 | L32: =IF(L25=0,0,L23*M32) -> 239698.5 | M32: =IF(L25=0,0,Master!$F$6) -> 0.25 | N32: =IF(N25=0,0,N23*O32) -> 269881.75 | O32: =IF(N25=0,0,Master!$F$6) -> 0.25 | P32: =IF(P25=0,0,P23*Q32) -> 281485.75 | Q32: =IF(P25=0,0,Master!$F$6) -> 0.25 | R32: =IF(R25=0,0,R23*S32) -> 280661.25 | S32: =IF(R25=0,0,Master!$F$6) -> 0.25 | T32: =IF(T25=0,0,T23*U32) -> 285778 | U32: =IF(T25=0,0,Master!$F$6) -> 0.25 | V32: =IF(V25=0,0,V23*W32) -> 311163 | W32: =IF(V25=0,0,Master!$F$6) -> 0.25 | X32: =IF(X25=0,0,X23*Y32) -> 355120.5025 | Y32: =IF(X25=0,0,Master!$F$6) -> 0.25 | Z32: 3322756.453
A33: 水電 | B33: =IF(B26=0,0,B23*C33) -> 51238.1 | C33: =IF(B26=0,0,Master!$F$7) -> 0.05 | D33: =IF(D26=0,0,D23*E33) -> 34119.4 | E33: =IF(D26=0,0,Master!$F$7) -> 0.05 | F33: =IF(F26=0,0,F23*G33) -> 57043 | G33: =IF(F26=0,0,Master!$F$7) -> 0.05 | H33: =IF(H26=0,0,H23*I33) -> 69977.49 | I33: =IF(H26=0,0,Master!$F$7) -> 0.05 | J33: =IF(J26=0,0,J23*K33) -> 47415.55 | K33: =IF(J26=0,0,Master!$F$7) -> 0.05 | L33: =IF(L26=0,0,L23*M33) -> 47939.7 | M33: =IF(L26=0,0,Master!$F$7) -> 0.05 | N33: =IF(N26=0,0,N23*O33) -> 53976.35 | O33: =IF(N26=0,0,Master!$F$7) -> 0.05 | P33: =IF(P26=0,0,P23*Q33) -> 56297.15 | Q33: =IF(P26=0,0,Master!$F$7) -> 0.05 | R33: =IF(R26=0,0,R23*S33) -> 56132.25 | S33: =IF(R26=0,0,Master!$F$7) -> 0.05 | T33: =IF(T26=0,0,T23*U33) -> 57155.6 | U33: =IF(T26=0,0,Master!$F$7) -> 0.05 | V33: =IF(V26=0,0,V23*W33) -> 62232.6 | W33: =IF(V26=0,0,Master!$F$7) -> 0.05 | X33: =IF(X26=0,0,X23*Y33) -> 71024.1005 | Y33: =IF(X26=0,0,Master!$F$7) -> 0.05 | Z33: 664551.2905
A34: 租金 | B34: =B27 -> 194450 | C34: =IF(B34=0,"",B34/B23) -> 0.1897513764 | D34: =D27 -> 157450 | E34: =IF(D34=0,"",D34/D23) -> 0.2307338347 | F34: =F27 -> 157450 | G34: =IF(F34=0,"",F34/F23) -> 0.1380099223 | H34: =H27 -> 188150 | I34: =IF(H34=0,"",H34/H23) -> 0.1344360879 | J34: =J27 -> 157450 | K34: =IF(J34=0,"",J34/J23) -> 0.1660320296 | L34: =L27 -> 157450 | M34: =IF(L34=0,"",L34/L23) -> 0.1642167139 | N34: =N27 -> 174700 | O34: =IF(N34=0,"",N34/N23) -> 0.1618301349 | P34: =P27 -> 157450 | Q34: =IF(P34=0,"",P34/P23) -> 0.13983834 | R34: =R27 -> 157450 | S34: =IF(R34=0,"",R34/R23) -> 0.1402491438 | T34: =T27 -> 191150 | U34: =IF(T34=0,"",T34/T23) -> 0.1672189602 | V34: =V27 -> 157450 | W34: =IF(V34=0,"",V34/V23) -> 0.1265012228 | X34: =X27 -> 157450 | Y34: =IF(X34=0,"",X34/X23) -> 0.1108426569 | Z34: 2008050
A35: 其他 | B35: =IF(B28=0,0,B23*C35) -> 204952.4 | C35: =IF(B28=0,0,Master!$F$9) -> 0.2 | D35: =IF(D28=0,0,D23*E35) -> 136477.6 | E35: =IF(D28=0,0,Master!$F$9) -> 0.2 | F35: =IF(F28=0,0,F23*G35) -> 228172 | G35: =IF(F28=0,0,Master!$F$9) -> 0.2 | H35: =IF(H28=0,0,H23*I35) -> 279909.96 | I35: =IF(H28=0,0,Master!$F$9) -> 0.2 | J35: =IF(J28=0,0,J23*K35) -> 189662.2 | K35: =IF(J28=0,0,Master!$F$9) -> 0.2 | L35: =IF(L28=0,0,L23*M35) -> 191758.8 | M35: =IF(L28=0,0,Master!$F$9) -> 0.2 | N35: =IF(N28=0,0,N23*O35) -> 215905.4 | O35: =IF(N28=0,0,Master!$F$9) -> 0.2 | P35: =IF(P28=0,0,P23*Q35) -> 225188.6 | Q35: =IF(P28=0,0,Master!$F$9) -> 0.2 | R35: =IF(R28=0,0,R23*S35) -> 224529 | S35: =IF(R28=0,0,Master!$F$9) -> 0.2 | T35: =IF(T28=0,0,T23*U35) -> 228622.4 | U35: =IF(T28=0,0,Master!$F$9) -> 0.2 | V35: =IF(V28=0,0,V23*W35) -> 248930.4 | W35: =IF(V28=0,0,Master!$F$9) -> 0.2 | X35: =IF(X28=0,0,X23*Y35) -> 284096.402 | Y35: =IF(X28=0,0,Master!$F$9) -> 0.2 | Z35: 2658205.162
A36: 利潤 | B36: =IF(B23=0,0,B23-SUM(B31:B35)) -> 61740.5 | C36: =IF(B36=0,"",B36/B23) -> 0.06024862358 | D36: =IF(D23=0,0,D23-SUM(D31:D35)) -> 13147 | E36: =IF(D36=0,"",D36/D23) -> 0.01926616529 | F36: =IF(F23=0,0,F23-SUM(F31:F35)) -> 127765 | G36: =IF(F36=0,"",F36/F23) -> 0.1119900777 | H36: =IF(H23=0,0,H23-SUM(H31:H35)) -> 161737.45 | I36: =IF(H36=0,"",H36/H23) -> 0.1155639121 | J36: =IF(J23=0,0,J23-SUM(J31:J35)) -> 79627.75 | K36: =IF(J36=0,"",J36/J23) -> 0.08396797042 | L36: =IF(L23=0,0,L23-SUM(L31:L35)) -> 82248.5 | M36: =IF(L36=0,"",L36/L23) -> 0.08578328609 | N36: =IF(N23=0,0,N23-SUM(N31:N35)) -> 95181.75 | O36: =IF(N36=0,"",N36/N23) -> 0.08816986514 | P36: =IF(P23=0,0,P23-SUM(P31:P35)) -> 124035.75 | Q36: =IF(P36=0,"",P36/P23) -> 0.11016166 | R36: =IF(R23=0,0,R23-SUM(R31:R35)) -> 123211.25 | S36: =IF(R36=0,"",R36/R23) -> 0.1097508562 | T36: =IF(T23=0,0,T23-SUM(T31:T35)) -> 94628 | U36: =IF(T36=0,"",T36/T23) -> 0.08278103983 | V36: =IF(V23=0,0,V23-SUM(V31:V35)) -> 153713 | W36: =IF(V36=0,"",V36/V23) -> 0.1234987772 | X36: =IF(X23=0,0,X23-SUM(X31:X35)) -> 197670.5025 | Y36: =IF(X36=0,"",X36/X23) -> 0.1391573431 | Z36: 1314706.452
A38: 實際利潤 | B38: =B23-SUM(B24:B28) -> -12400.45 | D38: =D23-SUM(D24:D28) -> -187406.15 | F38: =F23-SUM(F24:F28) -> 142994.93 | H38: =H23-SUM(H24:H28) -> 204686.06 | J38: =J23-SUM(J24:J28) -> -88847.57 | L38: =L23-SUM(L24:L28) -> -92322.79 | N38: =N23-SUM(N24:N28) -> 4796.49 | P38: =P23-SUM(P24:P28) -> -15544.08 | R38: =R23-SUM(R24:R28) -> 23346.04 | T38: =T23-SUM(T24:T28) -> 16305.86 | V38: =V23-SUM(V24:V28) -> 87122.91 | X38: =X23-SUM(X24:X28) -> 156292.31 | Z38: 239023.56
A39: 預算利潤 | B39: =B23-SUM(B31:B35) -> 61740.5 | D39: =D23-SUM(D31:D35) -> 13147 | F39: =F23-SUM(F31:F35) -> 127765 | H39: =H23-SUM(H31:H35) -> 161737.45 | J39: =J23-SUM(J31:J35) -> 79627.75 | L39: =L23-SUM(L31:L35) -> 82248.5 | N39: =N23-SUM(N31:N35) -> 95181.75 | P39: =P23-SUM(P31:P35) -> 124035.75 | R39: =R23-SUM(R31:R35) -> 123211.25 | T39: =T23-SUM(T31:T35) -> 94628 | V39: =V23-SUM(V31:V35) -> 153713 | X39: =X23-SUM(X31:X35) -> 197670.5025 | Z39: 1314706.452
AX42: AccType | AY42: Jan | AZ42: Feb | BA42: Mar | BB42: Apr | BC42: May | BD42: Jun | BE42: Jul | BF42: Aug | BG42: Sep | BH42: Oct | BI42: Nov | BJ42: Dec
AX43: Actual Profit | AY43: =B38 -> -12400.45 | AZ43: =D38 -> -187406.15 | BA43: =F38 -> 142994.93 | BB43: =H38 -> 204686.06 | BC43: =J38 -> -88847.57 | BD43: =L38 -> -92322.79 | BE43: =N38 -> 4796.49 | BF43: =P38 -> -15544.08 | BG43: =R38 -> 23346.04 | BH43: =T38 -> 16305.86 | BI43: =V38 -> 87122.91 | BJ43: =X38 -> 156292.31
AX44: Budget Profit | AY44: =B39 -> 61740.5 | AZ44: =D39 -> 13147 | BA44: =F39 -> 127765 | BB44: =H39 -> 161737.45 | BC44: =J39 -> 79627.75 | BD44: =L39 -> 82248.5 | BE44: =N39 -> 95181.75 | BF44: =P39 -> 124035.75 | BG44: =R39 -> 123211.25 | BH44: =T39 -> 94628 | BI44: =V39 -> 153713 | BJ44: =X39 -> 197670.5025
AX45: Actual Percentage | AY45: =SUM(C24:C28) -> 1.01210081 | AZ45: =SUM(E24:E28) -> 1.274632834 | BA45: =SUM(G24:G28) -> 0.8746604053 | BB45: =SUM(I24:I28) -> 0.8537486412 | BC45: =SUM(K24:K28) -> 1.093690329 | BD45: =SUM(M24:M28) -> 1.096290538 | BE45: =SUM(O24:O28) -> 0.9955568596 | BF45: =SUM(Q24:Q28) -> 1.013805388 | BG45: =SUM(S24:S28) -> 0.9792044324 | BH45: =SUM(U24:U28) -> 0.9857355535 | BI45: =SUM(W24:W28) -> 0.9300021934 | BJ45: =SUM(Y24:Y28) -> 0.8899723411
AX46: Budget Percentage | AY46: =SUM(C31:C35) -> 0.9397513764 | AZ46: =SUM(E31:E35) -> 0.9807338347 | BA46: =SUM(G31:G35) -> 0.8880099223 | BB46: =SUM(I31:I35) -> 0.8844360879 | BC46: =SUM(K31:K35) -> 0.9160320296 | BD46: =SUM(M31:M35) -> 0.9142167139 | BE46: =SUM(O31:O35) -> 0.9118301349 | BF46: =SUM(Q31:Q35) -> 0.88983834 | BG46: =SUM(S31:S35) -> 0.8902491438 | BH46: =SUM(U31:U35) -> 0.9172189602 | BI46: =SUM(W31:W35) -> 0.8765012228 | BJ46: =SUM(Y31:Y35) -> 0.8608426569
AY50: Jan | AZ50: Feb | BA50: Mar | BB50: Apr | BC50: May | BD50: Jun | BE50: Jul | BF50: Aug | BG50: Sep | BH50: Oct | BI50: Nov | BJ50: Dec
AW51: VB | AX51: Income | AY51: =SUMIF(VB!$E$3:$E$46,"Income",VB!F3:F46) -> 653451 | AZ51: =SUMIF(VB!$E$3:$E$46,"Income",VB!G3:G46) -> 447402 | BA51: =SUMIF(VB!$E$3:$E$46,"Income",VB!H3:H46) -> 726380 | BB51: =SUMIF(VB!$E$3:$E$46,"Income",VB!I3:I46) -> 843146.4 | BC51: =SUMIF(VB!$E$3:$E$46,"Income",VB!J3:J46) -> 635669 | BD51: =SUMIF(VB!$E$3:$E$46,"Income",VB!K3:K46) -> 620160 | BE51: =SUMIF(VB!$E$3:$E$46,"Income",VB!L3:L46) -> 728478 | BF51: =SUMIF(VB!$E$3:$E$46,"Income",VB!M3:M46) -> 767462 | BG51: =SUMIF(VB!$E$3:$E$46,"Income",VB!N3:N46) -> 749225 | BH51: =SUMIF(VB!$E$3:$E$46,"Income",VB!O3:O46) -> 793437 | BI51: =SUMIF(VB!$E$3:$E$46,"Income",VB!P3:P46) -> 855758 | BJ51: =SUMIF(VB!$E$3:$E$46,"Income",VB!Q3:Q46) -> 980978.01
AX52: Expenses | AY52: =SUMIF(VB!$E$3:$E$46,"<>Income",VB!F3:F46) -> 576307.97 | AZ52: =SUMIF(VB!$E$3:$E$46,"<>Income",VB!G3:G46) -> 463559.87 | BA52: =SUMIF(VB!$E$3:$E$46,"<>Income",VB!H3:H46) -> 538673.43 | BB52: =SUMIF(VB!$E$3:$E$46,"<>Income",VB!I3:I46) -> 650949.16 | BC52: =SUMIF(VB!$E$3:$E$46,"<>Income",VB!J3:J46) -> 496887.61 | BD52: =SUMIF(VB!$E$3:$E$46,"<>Income",VB!K3:K46) -> 543085.19 | BE52: =SUMIF(VB!$E$3:$E$46,"<>Income",VB!L3:L46) -> 613805.83 | BF52: =SUMIF(VB!$E$3:$E$46,"<>Income",VB!M3:M46) -> 654135.68 | BG52: =SUMIF(VB!$E$3:$E$46,"<>Income",VB!N3:N46) -> 586933.86 | BH52: =SUMIF(VB!$E$3:$E$46,"<>Income",VB!O3:O46) -> 617792.27 | BI52: =SUMIF(VB!$E$3:$E$46,"<>Income",VB!P3:P46) -> 624679.02 | BJ52: =SUMIF(VB!$E$3:$E$46,"<>Income",VB!Q3:Q46) -> 728923.53
AW53: Wow | AX53: Income | AY53: =SUMIF(WOW!$E$3:$E$46,"Income",WOW!F3:F46) -> 371311 | AZ53: =SUMIF(WOW!$E$3:$E$46,"Income",WOW!G3:G46) -> 234986 | BA53: =SUMIF(WOW!$E$3:$E$46,"Income",WOW!H3:H46) -> 414480 | BB53: =SUMIF(WOW!$E$3:$E$46,"Income",WOW!I3:I46) -> 556403.4 | BC53: =SUMIF(WOW!$E$3:$E$46,"Income",WOW!J3:J46) -> 312642 | BD53: =SUMIF(WOW!$E$3:$E$46,"Income",WOW!K3:K46) -> 338634 | BE53: =SUMIF(WOW!$E$3:$E$46,"Income",WOW!L3:L46) -> 351049 | BF53: =SUMIF(WOW!$E$3:$E$46,"Income",WOW!M3:M46) -> 358481 | BG53: =SUMIF(WOW!$E$3:$E$46,"Income",WOW!N3:N46) -> 373420 | BH53: =SUMIF(WOW!$E$3:$E$46,"Income",WOW!O3:O46) -> 349675 | BI53: =SUMIF(WOW!$E$3:$E$46,"Income",WOW!P3:P46) -> 388894 | BJ53: =SUMIF(WOW!$E$3:$E$46,"Income",WOW!Q3:Q46) -> 439504
AX54: Expenses | AY54: =SUMIF(WOW!$E$3:$E$46,"<>Income",WOW!F3:F46) -> 460854.48 | AZ54: =SUMIF(WOW!$E$3:$E$46,"<>Income",WOW!G3:G46) -> 406234.28 | BA54: =SUMIF(WOW!$E$3:$E$46,"<>Income",WOW!H3:H46) -> 459191.64 | BB54: =SUMIF(WOW!$E$3:$E$46,"<>Income",WOW!I3:I46) -> 543914.58 | BC54: =SUMIF(WOW!$E$3:$E$46,"<>Income",WOW!J3:J46) -> 540270.96 | BD54: =SUMIF(WOW!$E$3:$E$46,"<>Income",WOW!K3:K46) -> 508031.6 | BE54: =SUMIF(WOW!$E$3:$E$46,"<>Income",WOW!L3:L46) -> 463150.68 | BF54: =SUMIF(WOW!$E$3:$E$46,"<>Income",WOW!M3:M46) -> 487351.4 | BG54: =SUMIF(WOW!$E$3:$E$46,"<>Income",WOW!N3:N46) -> 512365.1 | BH54: =SUMIF(WOW!$E$3:$E$46,"<>Income",WOW!O3:O46) -> 509013.87 | BI54: =SUMIF(WOW!$E$3:$E$46,"<>Income",WOW!P3:P46) -> 532850.07 | BJ54: =SUMIF(WOW!$E$3:$E$46,"<>Income",WOW!Q3:Q46) -> 535266.17
AY57: Jan | AZ57: Feb | BA57: Mar | BB57: Apr | BC57: May | BD57: Jun | BE57: Jul | BF57: Aug | BG57: Sep | BH57: Oct | BI57: Nov | BJ57: Dec
AV58: VB | AW58: 99100 | AX58: Visa | AY58: =VLOOKUP($AW58,VB!$A$3:$Q$46,6,FALSE) -> 216.67 | AZ58: =VLOOKUP($AW58,VB!$A$3:$Q$46,7,FALSE) -> 114.19 | BA58: =VLOOKUP($AW58,VB!$A$3:$Q$46,8,FALSE) -> 177.47 | BB58: =VLOOKUP($AW58,VB!$A$3:$Q$46,9,FALSE) -> 273.22 | BC58: =VLOOKUP($AW58,VB!$A$3:$Q$46,10,FALSE) -> 450.74 | BD58: =VLOOKUP($AW58,VB!$A$3:$Q$46,11,FALSE) -> 0 | BE58: =VLOOKUP($AW58,VB!$A$3:$Q$46,12,FALSE) -> 769.18 | BF58: =VLOOKUP($AW58,VB!$A$3:$Q$46,13,FALSE) -> 207.78 | BG58: =VLOOKUP($AW58,VB!$A$3:$Q$46,14,FALSE) -> 221.75 | BH58: =VLOOKUP($AW58,VB!$A$3:$Q$46,15,FALSE) -> 200.18 | BI58: =VLOOKUP($AW58,VB!$A$3:$Q$46,16,FALSE) -> 194.38 | BJ58: =VLOOKUP($AW58,VB!$A$3:$Q$46,17,FALSE) -> 369.99
AW59: 99105 | AX59: Master | AY59: =VLOOKUP(AW59,VB!$A$3:$Q$46,6,FALSE) -> 60.56 | AZ59: =VLOOKUP($AW59,VB!$A$3:$Q$46,7,FALSE) -> 59.05 | BA59: =VLOOKUP($AW59,VB!$A$3:$Q$46,8,FALSE) -> 94.98 | BB59: =VLOOKUP($AW59,VB!$A$3:$Q$46,9,FALSE) -> 162.39 | BC59: =VLOOKUP($AW59,VB!$A$3:$Q$46,10,FALSE) -> 153.26 | BD59: =VLOOKUP($AW59,VB!$A$3:$Q$46,11,FALSE) -> 0 | BE59: =VLOOKUP($AW59,VB!$A$3:$Q$46,12,FALSE) -> 186.45 | BF59: =VLOOKUP($AW59,VB!$A$3:$Q$46,13,FALSE) -> 150.02 | BG59: =VLOOKUP($AW59,VB!$A$3:$Q$46,14,FALSE) -> 145.77 | BH59: =VLOOKUP($AW59,VB!$A$3:$Q$46,15,FALSE) -> 98.16 | BI59: =VLOOKUP($AW59,VB!$A$3:$Q$46,16,FALSE) -> 100.93 | BJ59: =VLOOKUP($AW59,VB!$A$3:$Q$46,17,FALSE) -> 222.97
AW60: 99110 | AX60: Union Pay | AY60: =VLOOKUP(AW60,VB!$A$3:$Q$46,6,FALSE) -> 17.23 | AZ60: =VLOOKUP($AW60,VB!$A$3:$Q$46,7,FALSE) -> 4.31 | BA60: =VLOOKUP($AW60,VB!$A$3:$Q$46,8,FALSE) -> 24.53 | BB60: =VLOOKUP($AW60,VB!$A$3:$Q$46,9,FALSE) -> 30.36 | BC60: =VLOOKUP($AW60,VB!$A$3:$Q$46,10,FALSE) -> 26.58 | BD60: =VLOOKUP($AW60,VB!$A$3:$Q$46,11,FALSE) -> 0 | BE60: =VLOOKUP($AW60,VB!$A$3:$Q$46,12,FALSE) -> 50.64 | BF60: =VLOOKUP($AW60,VB!$A$3:$Q$46,13,FALSE) -> 17.21 | BG60: =VLOOKUP($AW60,VB!$A$3:$Q$46,14,FALSE) -> 40.54 | BH60: =VLOOKUP($AW60,VB!$A$3:$Q$46,15,FALSE) -> 22.18 | BI60: =VLOOKUP($AW60,VB!$A$3:$Q$46,16,FALSE) -> 55.98 | BJ60: =VLOOKUP($AW60,VB!$A$3:$Q$46,17,FALSE) -> 80.65
AW61: 99115 | AX61: Octopus | AY61: =VLOOKUP(AW61,VB!$A$3:$Q$46,6,FALSE) -> 1808.14 | AZ61: =VLOOKUP($AW61,VB!$A$3:$Q$46,7,FALSE) -> 1447.46 | BA61: =VLOOKUP($AW61,VB!$A$3:$Q$46,8,FALSE) -> 2208.82 | BB61: =VLOOKUP($AW61,VB!$A$3:$Q$46,9,FALSE) -> 2025.53 | BC61: =VLOOKUP($AW61,VB!$A$3:$Q$46,10,FALSE) -> 1561.49 | BD61: =VLOOKUP($AW61,VB!$A$3:$Q$46,11,FALSE) -> 76.79 | BE61: =VLOOKUP($AW61,VB!$A$3:$Q$46,12,FALSE) -> 2342.05 | BF61: =VLOOKUP($AW61,VB!$A$3:$Q$46,13,FALSE) -> 3967.45 | BG61: =VLOOKUP($AW61,VB!$A$3:$Q$46,14,FALSE) -> 3159.51 | BH61: =VLOOKUP($AW61,VB!$A$3:$Q$46,15,FALSE) -> 3614.08 | BI61: =VLOOKUP($AW61,VB!$A$3:$Q$46,16,FALSE) -> 4029.29 | BJ61: =VLOOKUP($AW61,VB!$A$3:$Q$46,17,FALSE) -> 4058.23
AW62: 99120 | AX62: Alipay | AY62: =VLOOKUP(AW62,VB!$A$3:$Q$46,6,FALSE) -> 262.3 | AZ62: =VLOOKUP($AW62,VB!$A$3:$Q$46,7,FALSE) -> 161.9 | BA62: =VLOOKUP($AW62,VB!$A$3:$Q$46,8,FALSE) -> 177.57 | BB62: =VLOOKUP($AW62,VB!$A$3:$Q$46,9,FALSE) -> 146.66 | BC62: =VLOOKUP($AW62,VB!$A$3:$Q$46,10,FALSE) -> 218.29 | BD62: =VLOOKUP($AW62,VB!$A$3:$Q$46,11,FALSE) -> 26.48 | BE62: =VLOOKUP($AW62,VB!$A$3:$Q$46,12,FALSE) -> 287.64 | BF62: =VLOOKUP($AW62,VB!$A$3:$Q$46,13,FALSE) -> 585.69 | BG62: =VLOOKUP($AW62,VB!$A$3:$Q$46,14,FALSE) -> 371.75 | BH62: =VLOOKUP($AW62,VB!$A$3:$Q$46,15,FALSE) -> 606.95 | BI62: =VLOOKUP($AW62,VB!$A$3:$Q$46,16,FALSE) -> 538.99 | BJ62: =VLOOKUP($AW62,VB!$A$3:$Q$46,17,FALSE) -> 450.79
AW63: 99125 | AX63: Wechat | AY63: =VLOOKUP(AW63,VB!$A$3:$Q$46,6,FALSE) -> 30.25 | AZ63: =VLOOKUP($AW63,VB!$A$3:$Q$46,7,FALSE) -> 39 | BA63: =VLOOKUP($AW63,VB!$A$3:$Q$46,8,FALSE) -> 44.39 | BB63: =VLOOKUP($AW63,VB!$A$3:$Q$46,9,FALSE) -> 22.29 | BC63: =VLOOKUP($AW63,VB!$A$3:$Q$46,10,FALSE) -> 23.17 | BD63: =VLOOKUP($AW63,VB!$A$3:$Q$46,11,FALSE) -> 3.06 | BE63: =VLOOKUP($AW63,VB!$A$3:$Q$46,12,FALSE) -> 67.36 | BF63: =VLOOKUP($AW63,VB!$A$3:$Q$46,13,FALSE) -> 168.68 | BG63: =VLOOKUP($AW63,VB!$A$3:$Q$46,14,FALSE) -> 122.57 | BH63: =VLOOKUP($AW63,VB!$A$3:$Q$46,15,FALSE) -> 205.9 | BI63: =VLOOKUP($AW63,VB!$A$3:$Q$46,16,FALSE) -> 131.38 | BJ63: =VLOOKUP($AW63,VB!$A$3:$Q$46,17,FALSE) -> 142.24
AW64: 99130 | AX64: Deliveroo | AY64: =VLOOKUP(AW64,VB!$A$3:$Q$46,6,FALSE) -> 145.9 | AZ64: =VLOOKUP($AW64,VB!$A$3:$Q$46,7,FALSE) -> 225.75 | BA64: =VLOOKUP($AW64,VB!$A$3:$Q$46,8,FALSE) -> 230.7 | BB64: =VLOOKUP($AW64,VB!$A$3:$Q$46,9,FALSE) -> 163.8 | BC64: =VLOOKUP($AW64,VB!$A$3:$Q$46,10,FALSE) -> 0 | BD64: =VLOOKUP($AW64,VB!$A$3:$Q$46,11,FALSE) -> 0 | BE64: =VLOOKUP($AW64,VB!$A$3:$Q$46,12,FALSE) -> 107.1 | BF64: =VLOOKUP($AW64,VB!$A$3:$Q$46,13,FALSE) -> 175.7 | BG64: =VLOOKUP($AW64,VB!$A$3:$Q$46,14,FALSE) -> 337.4 | BH64: =VLOOKUP($AW64,VB!$A$3:$Q$46,15,FALSE) -> 207.55 | BI64: =VLOOKUP($AW64,VB!$A$3:$Q$46,16,FALSE) -> 44.8 | BJ64: =VLOOKUP($AW64,VB!$A$3:$Q$46,17,FALSE) -> 308.2
AW65: 99135 | AX65: Foodpanda | AY65: =VLOOKUP(AW65,VB!$A$3:$Q$46,6,FALSE) -> 1471.33 | AZ65: =VLOOKUP($AW65,VB!$A$3:$Q$46,7,FALSE) -> 744.07 | BA65: =VLOOKUP($AW65,VB!$A$3:$Q$46,8,FALSE) -> 272.45 | BB65: =VLOOKUP($AW65,VB!$A$3:$Q$46,9,FALSE) -> 684.74 | BC65: =VLOOKUP($AW65,VB!$A$3:$Q$46,10,FALSE) -> 100.2 | BD65: =VLOOKUP($AW65,VB!$A$3:$Q$46,11,FALSE) -> 0 | BE65: =VLOOKUP($AW65,VB!$A$3:$Q$46,12,FALSE) -> 306.3 | BF65: =VLOOKUP($AW65,VB!$A$3:$Q$46,13,FALSE) -> 900.5 | BG65: =VLOOKUP($AW65,VB!$A$3:$Q$46,14,FALSE) -> 531.73 | BH65: =VLOOKUP($AW65,VB!$A$3:$Q$46,15,FALSE) -> 122.4 | BI65: =VLOOKUP($AW65,VB!$A$3:$Q$46,16,FALSE) -> 176.7 | BJ65: =VLOOKUP($AW65,VB!$A$3:$Q$46,17,FALSE) -> 557.15
AW66: 99140 | AX66: UberEat | AY66: =VLOOKUP(AW66,VB!$A$3:$Q$46,6,FALSE) -> 26.24 | AZ66: =VLOOKUP($AW66,VB!$A$3:$Q$46,7,FALSE) -> 0 | BA66: =VLOOKUP($AW66,VB!$A$3:$Q$46,8,FALSE) -> 0 | BB66: =VLOOKUP($AW66,VB!$A$3:$Q$46,9,FALSE) -> 0
AY68: Jan | AZ68: Feb | BA68: Mar | BB68: Apr | BC68: May | BD68: Jun | BE68: Jul | BF68: Aug | BG68: Sep | BH68: Oct | BI68: Nov | BJ68: Dec
AV69: Wow | AW69: 99100 | AX69: Visa | AY69: =VLOOKUP($AW69,WOW!$A$3:$Q$46,6,FALSE) -> 84.98 | AZ69: =VLOOKUP($AW69,WOW!$A$3:$Q$46,7,FALSE) -> 303.49 | BA69: =VLOOKUP($AW69,WOW!$A$3:$Q$46,8,FALSE) -> 167.01 | BB69: =VLOOKUP($AW69,WOW!$A$3:$Q$46,9,FALSE) -> 222.79 | BC69: =VLOOKUP($AW69,WOW!$A$3:$Q$46,10,FALSE) -> 335.16 | BD69: =VLOOKUP($AW69,WOW!$A$3:$Q$46,11,FALSE) -> 4.41 | BE69: =VLOOKUP($AW69,WOW!$A$3:$Q$46,12,FALSE) -> 222.75 | BF69: =VLOOKUP($AW69,WOW!$A$3:$Q$46,13,FALSE) -> 209.69 | BG69: =VLOOKUP($AW69,WOW!$A$3:$Q$46,14,FALSE) -> 178.16 | BH69: =VLOOKUP($AW69,WOW!$A$3:$Q$46,15,FALSE) -> 144.63 | BI69: =VLOOKUP($AW69,WOW!$A$3:$Q$46,16,FALSE) -> 283.06 | BJ69: =VLOOKUP($AW69,WOW!$A$3:$Q$46,17,FALSE) -> 305.36
AW70: 99105 | AX70: Master | AY70: =VLOOKUP($AW70,WOW!$A$3:$Q$46,6,FALSE) -> 170.09 | AZ70: =VLOOKUP($AW70,WOW!$A$3:$Q$46,7,FALSE) -> 89.4 | BA70: =VLOOKUP($AW70,WOW!$A$3:$Q$46,8,FALSE) -> 117.2 | BB70: =VLOOKUP($AW70,WOW!$A$3:$Q$46,9,FALSE) -> 200.55 | BC70: =VLOOKUP($AW70,WOW!$A$3:$Q$46,10,FALSE) -> 71.93 | BD70: =VLOOKUP($AW70,WOW!$A$3:$Q$46,11,FALSE) -> 156.19 | BE70: =VLOOKUP($AW70,WOW!$A$3:$Q$46,12,FALSE) -> 112.28 | BF70: =VLOOKUP($AW70,WOW!$A$3:$Q$46,13,FALSE) -> 171.39 | BG70: =VLOOKUP($AW70,WOW!$A$3:$Q$46,14,FALSE) -> 166.97 | BH70: =VLOOKUP($AW70,WOW!$A$3:$Q$46,15,FALSE) -> 96.26 | BI70: =VLOOKUP($AW70,WOW!$A$3:$Q$46,16,FALSE) -> 152.63 | BJ70: =VLOOKUP($AW70,WOW!$A$3:$Q$46,17,FALSE) -> 179.24
AW71: 99110 | AX71: Union Pay | AY71: =VLOOKUP($AW71,WOW!$A$3:$Q$46,6,FALSE) -> 55.42 | AZ71: =VLOOKUP($AW71,WOW!$A$3:$Q$46,7,FALSE) -> 33.11 | BA71: =VLOOKUP($AW71,WOW!$A$3:$Q$46,8,FALSE) -> 49.31 | BB71: =VLOOKUP($AW71,WOW!$A$3:$Q$46,9,FALSE) -> 48.93 | BC71: =VLOOKUP($AW71,WOW!$A$3:$Q$46,10,FALSE) -> 40.86 | BD71: =VLOOKUP($AW71,WOW!$A$3:$Q$46,11,FALSE) -> 0 | BE71: =VLOOKUP($AW71,WOW!$A$3:$Q$46,12,FALSE) -> 73.41 | BF71: =VLOOKUP($AW71,WOW!$A$3:$Q$46,13,FALSE) -> 64.87 | BG71: =VLOOKUP($AW71,WOW!$A$3:$Q$46,14,FALSE) -> 154.22 | BH71: =VLOOKUP($AW71,WOW!$A$3:$Q$46,15,FALSE) -> 64.69 | BI71: =VLOOKUP($AW71,WOW!$A$3:$Q$46,16,FALSE) -> 61.38 | BJ71: =VLOOKUP($AW71,WOW!$A$3:$Q$46,17,FALSE) -> 263.39
AW72: 99115 | AX72: Octopus | AY72: =VLOOKUP($AW72,WOW!$A$3:$Q$46,6,FALSE) -> 651.66 | AZ72: =VLOOKUP($AW72,WOW!$A$3:$Q$46,7,FALSE) -> 741.74 | BA72: =VLOOKUP($AW72,WOW!$A$3:$Q$46,8,FALSE) -> 1011.58 | BB72: =VLOOKUP($AW72,WOW!$A$3:$Q$46,9,FALSE) -> 922.47 | BC72: =VLOOKUP($AW72,WOW!$A$3:$Q$46,10,FALSE) -> 694.51 | BD72: =VLOOKUP($AW72,WOW!$A$3:$Q$46,11,FALSE) -> 25.21 | BE72: =VLOOKUP($AW72,WOW!$A$3:$Q$46,12,FALSE) -> 1101.45 | BF72: =VLOOKUP($AW72,WOW!$A$3:$Q$46,13,FALSE) -> 1700.65 | BG72: =VLOOKUP($AW72,WOW!$A$3:$Q$46,14,FALSE) -> 1477.19 | BH72: =VLOOKUP($AW72,WOW!$A$3:$Q$46,15,FALSE) -> 1503.07 | BI72: =VLOOKUP($AW72,WOW!$A$3:$Q$46,16,FALSE) -> 1677.31 | BJ72: =VLOOKUP($AW72,WOW!$A$3:$Q$46,17,FALSE) -> 1788.17
AW73: 99120 | AX73: Alipay | AY73: =VLOOKUP($AW73,WOW!$A$3:$Q$46,6,FALSE) -> 165.05 | AZ73: =VLOOKUP($AW73,WOW!$A$3:$Q$46,7,FALSE) -> 86.16 | BA73: =VLOOKUP($AW73,WOW!$A$3:$Q$46,8,FALSE) -> 237.23 | BB73: =VLOOKUP($AW73,WOW!$A$3:$Q$46,9,FALSE) -> 160.47 | BC73: =VLOOKUP($AW73,WOW!$A$3:$Q$46,10,FALSE) -> 178.19 | BD73: =VLOOKUP($AW73,WOW!$A$3:$Q$46,11,FALSE) -> 11.09 | BE73: =VLOOKUP($AW73,WOW!$A$3:$Q$46,12,FALSE) -> 241.82 | BF73: =VLOOKUP($AW73,WOW!$A$3:$Q$46,13,FALSE) -> 439.85 | BG73: =VLOOKUP($AW73,WOW!$A$3:$Q$46,14,FALSE) -> 372.51 | BH73: =VLOOKUP($AW73,WOW!$A$3:$Q$46,15,FALSE) -> 565.26 | BI73: =VLOOKUP($AW73,WOW!$A$3:$Q$46,16,FALSE) -> 483.59 | BJ73: =VLOOKUP($AW73,WOW!$A$3:$Q$46,17,FALSE) -> 253.49
AW74: 99125 | AX74: Wechat | AY74: =VLOOKUP($AW74,WOW!$A$3:$Q$46,6,FALSE) -> 0 | AZ74: =VLOOKUP($AW74,WOW!$A$3:$Q$46,7,FALSE) -> 0 | BA74: =VLOOKUP($AW74,WOW!$A$3:$Q$46,8,FALSE) -> 0 | BB74: =VLOOKUP($AW74,WOW!$A$3:$Q$46,9,FALSE) -> 0 | BC74: =VLOOKUP($AW74,WOW!$A$3:$Q$46,10,FALSE) -> 0 | BD74: =VLOOKUP($AW74,WOW!$A$3:$Q$46,11,FALSE) -> 0 | BE74: =VLOOKUP($AW74,WOW!$A$3:$Q$46,12,FALSE) -> 0 | BF74: =VLOOKUP($AW74,WOW!$A$3:$Q$46,13,FALSE) -> 0 | BG74: =VLOOKUP($AW74,WOW!$A$3:$Q$46,14,FALSE) -> 0 | BH74: =VLOOKUP($AW74,WOW!$A$3:$Q$46,15,FALSE) -> 0 | BI74: =VLOOKUP($AW74,WOW!$A$3:$Q$46,16,FALSE) -> 2.04 | BJ74: =VLOOKUP($AW74,WOW!$A$3:$Q$46,17,FALSE) -> 48.96
AW75: 99130 | AX75: Deliveroo | AY75: =VLOOKUP($AW75,WOW!$A$3:$Q$46,6,FALSE) -> 0 | AZ75: =VLOOKUP($AW75,WOW!$A$3:$Q$46,7,FALSE) -> 0 | BA75: =VLOOKUP($AW75,WOW!$A$3:$Q$46,8,FALSE) -> 0 | BB75: =VLOOKUP($AW75,WOW!$A$3:$Q$46,9,FALSE) -> 0 | BC75: =VLOOKUP($AW75,WOW!$A$3:$Q$46,10,FALSE) -> 0 | BD75: =VLOOKUP($AW75,WOW!$A$3:$Q$46,11,FALSE) -> 0 | BE75: =VLOOKUP($AW75,WOW!$A$3:$Q$46,12,FALSE) -> 0 | BF75: =VLOOKUP($AW75,WOW!$A$3:$Q$46,13,FALSE) -> 0 | BG75: =VLOOKUP($AW75,WOW!$A$3:$Q$46,14,FALSE) -> 0 | BH75: =VLOOKUP($AW75,WOW!$A$3:$Q$46,15,FALSE) -> 0 | BI75: =VLOOKUP($AW75,WOW!$A$3:$Q$46,16,FALSE) -> 0 | BJ75: =VLOOKUP($AW75,WOW!$A$3:$Q$46,17,FALSE) -> 0
AW76: 99135 | AX76: Foodpanda | AY76: =VLOOKUP($AW76,WOW!$A$3:$Q$46,6,FALSE) -> 824.32 | AZ76: =VLOOKUP($AW76,WOW!$A$3:$Q$46,7,FALSE) -> 747.5 | BA76: =VLOOKUP($AW76,WOW!$A$3:$Q$46,8,FALSE) -> 589.04 | BB76: =VLOOKUP($AW76,WOW!$A$3:$Q$46,9,FALSE) -> 577.9 | BC76: =VLOOKUP($AW76,WOW!$A$3:$Q$46,10,FALSE) -> 696.45 | BD76: =VLOOKUP($AW76,WOW!$A$3:$Q$46,11,FALSE) -> 0 | BE76: =VLOOKUP($AW76,WOW!$A$3:$Q$46,12,FALSE) -> 752.98 | BF76: =VLOOKUP($AW76,WOW!$A$3:$Q$46,13,FALSE) -> 342.53 | BG76: =VLOOKUP($AW76,WOW!$A$3:$Q$46,14,FALSE) -> 463.11 | BH76: =VLOOKUP($AW76,WOW!$A$3:$Q$46,15,FALSE) -> 385 | BI76: =VLOOKUP($AW76,WOW!$A$3:$Q$46,16,FALSE) -> 1319.94 | BJ76: =VLOOKUP($AW76,WOW!$A$3:$Q$46,17,FALSE) -> 855.59
AW77: 99140 | AX77: UberEat | AY77: =VLOOKUP($AW77,WOW!$A$3:$Q$46,6,FALSE) -> 79.36 | AZ77: =VLOOKUP($AW77,WOW!$A$3:$Q$46,7,FALSE) -> 0 | BA77: =VLOOKUP($AW77,WOW!$A$3:$Q$46,8,FALSE) -> 53.76 | BB77: =VLOOKUP($AW77,WOW!$A$3:$Q$46,9,FALSE) -> 0 | BC77: =VLOOKUP($AW77,WOW!$A$3:$Q$46,10,FALSE) -> 0 | BD77: =VLOOKUP($AW77,WOW!$A$3:$Q$46,11,FALSE) -> 0 | BE77: =VLOOKUP($AW77,WOW!$A$3:$Q$46,12,FALSE) -> 0 | BF77: =VLOOKUP($AW77,WOW!$A$3:$Q$46,13,FALSE) -> 139.52 | BG77: =VLOOKUP($AW77,WOW!$A$3:$Q$46,14,FALSE) -> 0 | BH77: =VLOOKUP($AW77,WOW!$A$3:$Q$46,15,FALSE) -> 0 | BI77: =VLOOKUP($AW77,WOW!$A$3:$Q$46,16,FALSE) -> 0 | BJ77: =VLOOKUP($AW77,WOW!$A$3:$Q$46,17,FALSE) -> 0

Sheet BigData
A1: Year: 2021 INPUT DATA IN MONTH | XFD1: 12
A2: Seq | B2: eName | C2: cName | D2: Account | E2: Topic | F2: Jan | G2: Feb | H2: Mar | I2: Apr | J2: May | K2: Jun | L2: Jul | M2: Aug | N2: Sep | O2: Oct | P2: Nov | Q2: Dec
A3: 40000 | B3: Sales Revenue | C3: 營業收入 | D3: =INDEX(Builder!$D$3:$D$46,MATCH(A3,Builder!$A$3:$A$46,0)) -> Direct Income | E3: =INDEX(Builder!$E$3:$E$46,MATCH(A3,Builder!$A$3:$A$46,0)) -> Income | F3: 824762 | G3: 682388 | H3: 940860 | I3: 925383 | J3: 948311 | K3: 958794 | L3: 1079527 | M3: 1125943 | N3: 1122645 | O3: 1143112 | P3: 1244652 | Q3: 1420482
A4: 47000 | B4: Other Operating Income | C4: 其他營運收入 | D4: =INDEX(Builder!$D$3:$D$46,MATCH(A4,Builder!$A$3:$A$46,0)) -> Indirect Income | E4: =INDEX(Builder!$E$3:$E$46,MATCH(A4,Builder!$A$3:$A$46,0)) -> Income | F4: 200000 | G4: 0 | H4: 200000 | I4: 474166.8 | J4: 0
A5: 47010 | B5: Interest Income | C5: 利息收入 | D5: =INDEX(Builder!$D$3:$D$46,MATCH(A5,Builder!$A$3:$A$46,0)) -> Indirect Income | E5: =INDEX(Builder!$E$3:$E$46,MATCH(A5,Builder!$A$3:$A$46,0)) -> Income | F5: 0 | G5: 0 | H5: 0 | I5: 0 | J5: 0 | Q5: 0.01
A6: 52000 | B6: Food Cost | C6: 食材成本 | D6: =INDEX(Builder!$D$3:$D$46,MATCH(A6,Builder!$A$3:$A$46,0)) -> Direct Material | E6: =INDEX(Builder!$E$3:$E$46,MATCH(A6,Builder!$A$3:$A$46,0)) -> Food Cost | F6: 238743.51 | G6: 207496.74 | H6: 273137.59 | I6: 277799.22 | J6: 346921.39 | K6: 299757.26 | L6: 359601.99 | M6: 336007.85 | N6: 339799.18 | O6: 338611.18 | P6: 375119.22 | Q6: 455914.5
A7: 53200 | B7: Beverage Cost | C7: 無酒精飲料成本 | D7: =INDEX(Builder!$D$3:$D$46,MATCH(A7,Builder!$A$3:$A$46,0)) -> Direct Material | E7: =INDEX(Builder!$E$3:$E$46,MATCH(A7,Builder!$A$3:$A$46,0)) -> Food Cost | F7: 14624 | G7: 12808.5 | H7: 16043 | I7: 17611.5 | J7: 15916.5 | K7: 17756.5 | L7: 16147.2 | M7: 21306 | N7: 19886.5 | O7: 16793 | P7: 18504 | Q7: 21662
A8: 53300 | B8: Liquor Cost | C8: 烈酒成本 | D8: =INDEX(Builder!$D$3:$D$46,MATCH(A8,Builder!$A$3:$A$46,0)) -> Direct Material | E8: =INDEX(Builder!$E$3:$E$46,MATCH(A8,Builder!$A$3:$A$46,0)) -> Food Cost | F8: 0 | G8: 0 | H8: 0 | I8: 0 | J8: 0 | K8: 0 | L8: 0 | M8: 292 | O8: 0 | P8: 0 | Q8: 0
A9: 53400 | B9: Beer Cost | C9: 啤酒成本 | D9: =INDEX(Builder!$D$3:$D$46,MATCH(A9,Builder!$A$3:$A$46,0)) -> Direct Material | E9: =INDEX(Builder!$E$3:$E$46,MATCH(A9,Builder!$A$3:$A$46,0)) -> Food Cost | F9: 2145 | G9: 1030 | H9: 2150 | I9: 1572 | J9: 2820 | K9: 2226 | L9: 0 | M9: 1590 | N9: 1272 | O9: 2544 | P9: 2732 | Q9: 3910
A10: 53500 | B10: Wine Cost | C10: 餐酒(紅/白)成本 | D10: =INDEX(Builder!$D$3:$D$46,MATCH(A10,Builder!$A$3:$A$46,0)) -> Direct Material | E10: =INDEX(Builder!$E$3:$E$46,MATCH(A10,Builder!$A$3:$A$46,0)) -> Food Cost | F10: 0 | G10: 0 | H10: 630 | I10: 0 | J10: 0 | K10: 0 | L10: 0 | M10: 0 | P10: 0 | Q10: 99
A11: 62000 | B11: Staff Wages | C11: 合約僱員 | D11: =INDEX(Builder!$D$3:$D$46,MATCH(A11,Builder!$A$3:$A$46,0)) -> Direct Labour | E11: =INDEX(Builder!$E$3:$E$46,MATCH(A11,Builder!$A$3:$A$46,0)) -> Labour | F11: 315558 | G11: 265952 | H11: 330866 | I11: 399894 | J11: 262521 | K11: 314048 | L11: 250375 | M11: 286610 | N11: 306447 | O11: 301952 | P11: 317446 | Q11: 347047
A12: 63000 | B12: Contract Labor | C12: 兼職 | D12: =INDEX(Builder!$D$3:$D$46,MATCH(A12,Builder!$A$3:$A$46,0)) -> Direct Labour | E12: =INDEX(Builder!$E$3:$E$46,MATCH(A12,Builder!$A$3:$A$46,0)) -> Labour | F12: 6960 | G12: 5540 | H12: 2320 | I12: 26585 | J12: 12468 | K12: 11585 | L12: 24122 | M12: 41015 | N12: 27235 | O12: 27615 | P12: 30370 | Q12: 35525
A13: 67000 | B13: Employers MPF - Staff | C13: 強積金-合約僱員 | D13: =INDEX(Builder!$D$3:$D$46,MATCH(A13,Builder!$A$3:$A$46,0)) -> Direct Labour | E13: =INDEX(Builder!$E$3:$E$46,MATCH(A13,Builder!$A$3:$A$46,0)) -> Labour | F13: 11351.7 | G13: 10184.6 | H13: 12775.15 | I13: 13400.25 | J13: 12493.7 | K13: 12838.65 | L13: 10432.1 | M13: 14402 | N13: 14580.35 | O13: 13447.85 | P13: 13216.15 | Q13: 15913.65
A14: 68000 | B14: Management / Consultancy Fee | C14: 管理/顧問費 | D14: =INDEX(Builder!$D$3:$D$46,MATCH(A14,Builder!$A$3:$A$46,0)) -> Direct Labour | E14: =INDEX(Builder!$E$3:$E$46,MATCH(A14,Builder!$A$3:$A$46,0)) -> Labour | F14: 15000 | G14: 15000 | H14: 15000 | I14: 15000 | J14: 15000 | K14: 15000 | L14: 15000 | M14: 15000 | N14: 15000 | O14: 15000 | P14: 15000 | Q14: 15000
A15: 69000 | B15: Staff Messing | C15: 員工福利 | D15: =INDEX(Builder!$D$3:$D$46,MATCH(A15,Builder!$A$3:$A$46,0)) -> Direct Labour | E15: =INDEX(Builder!$E$3:$E$46,MATCH(A15,Builder!$A$3:$A$46,0)) -> Labour | F15: 318 | G15: 1150 | H15: 177 | I15: 500 | J15: 0 | K15: 0 | M15: 0 | N15: 0 | O15: 0 | P15: 284 | Q15: 475
A16: 71100 | B16: China - Glassware - Flatware | C16: 瓷器,碗碟 | D16: =INDEX(Builder!$D$3:$D$46,MATCH(A16,Builder!$A$3:$A$46,0)) -> Current Exp | E16: =INDEX(Builder!$E$3:$E$46,MATCH(A16,Builder!$A$3:$A$46,0)) -> Other | F16: 0 | G16: 684 | H16: 1370 | I16: 1978 | J16: 770 | K16: 1260 | M16: 4622 | N16: 1030 | O16: 1879 | P16: 452 | Q16: 7732
A17: 71200 | B17: Restaurant & Kitchen Supply | C17: 餐館/廚房供應 | D17: =INDEX(Builder!$D$3:$D$46,MATCH(A17,Builder!$A$3:$A$46,0)) -> Current Exp | E17: =INDEX(Builder!$E$3:$E$46,MATCH(A17,Builder!$A$3:$A$46,0)) -> Other | F17: 12211 | G17: 13118 | H17: 13681 | I17: 7723 | J17: 7804 | K17: 12092 | L17: 9498 | M17: 12448 | N17: 11562 | O17: 6103 | P17: 16881 | Q17: 11530
A18: 71300 | B18: Cleaning Supply & Expense | C18: 清潔用品開支/清潔費 | D18: =INDEX(Builder!$D$3:$D$46,MATCH(A18,Builder!$A$3:$A$46,0)) -> Current Exp | E18: =INDEX(Builder!$E$3:$E$46,MATCH(A18,Builder!$A$3:$A$46,0)) -> Other | F18: 7508 | G18: 7334 | H18: 8086.5 | I18: 13186 | J18: 3251 | K18: 7902 | L18: 9995 | M18: 8947.2 | N18: 7712.5 | O18: 9016 | P18: 7391 | Q18: 12858
A19: 71400 | B19: Decorations & Guest Supply | C19: 裝飾費 | D19: =INDEX(Builder!$D$3:$D$46,MATCH(A19,Builder!$A$3:$A$46,0)) -> Non-recurrent Exp | E19: =INDEX(Builder!$E$3:$E$46,MATCH(A19,Builder!$A$3:$A$46,0)) -> Other | F19: 0 | G19: 0 | H19: 0 | I19: 0 | J19: 0 | K19: 0 | L19: 0 | M19: 0 | N19: 0 | O19: 0 | P19: 0 | Q19: 0
A20: 71500 | B20: Laundry - Linen - Uniforms | C20: 乾濕洗衣/員工制服 | D20: =INDEX(Builder!$D$3:$D$46,MATCH(A20,Builder!$A$3:$A$46,0)) -> Current Exp | E20: =INDEX(Builder!$E$3:$E$46,MATCH(A20,Builder!$A$3:$A$46,0)) -> Other | F20: 2005 | G20: 1372 | H20: 1762 | I20: 2333 | J20: 1934 | K20: 1862 | L20: 1647 | M20: 2529 | N20: 1614 | O20: 1343.75 | P20: 1755 | Q20: 1722
A21: 71600 | B21: Fees - Permits - Licenses | C21: 牌照 | D21: =INDEX(Builder!$D$3:$D$46,MATCH(A21,Builder!$A$3:$A$46,0)) -> Current Exp | E21: =INDEX(Builder!$E$3:$E$46,MATCH(A21,Builder!$A$3:$A$46,0)) -> Other | F21: 0 | G21: 0 | H21: 0 | I21: 0 | J21: 5295 | K21: 750 | L21: 0 | M21: 0 | N21: 3500 | O21: 0 | P21: 0 | Q21: 0
A22: 72000 | B22: Pest - Security - Others | C22: 滅蟲 | D22: =INDEX(Builder!$D$3:$D$46,MATCH(A22,Builder!$A$3:$A$46,0)) -> Non-recurrent Exp | E22: =INDEX(Builder!$E$3:$E$46,MATCH(A22,Builder!$A$3:$A$46,0)) -> Other | F22: 1800 | G22: 1500 | H22: 225 | I22: 3300 | J22: 1800 | K22: 1800 | L22: 2766 | M22: 1904 | N22: 1800 | O22: 1198 | P22: 1900 | Q22: 0
A23: 72500 | B23: POS - Tech - Online | C23: 餐飲系統/科技/上網費 | D23: =INDEX(Builder!$D$3:$D$46,MATCH(A23,Builder!$A$3:$A$46,0)) -> Current Exp | E23: =INDEX(Builder!$E$3:$E$46,MATCH(A23,Builder!$A$3:$A$46,0)) -> Other | F23: 596 | G23: 596 | H23: 596 | I23: 596 | J23: 596 | K23: 596 | M23: 0 | N23: 0 | O23: 0 | P23: -7305.37 | Q23: 0
A24: 73000 | B24: Marketing | C24: 市場費用 | D24: =INDEX(Builder!$D$3:$D$46,MATCH(A24,Builder!$A$3:$A$46,0)) -> Non-recurrent Exp | E24: =INDEX(Builder!$E$3:$E$46,MATCH(A24,Builder!$A$3:$A$46,0)) -> Other | F24: 0 | G24: 0 | H24: 0 | I24: 0 | J24: 0 | K24: 0 | M24: 0 | N24: 0 | O24: 0 | P24: 0 | Q24: 0
A25: 73100 | B25: Media & Print advertising | C25: 媒體及印刷宣傳費 | D25: =INDEX(Builder!$D$3:$D$46,MATCH(A25,Builder!$A$3:$A$46,0)) -> Current Exp | E25: =INDEX(Builder!$E$3:$E$46,MATCH(A25,Builder!$A$3:$A$46,0)) -> Other | F25: 230 | G25: 310 | H25: 1790 | I25: 0 | J25: 2910 | K25: 0 | L25: 2630 | M25: 460 | N25: 2858 | O25: 1195 | P25: 0 | Q25: 780
A26: 74000 | B26: Travelling | C26: 交通費 | D26: =INDEX(Builder!$D$3:$D$46,MATCH(A26,Builder!$A$3:$A$46,0)) -> Current Exp | E26: =INDEX(Builder!$E$3:$E$46,MATCH(A26,Builder!$A$3:$A$46,0)) -> Other | F26: 119 | G26: 0 | H26: 672 | I26: 256 | J26: 962.4 | K26: 120 | L26: 303 | M26: 522 | N26: 323 | O26: 448 | P26: 280 | Q26: 299
A27: 76000 | B27: Repairs and Maintenance | C27: 維修/保養費 | D27: =INDEX(Builder!$D$3:$D$46,MATCH(A27,Builder!$A$3:$A$46,0)) -> Overhead | E27: =INDEX(Builder!$E$3:$E$46,MATCH(A27,Builder!$A$3:$A$46,0)) -> Other | F27: 24000 | G27: 25550 | H27: 20160 | I27: 27450 | J27: 22831 | K27: 22592 | L27: 13730 | M27: 12225 | N27: 7125 | O27: 15171 | P27: 7625 | Q27: 9975
A28: 77000 | B28: Utilities | C28: 水/電/ 煤氣 | D28: =INDEX(Builder!$D$3:$D$46,MATCH(A28,Builder!$A$3:$A$46,0)) -> Overhead | E28: =INDEX(Builder!$E$3:$E$46,MATCH(A28,Builder!$A$3:$A$46,0)) -> Utilities | F28: 59796 | G28: 59621.5 | H28: 53716 | I28: 74535 | J28: 75561 | K28: 86732.4 | L28: 93698 | M28: 92641 | N28: 91908 | O28: 94947 | P28: 81143 | Q28: 79041
A29: 77500 | B29: Telephone & internet | C29: 電話/網絡費 | D29: =INDEX(Builder!$D$3:$D$46,MATCH(A29,Builder!$A$3:$A$46,0)) -> Overhead | E29: =INDEX(Builder!$E$3:$E$46,MATCH(A29,Builder!$A$3:$A$46,0)) -> Other | F29: 728 | G29: 728 | H29: 2246 | I29: 728 | J29: 2246 | K29: 728 | L29: 728 | M29: 2246 | N29: 728 | O29: 728 | P29: 2246 | Q29: 1728
A30: 77600 | B30: Courier and Postage | C30: 速遞及郵費 | D30: =INDEX(Builder!$D$3:$D$46,MATCH(A30,Builder!$A$3:$A$46,0)) -> Non-recurrent Exp | E30: =INDEX(Builder!$E$3:$E$46,MATCH(A30,Builder!$A$3:$A$46,0)) -> Other | F30: 0 | G30: 0 | H30: 100 | I30: 100 | J30: 0 | K30: 0 | L30: 100 | M30: 0 | N30: 0 | O30: 100 | P30: 0 | Q30: 100
A31: 78200 | B31: Bank fees | C31: 銀行費 | D31: =INDEX(Builder!$D$3:$D$46,MATCH(A31,Builder!$A$3:$A$46,0)) -> Non-recurrent Exp | E31: =INDEX(Builder!$E$3:$E$46,MATCH(A31,Builder!$A$3:$A$46,0)) -> Other | F31: 0 | G31: 0 | H31: 0 | I31: 0 | J31: 0 | K31: 0 | L31: 660 | M31: 0 | N31: 0 | O31: 0 | P31: 0 | Q31: 0
A32: 99100 | B32: Card Commission - Visa | C32: 信用咭佣金費-visa | D32: =INDEX(Builder!$D$3:$D$46,MATCH(A32,Builder!$A$3:$A$46,0)) -> Current Exp | E32: =INDEX(Builder!$E$3:$E$46,MATCH(A32,Builder!$A$3:$A$46,0)) -> Other | F32: 301.65 | G32: 417.68 | H32: 344.48 | I32: 496.01 | J32: 785.9 | K32: 4.41 | L32: 991.93 | M32: 417.47 | N32: 399.91 | O32: 344.81 | P32: 477.44 | Q32: 675.35
A33: 99105 | B33: Card Commission - Master | C33: 信用咭佣金費-master | D33: =INDEX(Builder!$D$3:$D$46,MATCH(A33,Builder!$A$3:$A$46,0)) -> Current Exp | E33: =INDEX(Builder!$E$3:$E$46,MATCH(A33,Builder!$A$3:$A$46,0)) -> Other | F33: 230.65 | G33: 148.45 | H33: 212.18 | I33: 362.94 | J33: 225.19 | K33: 156.19 | L33: 298.73 | M33: 321.41 | N33: 312.74 | O33: 194.42 | P33: 253.56 | Q33: 402.21
A34: 99110 | B34: Card Commission - Union Pay | C34: 信用咭佣金費-銀聯 | D34: =INDEX(Builder!$D$3:$D$46,MATCH(A34,Builder!$A$3:$A$46,0)) -> Current Exp | E34: =INDEX(Builder!$E$3:$E$46,MATCH(A34,Builder!$A$3:$A$46,0)) -> Other | F34: 72.65 | G34: 37.42 | H34: 73.84 | I34: 79.29 | J34: 67.44 | K34: 0 | L34: 124.05 | M34: 82.08 | N34: 194.76 | O34: 86.87 | P34: 117.36 | Q34: 344.04
A35: 99115 | B35: Card Commission - Octopus | C35: 信用咭佣金費-八達通 | D35: =INDEX(Builder!$D$3:$D$46,MATCH(A35,Builder!$A$3:$A$46,0)) -> Current Exp | E35: =INDEX(Builder!$E$3:$E$46,MATCH(A35,Builder!$A$3:$A$46,0)) -> Other | F35: 2459.8 | G35: 2189.2 | H35: 3220.4 | I35: 2948 | J35: 2256 | K35: 102 | L35: 3443.5 | M35: 5668.1 | N35: 4636.7 | O35: 5117.15 | P35: 5706.6 | Q35: 5846.4
A36: 99120 | B36: Card Commission Alipay | C36: 信用咭佣金費-支付寶 | D36: =INDEX(Builder!$D$3:$D$46,MATCH(A36,Builder!$A$3:$A$46,0)) -> Current Exp | E36: =INDEX(Builder!$E$3:$E$46,MATCH(A36,Builder!$A$3:$A$46,0)) -> Other | F36: 427.35 | G36: 248.06 | H36: 414.8 | I36: 307.13 | J36: 396.48 | K36: 37.57 | L36: 529.46 | M36: 1025.54 | N36: 744.26 | O36: 1172.21 | P36: 1022.58 | Q36: 704.28
A37: 99125 | B37: Card Commission Wechat | C37: 信用咭佣金費-微信 | D37: =INDEX(Builder!$D$3:$D$46,MATCH(A37,Builder!$A$3:$A$46,0)) -> Current Exp | E37: =INDEX(Builder!$E$3:$E$46,MATCH(A37,Builder!$A$3:$A$46,0)) -> Other | F37: 30.25 | G37: 39 | H37: 44.39 | I37: 22.29 | J37: 23.17 | K37: 3.06 | L37: 67.36 | M37: 168.68 | N37: 122.57 | O37: 205.9 | P37: 133.42 | Q37: 191.2
A38: 99130 | B38: Deliveroo Charges | C38: 外賣餐佣金費-戶戶送 | D38: =INDEX(Builder!$D$3:$D$46,MATCH(A38,Builder!$A$3:$A$46,0)) -> Current Exp | E38: =INDEX(Builder!$E$3:$E$46,MATCH(A38,Builder!$A$3:$A$46,0)) -> Other | F38: 145.9 | G38: 225.75 | H38: 230.7 | I38: 163.8 | J38: 0 | K38: 0 | L38: 107.1 | M38: 175.7 | N38: 337.4 | O38: 207.55 | P38: 44.8 | Q38: 308.2
A39: 99135 | B39: Foodpanda Charge | C39: 外賣餐佣金費-熊貓 | D39: =INDEX(Builder!$D$3:$D$46,MATCH(A39,Builder!$A$3:$A$46,0)) -> Current Exp | E39: =INDEX(Builder!$E$3:$E$46,MATCH(A39,Builder!$A$3:$A$46,0)) -> Other | F39: 2295.65 | G39: 1491.57 | H39: 861.49 | I39: 1262.64 | J39: 796.65 | K39: 0 | L39: 1059.28 | M39: 1243.03 | N39: 994.84 | O39: 507.4 | P39: 1496.64 | Q39: 1412.74
A40: 99140 | B40: UberEat Charges | C40: 外賣餐佣金費-Ubereats | D40: =INDEX(Builder!$D$3:$D$46,MATCH(A40,Builder!$A$3:$A$46,0)) -> Current Exp | E40: =INDEX(Builder!$E$3:$E$46,MATCH(A40,Builder!$A$3:$A$46,0)) -> Other | F40: 105.6 | G40: 0 | H40: 53.76 | I40: 0 | J40: 0 | K40: 0 | M40: 170.48 | N40: 0 | O40: 37.8 | P40: 0 | Q40: 0
A41: 78300 | B41: Insurance | C41: 保險費 | D41: =INDEX(Builder!$D$3:$D$46,MATCH(A41,Builder!$A$3:$A$46,0)) -> Non-recurrent Exp | E41: =INDEX(Builder!$E$3:$E$46,MATCH(A41,Builder!$A$3:$A$46,0)) -> Other | F41: 0 | G41: 0 | H41: 0 | I41: 34914.92 | J41: 0 | K41: 0 | M41: 40025.29 | N41: 0 | O41: 0 | P41: 0 | Q41: 0
A42: 78500 | B42: Professional fees | C42: 專業項目費 | D42: =INDEX(Builder!$D$3:$D$46,MATCH(A42,Builder!$A$3:$A$46,0)) -> Non-recurrent Exp | E42: =INDEX(Builder!$E$3:$E$46,MATCH(A42,Builder!$A$3:$A$46,0)) -> Other | F42: 0 | G42: 0 | H42: 0 | I42: 0 | J42: 0 | K42: 1695 | M42: 0 | N42: 0 | O42: 0 | P42: 26000 | Q42: 0
A43: 78600 | B43: Stationery | C43: 文具 | D43: =INDEX(Builder!$D$3:$D$46,MATCH(A43,Builder!$A$3:$A$46,0)) -> Non-recurrent Exp | E43: =INDEX(Builder!$E$3:$E$46,MATCH(A43,Builder!$A$3:$A$46,0)) -> Other | F43: 1450 | G43: 865 | H43: 835 | I43: 1258 | J43: 705 | K43: 1671 | L43: 1461 | M43: 1083 | N43: 965 | O43: 930 | P43: 1633 | Q43: 2945
A44: 81000 | B44: Rent and Occupancy costs | C44: 租金及差餉費 | D44: =INDEX(Builder!$D$3:$D$46,MATCH(A44,Builder!$A$3:$A$46,0)) -> Overhead | E44: =INDEX(Builder!$E$3:$E$46,MATCH(A44,Builder!$A$3:$A$46,0)) -> Rent | F44: 194450 | G44: 157450 | H44: 157450 | I44: 188150 | J44: 157450 | K44: 157450 | L44: 174700 | M44: 157450 | N44: 157450 | O44: 191150 | P44: 157450 | Q44: 157450
A45: 87000 | B45: Depreciation & Amortization | C45: 裝修折舊費/攤銷費 | D45: =INDEX(Builder!$D$3:$D$46,MATCH(A45,Builder!$A$3:$A$46,0)) -> Non-recurrent Exp | E45: =INDEX(Builder!$E$3:$E$46,MATCH(A45,Builder!$A$3:$A$46,0)) -> Other | F45: 121499.74 | G45: 76706.68 | H45: 76620.79 | I45: 80351.75 | J45: 80351.75 | K45: 80351.75 | L45: 80334.81 | M45: 78760.25 | N45: 78760.25 | O45: 78760.25 | P45: 78154.69 | Q45: 72599.13
A46: 89000 | B46: Other expense | C46: 雜項支出 | D46: =INDEX(Builder!$D$3:$D$46,MATCH(A46,Builder!$A$3:$A$46,0)) -> Current Exp | E46: =INDEX(Builder!$E$3:$E$46,MATCH(A46,Builder!$A$3:$A$46,0)) -> Other | F46: 0 | G46: 0 | H46: 0 | I46: 0 | J46: 0 | K46: 0 | L46: 180 | M46: 129 | N46: 0 | O46: 0 | P46: 0 | Q46: 0

Sheet VB
A1: Year: 2021 | XFD1: 6
A2: Seq | B2: eName | C2: cName | D2: Account | E2: Topic | F2: Jan | G2: Feb | H2: Mar | I2: Apr | J2: May | K2: Jun | L2: Jul | M2: Aug | N2: Sep | O2: Oct | P2: Nov | Q2: Dec
A3: 40000 | B3: Sales Revenue | C3: 營業收入 | D3: =INDEX(Builder!$D$3:$D$46,MATCH(A3,Builder!$A$3:$A$46,0)) -> Direct Income | E3: =INDEX(Builder!$E$3:$E$46,MATCH(A3,Builder!$A$3:$A$46,0)) -> Income | F3: 553451 | G3: 447402 | H3: 626380 | I3: 612313 | J3: 635669 | K3: 620160 | L3: 728478 | M3: 767462 | N3: 749225 | O3: 793437 | P3: 855758 | Q3: 980978
A4: 47000 | B4: Other Operating Income | C4: 其他營運收入 | D4: =INDEX(Builder!$D$3:$D$46,MATCH(A4,Builder!$A$3:$A$46,0)) -> Indirect Income | E4: =INDEX(Builder!$E$3:$E$46,MATCH(A4,Builder!$A$3:$A$46,0)) -> Income | F4: 100000 | G4: 0 | H4: 100000 | I4: 230833.4 | J4: 0
A5: 47010 | B5: Interest Income | C5: 利息收入 | D5: =INDEX(Builder!$D$3:$D$46,MATCH(A5,Builder!$A$3:$A$46,0)) -> Indirect Income | E5: =INDEX(Builder!$E$3:$E$46,MATCH(A5,Builder!$A$3:$A$46,0)) -> Income | F5: 0 | G5: 0 | H5: 0 | I5: 0 | J5: 0 | Q5: 0.01
A6: 52000 | B6: Food Cost | C6: 食材成本 | D6: =INDEX(Builder!$D$3:$D$46,MATCH(A6,Builder!$A$3:$A$46,0)) -> Direct Material | E6: =INDEX(Builder!$E$3:$E$46,MATCH(A6,Builder!$A$3:$A$46,0)) -> Food Cost | F6: 143291.92 | G6: 121302.67 | H6: 162155.84 | I6: 158123.61 | J6: 176555.62 | K6: 169221.3 | L6: 204560.14 | M6: 192111.34 | N6: 191313.53 | O6: 185166.71 | P6: 203061.59 | Q6: 261603.67
A7: 53200 | B7: Beverage Cost | C7: 無酒精飲料成本 | D7: =INDEX(Builder!$D$3:$D$46,MATCH(A7,Builder!$A$3:$A$46,0)) -> Direct Material | E7: =INDEX(Builder!$E$3:$E$46,MATCH(A7,Builder!$A$3:$A$46,0)) -> Food Cost | F7: 9781.2 | G7: 8334.1 | H7: 10631.2 | I7: 11060.1 | J7: 10590.1 | K7: 12335.1 | L7: 11028.2 | M7: 14842 | N7: 14650.5 | O7: 11673.1 | P7: 13271 | Q7: 15733.6
A8: 53300 | B8: Liquor Cost | C8: 烈酒成本 | D8: =INDEX(Builder!$D$3:$D$46,MATCH(A8,Builder!$A$3:$A$46,0)) -> Direct Material | E8: =INDEX(Builder!$E$3:$E$46,MATCH(A8,Builder!$A$3:$A$46,0)) -> Food Cost | H8: 0 | I8: 0 | J8: 0 | K8: 0 | L8: 0 | M8: 292 | O8: 0 | P8: 0 | Q8: 0
A9: 53400 | B9: Beer Cost | C9: 啤酒成本 | D9: =INDEX(Builder!$D$3:$D$46,MATCH(A9,Builder!$A$3:$A$46,0)) -> Direct Material | E9: =INDEX(Builder!$E$3:$E$46,MATCH(A9,Builder!$A$3:$A$46,0)) -> Food Cost | F9: 0 | G9: 0 | H9: 0 | I9: 542 | J9: 0 | K9: 636 | L9: 636 | M9: 0 | N9: 636 | O9: 0 | P9: 0 | Q9: 0
A10: 53500 | B10: Wine Cost | C10: 餐酒(紅/白)成本 | D10: =INDEX(Builder!$D$3:$D$46,MATCH(A10,Builder!$A$3:$A$46,0)) -> Direct Material | E10: =INDEX(Builder!$E$3:$E$46,MATCH(A10,Builder!$A$3:$A$46,0)) -> Food Cost | F10: 0 | G10: 0 | H10: 0 | I10: 0 | J10: 0 | K10: 0 | L10: 0 | M10: 0 | P10: 0 | Q10: 0
A11: 62000 | B11: Staff Wages | C11: 合約僱員 | D11: =INDEX(Builder!$D$3:$D$46,MATCH(A11,Builder!$A$3:$A$46,0)) -> Direct Labour | E11: =INDEX(Builder!$E$3:$E$46,MATCH(A11,Builder!$A$3:$A$46,0)) -> Labour | F11: 116690 | G11: 109954 | H11: 149705 | I11: 209589 | J11: 93339 | K11: 126972 | L11: 122520 | M11: 137860 | N11: 132080 | O11: 133332 | P11: 146596 | Q11: 194527
A12: 63000 | B12: Contract Labor | C12: 兼職 | D12: =INDEX(Builder!$D$3:$D$46,MATCH(A12,Builder!$A$3:$A$46,0)) -> Direct Labour | E12: =INDEX(Builder!$E$3:$E$46,MATCH(A12,Builder!$A$3:$A$46,0)) -> Labour | F12: 6960 | G12: 5540 | H12: 2320 | I12: 26585 | J12: 12468 | K12: 11585 | L12: 24122 | M12: 41015 | N12: 27235 | O12: 27615 | P12: 30370 | Q12: 35525
A13: 67000 | B13: Employers MPF - Staff | C13: 強積金-合約僱員 | D13: =INDEX(Builder!$D$3:$D$46,MATCH(A13,Builder!$A$3:$A$46,0)) -> Direct Labour | E13: =INDEX(Builder!$E$3:$E$46,MATCH(A13,Builder!$A$3:$A$46,0)) -> Labour | F13: 5035 | G13: 4795.7 | H13: 6493.6 | I13: 7135.25 | J13: 5250.35 | K13: 6027.85 | L13: 5332.1 | M13: 8651.75 | N13: 7942 | O13: 7022.85 | P13: 6926.15 | Q13: 9873.65
A14: 68000 | B14: Management / Consultancy Fee | C14: 管理/顧問費 | D14: =INDEX(Builder!$D$3:$D$46,MATCH(A14,Builder!$A$3:$A$46,0)) -> Direct Labour | E14: =INDEX(Builder!$E$3:$E$46,MATCH(A14,Builder!$A$3:$A$46,0)) -> Labour | F14: 15000 | G14: 15000 | H14: 15000 | I14: 15000 | J14: 15000 | K14: 15000 | L14: 15000 | M14: 15000 | N14: 15000 | O14: 15000 | P14: 15000 | Q14: 15000
A15: 69000 | B15: Staff Messing | C15: 員工福利 | D15: =INDEX(Builder!$D$3:$D$46,MATCH(A15,Builder!$A$3:$A$46,0)) -> Direct Labour | E15: =INDEX(Builder!$E$3:$E$46,MATCH(A15,Builder!$A$3:$A$46,0)) -> Labour | F15: 318 | G15: 1150 | H15: 177 | I15: 500 | J15: 0 | K15: 0 | M15: 0 | N15: 0 | O15: 0 | P15: 284 | Q15: 475
A16: 71100 | B16: China - Glassware - Flatware | C16: 瓷器,碗碟 | D16: =INDEX(Builder!$D$3:$D$46,MATCH(A16,Builder!$A$3:$A$46,0)) -> Current Exp | E16: =INDEX(Builder!$E$3:$E$46,MATCH(A16,Builder!$A$3:$A$46,0)) -> Other | F16: 0 | G16: 684 | H16: 1370 | I16: 1390 | J16: 462 | K16: 1260 | M16: 4622 | N16: 1030 | O16: 1879 | P16: 0 | Q16: 5808.4
A17: 71200 | B17: Restaurant & Kitchen Supply | C17: 餐館/廚房供應 | D17: =INDEX(Builder!$D$3:$D$46,MATCH(A17,Builder!$A$3:$A$46,0)) -> Current Exp | E17: =INDEX(Builder!$E$3:$E$46,MATCH(A17,Builder!$A$3:$A$46,0)) -> Other | F17: 7937 | G17: 8952 | H17: 10163.4 | I17: 5575.4 | J17: 4270 | K17: 2649.8 | L17: 5138.2 | M17: 6991 | N17: 6659.2 | O17: 3827 | P17: 9380 | Q17: 9697
A18: 71300 | B18: Cleaning Supply & Expense | C18: 清潔用品開支/清潔費 | D18: =INDEX(Builder!$D$3:$D$46,MATCH(A18,Builder!$A$3:$A$46,0)) -> Current Exp | E18: =INDEX(Builder!$E$3:$E$46,MATCH(A18,Builder!$A$3:$A$46,0)) -> Other | F18: 4710 | G18: 4622.2 | H18: 4067.2 | I18: 7952.4 | J18: 2022 | K18: 4692.2 | L18: 5548 | M18: 5728.4 | N18: 5022.7 | O18: 5625 | P18: 3589.2 | Q18: 9570.2
A19: 71400 | B19: Decorations & Guest Supply | C19: 裝飾費 | D19: =INDEX(Builder!$D$3:$D$46,MATCH(A19,Builder!$A$3:$A$46,0)) -> Non-recurrent Exp | E19: =INDEX(Builder!$E$3:$E$46,MATCH(A19,Builder!$A$3:$A$46,0)) -> Other | F19: 0 | G19: 0 | H19: 0 | I19: 0 | J19: 0 | K19: 0 | L19: 0 | M19: 0 | N19: 0 | O19: 0 | P19: 0 | Q19: 0
A20: 71500 | B20: Laundry - Linen - Uniforms | C20: 乾濕洗衣/員工制服 | D20: =INDEX(Builder!$D$3:$D$46,MATCH(A20,Builder!$A$3:$A$46,0)) -> Current Exp | E20: =INDEX(Builder!$E$3:$E$46,MATCH(A20,Builder!$A$3:$A$46,0)) -> Other | F20: 420 | G20: 0 | H20: 0 | I20: 500 | J20: 0 | K20: 600 | L20: 0 | M20: 0 | N20: 0 | O20: 0 | P20: 0 | Q20: 0
A21: 71600 | B21: Fees - Permits - Licenses | C21: 牌照 | D21: =INDEX(Builder!$D$3:$D$46,MATCH(A21,Builder!$A$3:$A$46,0)) -> Current Exp | E21: =INDEX(Builder!$E$3:$E$46,MATCH(A21,Builder!$A$3:$A$46,0)) -> Other | F21: 0 | G21: 0 | H21: 0 | I21: 0 | J21: 1495 | K21: 500 | L21: 0 | M21: 0 | N21: 3500 | O21: 0 | P21: 0 | Q21: 0
A22: 72000 | B22: Pest - Security - Others | C22: 滅蟲 | D22: =INDEX(Builder!$D$3:$D$46,MATCH(A22,Builder!$A$3:$A$46,0)) -> Non-recurrent Exp | E22: =INDEX(Builder!$E$3:$E$46,MATCH(A22,Builder!$A$3:$A$46,0)) -> Other | F22: 900 | G22: 750 | H22: 225 | I22: 1650 | J22: 900 | K22: 900 | L22: 1641 | M22: 1004 | N22: 900 | O22: 523 | P22: 1900 | Q22: 0
A23: 72500 | B23: POS - Tech - Online | C23: 餐飲系統/科技/上網費 | D23: =INDEX(Builder!$D$3:$D$46,MATCH(A23,Builder!$A$3:$A$46,0)) -> Current Exp | E23: =INDEX(Builder!$E$3:$E$46,MATCH(A23,Builder!$A$3:$A$46,0)) -> Other | F23: 298 | G23: 298 | H23: 298 | I23: 298 | J23: 298 | K23: 298 | L23: 0 | M23: 0 | N23: 0 | O23: 0 | P23: -3640.72 | Q23: 0
A24: 73000 | B24: Marketing | C24: 市場費用 | D24: =INDEX(Builder!$D$3:$D$46,MATCH(A24,Builder!$A$3:$A$46,0)) -> Non-recurrent Exp | E24: =INDEX(Builder!$E$3:$E$46,MATCH(A24,Builder!$A$3:$A$46,0)) -> Other | F24: 0 | G24: 0 | H24: 0 | I24: 0 | J24: 0 | K24: 0 | L24: 0 | M24: 0 | N24: 0 | O24: 0 | P24: 0 | Q24: 0
A25: 73100 | B25: Media & Print advertising | C25: 媒體及印刷宣傳費 | D25: =INDEX(Builder!$D$3:$D$46,MATCH(A25,Builder!$A$3:$A$46,0)) -> Current Exp | E25: =INDEX(Builder!$E$3:$E$46,MATCH(A25,Builder!$A$3:$A$46,0)) -> Other | F25: 230 | G25: 310 | H25: 1398 | I25: 0 | J25: 1818 | K25: 0 | L25: 2630 | M25: 460 | N25: 2858 | O25: 1195 | P25: 0 | Q25: 468
A26: 74000 | B26: Travelling | C26: 交通費 | D26: =INDEX(Builder!$D$3:$D$46,MATCH(A26,Builder!$A$3:$A$46,0)) -> Current Exp | E26: =INDEX(Builder!$E$3:$E$46,MATCH(A26,Builder!$A$3:$A$46,0)) -> Other | F26: 119 | G26: 0 | H26: 672 | I26: 256 | J26: 962.4 | K26: 120 | L26: 199 | M26: 229 | N26: 323 | O26: 448 | P26: 266 | Q26: 299
A27: 76000 | B27: Repairs and Maintenance | C27: 維修/保養費 | D27: =INDEX(Builder!$D$3:$D$46,MATCH(A27,Builder!$A$3:$A$46,0)) -> Overhead | E27: =INDEX(Builder!$E$3:$E$46,MATCH(A27,Builder!$A$3:$A$46,0)) -> Other | F27: 22000 | G27: 23550 | H27: 18160 | I27: 5000 | J27: 4031 | K27: 17396 | L27: 3300 | M27: 7100 | N27: 2000 | O27: 9250 | P27: 2000 | Q27: 4850
A28: 77000 | B28: Utilities | C28: 水/電/ 煤氣 | D28: =INDEX(Builder!$D$3:$D$46,MATCH(A28,Builder!$A$3:$A$46,0)) -> Overhead | E28: =INDEX(Builder!$E$3:$E$46,MATCH(A28,Builder!$A$3:$A$46,0)) -> Utilities | F28: 38187 | G28: 36875.3 | H28: 33956 | I28: 46249 | J28: 46015 | K28: 51679.2 | L28: 56778 | M28: 54207 | N28: 53392 | O28: 58869.5 | P28: 46795 | Q28: 45968
A29: 77500 | B29: Telephone & internet | C29: 電話/網絡費 | D29: =INDEX(Builder!$D$3:$D$46,MATCH(A29,Builder!$A$3:$A$46,0)) -> Overhead | E29: =INDEX(Builder!$E$3:$E$46,MATCH(A29,Builder!$A$3:$A$46,0)) -> Other | F29: 728 | G29: 728 | H29: 728 | I29: 728 | J29: 728 | K29: 728 | L29: 728 | M29: 728 | N29: 728 | O29: 728 | P29: 728 | Q29: 1728
A30: 77600 | B30: Courier and Postage | C30: 速遞及郵費 | D30: =INDEX(Builder!$D$3:$D$46,MATCH(A30,Builder!$A$3:$A$46,0)) -> Non-recurrent Exp | E30: =INDEX(Builder!$E$3:$E$46,MATCH(A30,Builder!$A$3:$A$46,0)) -> Other | F30: 0 | G30: 0 | H30: 100 | I30: 100 | J30: 0 | K30: 0 | L30: 100 | M30: 0 | N30: 0 | O30: 100 | P30: 0 | Q30: 100
A31: 78200 | B31: Bank fees | C31: 銀行費 | D31: =INDEX(Builder!$D$3:$D$46,MATCH(A31,Builder!$A$3:$A$46,0)) -> Non-recurrent Exp | E31: =INDEX(Builder!$E$3:$E$46,MATCH(A31,Builder!$A$3:$A$46,0)) -> Other | F31: 0 | G31: 0 | H31: 0 | I31: 0 | J31: 0 | K31: 0 | L31: 660 | M31: 0 | N31: 0 | O31: 0 | P31: 0 | Q31: 0
A32: 99100 | B32: Card Commission - Visa | C32: 信用咭佣金費-visa | D32: =INDEX(Builder!$D$3:$D$46,MATCH(A32,Builder!$A$3:$A$46,0)) -> Current Exp | E32: =INDEX(Builder!$E$3:$E$46,MATCH(A32,Builder!$A$3:$A$46,0)) -> Other | F32: 216.67 | G32: 114.19 | H32: 177.47 | I32: 273.22 | J32: 450.74 | K32: 0 | L32: 769.18 | M32: 207.78 | N32: 221.75 | O32: 200.18 | P32: 194.38 | Q32: 369.99
A33: 99105 | B33: Card Commission - Master | C33: 信用咭佣金費-master | D33: =INDEX(Builder!$D$3:$D$46,MATCH(A33,Builder!$A$3:$A$46,0)) -> Current Exp | E33: =INDEX(Builder!$E$3:$E$46,MATCH(A33,Builder!$A$3:$A$46,0)) -> Other | F33: 60.56 | G33: 59.05 | H33: 94.98 | I33: 162.39 | J33: 153.26 | K33: 0 | L33: 186.45 | M33: 150.02 | N33: 145.77 | O33: 98.16 | P33: 100.93 | Q33: 222.97
A34: 99110 | B34: Card Commission - Union Pay | C34: 信用咭佣金費-銀聯 | D34: =INDEX(Builder!$D$3:$D$46,MATCH(A34,Builder!$A$3:$A$46,0)) -> Current Exp | E34: =INDEX(Builder!$E$3:$E$46,MATCH(A34,Builder!$A$3:$A$46,0)) -> Other | F34: 17.23 | G34: 4.31 | H34: 24.53 | I34: 30.36 | J34: 26.58 | K34: 0 | L34: 50.64 | M34: 17.21 | N34: 40.54 | O34: 22.18 | P34: 55.98 | Q34: 80.65
A35: 99115 | B35: Card Commission - Octopus | C35: 信用咭佣金費-八達通 | D35: =INDEX(Builder!$D$3:$D$46,MATCH(A35,Builder!$A$3:$A$46,0)) -> Current Exp | E35: =INDEX(Builder!$E$3:$E$46,MATCH(A35,Builder!$A$3:$A$46,0)) -> Other | F35: 1808.14 | G35: 1447.46 | H35: 2208.82 | I35: 2025.53 | J35: 1561.49 | K35: 76.79 | L35: 2342.05 | M35: 3967.45 | N35: 3159.51 | O35: 3614.08 | P35: 4029.29 | Q35: 4058.23
A36: 99120 | B36: Card Commission Alipay | C36: 信用咭佣金費-支付寶 | D36: =INDEX(Builder!$D$3:$D$46,MATCH(A36,Builder!$A$3:$A$46,0)) -> Current Exp | E36: =INDEX(Builder!$E$3:$E$46,MATCH(A36,Builder!$A$3:$A$46,0)) -> Other | F36: 262.3 | G36: 161.9 | H36: 177.57 | I36: 146.66 | J36: 218.29 | K36: 26.48 | L36: 287.64 | M36: 585.69 | N36: 371.75 | O36: 606.95 | P36: 538.99 | Q36: 450.79
A37: 99125 | B37: Card Commission Wechat | C37: 信用咭佣金費-微信 | D37: =INDEX(Builder!$D$3:$D$46,MATCH(A37,Builder!$A$3:$A$46,0)) -> Current Exp | E37: =INDEX(Builder!$E$3:$E$46,MATCH(A37,Builder!$A$3:$A$46,0)) -> Other | F37: 30.25 | G37: 39 | H37: 44.39 | I37: 22.29 | J37: 23.17 | K37: 3.06 | L37: 67.36 | M37: 168.68 | N37: 122.57 | O37: 205.9 | P37: 131.38 | Q37: 142.24
A38: 99130 | B38: Deliveroo Charges | C38: 外賣餐佣金費-戶戶送 | D38: =INDEX(Builder!$D$3:$D$46,MATCH(A38,Builder!$A$3:$A$46,0)) -> Current Exp | E38: =INDEX(Builder!$E$3:$E$46,MATCH(A38,Builder!$A$3:$A$46,0)) -> Other | F38: 145.9 | G38: 225.75 | H38: 230.7 | I38: 163.8 | J38: 0 | K38: 0 | L38: 107.1 | M38: 175.7 | N38: 337.4 | O38: 207.55 | P38: 44.8 | Q38: 308.2
A39: 99135 | B39: Foodpanda Charge | C39: 外賣餐佣金費-熊貓 | D39: =INDEX(Builder!$D$3:$D$46,MATCH(A39,Builder!$A$3:$A$46,0)) -> Current Exp | E39: =INDEX(Builder!$E$3:$E$46,MATCH(A39,Builder!$A$3:$A$46,0)) -> Other | F39: 1471.33 | G39: 744.07 | H39: 272.45 | I39: 684.74 | J39: 100.2 | K39: 0 | L39: 306.3 | M39: 900.5 | N39: 531.73 | O39: 122.4 | P39: 176.7 | Q39: 557.15
A40: 99140 | B40: UberEat Charges | C40: 外賣餐佣金費-Ubereats | D40: =INDEX(Builder!$D$3:$D$46,MATCH(A40,Builder!$A$3:$A$46,0)) -> Current Exp | E40: =INDEX(Builder!$E$3:$E$46,MATCH(A40,Builder!$A$3:$A$46,0)) -> Other | F40: 26.24 | G40: 0 | H40: 0 | I40: 0 | J40: 0 | K40: 0 | L40: 0 | M40: 30.96 | N40: 0 | O40: 37.8 | P40: 0 | Q40: 0
A41: 78300 | B41: Insurance | C41: 保險費 | D41: =INDEX(Builder!$D$3:$D$46,MATCH(A41,Builder!$A$3:$A$46,0)) -> Non-recurrent Exp | E41: =INDEX(Builder!$E$3:$E$46,MATCH(A41,Builder!$A$3:$A$46,0)) -> Other | F41: 0 | G41: 0 | H41: 0 | I41: 0 | J41: 0 | K41: 0 | L41: 0 | M41: 40025.29 | N41: 0 | O41: 0 | P41: 0 | Q41: 0
A42: 78500 | B42: Professional fees | C42: 專業項目費 | D42: =INDEX(Builder!$D$3:$D$46,MATCH(A42,Builder!$A$3:$A$46,0)) -> Non-recurrent Exp | E42: =INDEX(Builder!$E$3:$E$46,MATCH(A42,Builder!$A$3:$A$46,0)) -> Other | F42: 0 | G42: 0 | H42: 0 | I42: 0 | J42: 0 | K42: 1695 | L42: 0 | M42: 0 | N42: 0 | O42: 0 | P42: 26000 | Q42: 0
A43: 78600 | B43: Stationery | C43: 文具 | D43: =INDEX(Builder!$D$3:$D$46,MATCH(A43,Builder!$A$3:$A$46,0)) -> Non-recurrent Exp | E43: =INDEX(Builder!$E$3:$E$46,MATCH(A43,Builder!$A$3:$A$46,0)) -> Other | F43: 798 | G43: 845 | H43: 835 | I43: 1062 | J43: 705 | K43: 1239 | L43: 1461 | M43: 1083 | N43: 880 | O43: 870 | P43: 1633 | Q43: 1815
A44: 81000 | B44: Rent and Occupancy costs | C44: 租金及差餉費 | D44: =INDEX(Builder!$D$3:$D$46,MATCH(A44,Builder!$A$3:$A$46,0)) -> Overhead | E44: =INDEX(Builder!$E$3:$E$46,MATCH(A44,Builder!$A$3:$A$46,0)) -> Rent | F44: 141000 | G44: 104000 | H44: 104000 | I44: 134700 | J44: 104000 | K44: 104000 | L44: 134700 | M44: 104000 | N44: 104000 | O44: 137700 | P44: 104000 | Q44: 104000
A45: 87000 | B45: Depreciation & Amortization | C45: 裝修折舊費/攤銷費 | D45: =INDEX(Builder!$D$3:$D$46,MATCH(A45,Builder!$A$3:$A$46,0)) -> Non-recurrent Exp | E45: =INDEX(Builder!$E$3:$E$46,MATCH(A45,Builder!$A$3:$A$46,0)) -> Other | F45: 57866.23 | G45: 13073.17 | H45: 12987.28 | I45: 13444.41 | J45: 13444.41 | K45: 13444.41 | L45: 13427.47 | M45: 11852.91 | N45: 11852.91 | O45: 11852.91 | P45: 11247.35 | Q45: 5691.79
A46: 89000 | B46: Other expense | C46: 雜項支出 | D46: =INDEX(Builder!$D$3:$D$46,MATCH(A46,Builder!$A$3:$A$46,0)) -> Current Exp | E46: =INDEX(Builder!$E$3:$E$46,MATCH(A46,Builder!$A$3:$A$46,0)) -> Other | F46: 0 | G46: 0 | H46: 0 | I46: 0 | J46: 0 | K46: 0 | L46: 180 | M46: 129 | N46: 0 | O46: 0 | P46: 0 | Q46: 0

Sheet WOW
A1: Year: 2021 | XFD1: 6
A2: Seq | B2: eName | C2: cName | D2: Account | E2: Topic | F2: Jan | G2: Feb | H2: Mar | I2: Apr | J2: May | K2: Jun | L2: Jul | M2: Aug | N2: Sep | O2: Oct | P2: Nov | Q2: Dec
A3: 40000 | B3: Sales Revenue | C3: 營業收入 | D3: =INDEX(Builder!$D$3:$D$46,MATCH(A3,Builder!$A$3:$A$46,0)) -> Direct Income | E3: =INDEX(Builder!$E$3:$E$46,MATCH(A3,Builder!$A$3:$A$46,0)) -> Income | F3: 271311 | G3: 234986 | H3: 314480 | I3: 313070 | J3: 312642 | K3: 338634 | L3: 351049 | M3: 358481 | N3: 373420 | O3: 349675 | P3: 388894 | Q3: 439504
A4: 47000 | B4: Other Operating Income | C4: 其他營運收入 | D4: =INDEX(Builder!$D$3:$D$46,MATCH(A4,Builder!$A$3:$A$46,0)) -> Indirect Income | E4: =INDEX(Builder!$E$3:$E$46,MATCH(A4,Builder!$A$3:$A$46,0)) -> Income | F4: 100000 | G4: 0 | H4: 100000 | I4: 243333.4 | J4: 0
A5: 47010 | B5: Interest Income | C5: 利息收入 | D5: =INDEX(Builder!$D$3:$D$46,MATCH(A5,Builder!$A$3:$A$46,0)) -> Indirect Income | E5: =INDEX(Builder!$E$3:$E$46,MATCH(A5,Builder!$A$3:$A$46,0)) -> Income | F5: 0 | G5: 0 | H5: 0 | I5: 0 | J5: 0 | Q5: 0
A6: 52000 | B6: Food Cost | C6: 食材成本 | D6: =INDEX(Builder!$D$3:$D$46,MATCH(A6,Builder!$A$3:$A$46,0)) -> Direct Material | E6: =INDEX(Builder!$E$3:$E$46,MATCH(A6,Builder!$A$3:$A$46,0)) -> Food Cost | F6: 95451.59 | G6: 86194.07 | H6: 110981.75 | I6: 119675.61 | J6: 170365.77 | K6: 130535.96 | L6: 155041.85 | M6: 143896.51 | N6: 148485.65 | O6: 153444.47 | P6: 172057.63 | Q6: 194310.83
A7: 53200 | B7: Beverage Cost | C7: 無酒精飲料成本 | D7: =INDEX(Builder!$D$3:$D$46,MATCH(A7,Builder!$A$3:$A$46,0)) -> Direct Material | E7: =INDEX(Builder!$E$3:$E$46,MATCH(A7,Builder!$A$3:$A$46,0)) -> Food Cost | F7: 4842.8 | G7: 4474.4 | H7: 5411.8 | I7: 6551.4 | J7: 5326.4 | K7: 5421.4 | L7: 5119 | M7: 6464 | N7: 5236 | O7: 5119.9 | P7: 5233 | Q7: 5928.4
A8: 53300 | B8: Liquor Cost | C8: 烈酒成本 | D8: =INDEX(Builder!$D$3:$D$46,MATCH(A8,Builder!$A$3:$A$46,0)) -> Direct Material | E8: =INDEX(Builder!$E$3:$E$46,MATCH(A8,Builder!$A$3:$A$46,0)) -> Food Cost | F8: 0 | G8: 0 | H8: 0 | I8: 0 | J8: 0 | K8: 0 | L8: 0 | M8: 0 | O8: 0 | P8: 0 | Q8: 0
A9: 53400 | B9: Beer Cost | C9: 啤酒成本 | D9: =INDEX(Builder!$D$3:$D$46,MATCH(A9,Builder!$A$3:$A$46,0)) -> Direct Material | E9: =INDEX(Builder!$E$3:$E$46,MATCH(A9,Builder!$A$3:$A$46,0)) -> Food Cost | F9: 2145 | G9: 1030 | H9: 2150 | I9: 1030 | J9: 2820 | K9: 1590 | L9: 1590 | M9: 1590 | N9: 636 | O9: 2544 | P9: 2732 | Q9: 3910
A10: 53500 | B10: Wine Cost | C10: 餐酒(紅/白)成本 | D10: =INDEX(Builder!$D$3:$D$46,MATCH(A10,Builder!$A$3:$A$46,0)) -> Direct Material | E10: =INDEX(Builder!$E$3:$E$46,MATCH(A10,Builder!$A$3:$A$46,0)) -> Food Cost | F10: 0 | G10: 0 | H10: 630 | I10: 0 | J10: 0 | K10: 0 | L10: 0 | M10: 0 | P10: 0 | Q10: 99
A11: 62000 | B11: Staff Wages | C11: 合約僱員 | D11: =INDEX(Builder!$D$3:$D$46,MATCH(A11,Builder!$A$3:$A$46,0)) -> Direct Labour | E11: =INDEX(Builder!$E$3:$E$46,MATCH(A11,Builder!$A$3:$A$46,0)) -> Labour | F11: 198868 | G11: 155998 | H11: 181161 | I11: 190305 | J11: 169182 | K11: 187076 | L11: 127855 | M11: 148750 | N11: 174367 | O11: 168620 | P11: 170850 | Q11: 152520
A12: 63000 | B12: Contract Labor | C12: 兼職 | D12: =INDEX(Builder!$D$3:$D$46,MATCH(A12,Builder!$A$3:$A$46,0)) -> Direct Labour | E12: =INDEX(Builder!$E$3:$E$46,MATCH(A12,Builder!$A$3:$A$46,0)) -> Labour | F12: 0 | G12: 0 | H12: 0 | I12: 0 | J12: 0 | K12: 0 | L12: 0 | M12: 0 | N12: 0 | O12: 0 | P12: 0 | Q12: 0
A13: 67000 | B13: Employers MPF - Staff | C13: 強積金-合約僱員 | D13: =INDEX(Builder!$D$3:$D$46,MATCH(A13,Builder!$A$3:$A$46,0)) -> Direct Labour | E13: =INDEX(Builder!$E$3:$E$46,MATCH(A13,Builder!$A$3:$A$46,0)) -> Labour | F13: 6316.7 | G13: 5388.9 | H13: 6281.55 | I13: 6265 | J13: 7243.35 | K13: 6810.8 | L13: 5100 | M13: 5750.25 | N13: 6638.35 | O13: 6425 | P13: 6290 | Q13: 6040
A14: 68000 | B14: Management / Consultancy Fee | C14: 管理/顧問費 | D14: =INDEX(Builder!$D$3:$D$46,MATCH(A14,Builder!$A$3:$A$46,0)) -> Direct Labour | E14: =INDEX(Builder!$E$3:$E$46,MATCH(A14,Builder!$A$3:$A$46,0)) -> Labour | F14: 0 | G14: 0 | H14: 0 | I14: 0 | J14: 0 | K14: 0 | L14: 0 | M14: 0 | N14: 0 | O14: 0 | P14: 0 | Q14: 0
A15: 69000 | B15: Staff Messing | C15: 員工福利 | D15: =INDEX(Builder!$D$3:$D$46,MATCH(A15,Builder!$A$3:$A$46,0)) -> Direct Labour | E15: =INDEX(Builder!$E$3:$E$46,MATCH(A15,Builder!$A$3:$A$46,0)) -> Labour | F15: 0 | G15: 0 | H15: 0 | I15: 0 | J15: 0 | K15: 0 | M15: 0 | N15: 0 | O15: 0 | P15: 0 | Q15: 0
A16: 71100 | B16: China - Glassware - Flatware | C16: 瓷器,碗碟 | D16: =INDEX(Builder!$D$3:$D$46,MATCH(A16,Builder!$A$3:$A$46,0)) -> Current Exp | E16: =INDEX(Builder!$E$3:$E$46,MATCH(A16,Builder!$A$3:$A$46,0)) -> Other | F16: 0 | G16: 0 | H16: 0 | I16: 588 | J16: 308 | K16: 0 | M16: 0 | N16: 0 | O16: 0 | P16: 452 | Q16: 1923.6
A17: 71200 | B17: Restaurant & Kitchen Supply | C17: 餐館/廚房供應 | D17: =INDEX(Builder!$D$3:$D$46,MATCH(A17,Builder!$A$3:$A$46,0)) -> Current Exp | E17: =INDEX(Builder!$E$3:$E$46,MATCH(A17,Builder!$A$3:$A$46,0)) -> Other | F17: 4274 | G17: 4166 | H17: 3517.6 | I17: 2147.6 | J17: 3534 | K17: 9442.2 | L17: 4359.8 | M17: 5457 | N17: 4902.8 | O17: 2276 | P17: 7501 | Q17: 1833
A18: 71300 | B18: Cleaning Supply & Expense | C18: 清潔用品開支/清潔費 | D18: =INDEX(Builder!$D$3:$D$46,MATCH(A18,Builder!$A$3:$A$46,0)) -> Current Exp | E18: =INDEX(Builder!$E$3:$E$46,MATCH(A18,Builder!$A$3:$A$46,0)) -> Other | F18: 2798 | G18: 2711.8 | H18: 4019.3 | I18: 5233.6 | J18: 1229 | K18: 3209.8 | L18: 4447 | M18: 3218.8 | N18: 2689.8 | O18: 3391 | P18: 3801.8 | Q18: 3287.8
A19: 71400 | B19: Decorations & Guest Supply | C19: 裝飾費 | D19: =INDEX(Builder!$D$3:$D$46,MATCH(A19,Builder!$A$3:$A$46,0)) -> Non-recurrent Exp | E19: =INDEX(Builder!$E$3:$E$46,MATCH(A19,Builder!$A$3:$A$46,0)) -> Other | F19: 0 | G19: 0 | H19: 0 | I19: 0 | J19: 0 | K19: 0 | L19: 0 | M19: 0 | N19: 0 | O19: 0 | P19: 0 | Q19: 0
A20: 71500 | B20: Laundry - Linen - Uniforms | C20: 乾濕洗衣/員工制服 | D20: =INDEX(Builder!$D$3:$D$46,MATCH(A20,Builder!$A$3:$A$46,0)) -> Current Exp | E20: =INDEX(Builder!$E$3:$E$46,MATCH(A20,Builder!$A$3:$A$46,0)) -> Other | F20: 1585 | G20: 1372 | H20: 1762 | I20: 1833 | J20: 1934 | K20: 1262 | L20: 1647 | M20: 2529 | N20: 1614 | O20: 1343.75 | P20: 1755 | Q20: 1722
A21: 71600 | B21: Fees - Permits - Licenses | C21: 牌照 | D21: =INDEX(Builder!$D$3:$D$46,MATCH(A21,Builder!$A$3:$A$46,0)) -> Current Exp | E21: =INDEX(Builder!$E$3:$E$46,MATCH(A21,Builder!$A$3:$A$46,0)) -> Other | F21: 0 | G21: 0 | H21: 0 | I21: 0 | J21: 3800 | K21: 250 | L21: 0 | M21: 0 | N21: 0 | O21: 0 | P21: 0 | Q21: 0
A22: 72000 | B22: Pest - Security - Others | C22: 滅蟲 | D22: =INDEX(Builder!$D$3:$D$46,MATCH(A22,Builder!$A$3:$A$46,0)) -> Non-recurrent Exp | E22: =INDEX(Builder!$E$3:$E$46,MATCH(A22,Builder!$A$3:$A$46,0)) -> Other | F22: 900 | G22: 750 | H22: 0 | I22: 1650 | J22: 900 | K22: 900 | L22: 1125 | M22: 900 | N22: 900 | O22: 675 | P22: 0 | Q22: 0
A23: 72500 | B23: POS - Tech - Online | C23: 餐飲系統/科技/上網費 | D23: =INDEX(Builder!$D$3:$D$46,MATCH(A23,Builder!$A$3:$A$46,0)) -> Current Exp | E23: =INDEX(Builder!$E$3:$E$46,MATCH(A23,Builder!$A$3:$A$46,0)) -> Other | F23: 298 | G23: 298 | H23: 298 | I23: 298 | J23: 298 | K23: 298 | L23: 0 | M23: 0 | N23: 0 | O23: 0 | P23: -3664.65 | Q23: 0
A24: 73000 | B24: Marketing | C24: 市場費用 | D24: =INDEX(Builder!$D$3:$D$46,MATCH(A24,Builder!$A$3:$A$46,0)) -> Non-recurrent Exp | E24: =INDEX(Builder!$E$3:$E$46,MATCH(A24,Builder!$A$3:$A$46,0)) -> Other | F24: 0 | G24: 0 | H24: 0 | I24: 0 | J24: 0 | K24: 0 | L24: 0 | M24: 0 | N24: 0 | O24: 0 | P24: 0 | Q24: 0
A25: 73100 | B25: Media & Print advertising | C25: 媒體及印刷宣傳費 | D25: =INDEX(Builder!$D$3:$D$46,MATCH(A25,Builder!$A$3:$A$46,0)) -> Current Exp | E25: =INDEX(Builder!$E$3:$E$46,MATCH(A25,Builder!$A$3:$A$46,0)) -> Other | F25: 0 | G25: 0 | H25: 392 | I25: 0 | J25: 1092 | K25: 0 | L25: 0 | M25: 0 | N25: 0 | O25: 0 | P25: 0 | Q25: 312
A26: 74000 | B26: Travelling | C26: 交通費 | D26: =INDEX(Builder!$D$3:$D$46,MATCH(A26,Builder!$A$3:$A$46,0)) -> Current Exp | E26: =INDEX(Builder!$E$3:$E$46,MATCH(A26,Builder!$A$3:$A$46,0)) -> Other | F26: 0 | G26: 0 | H26: 0 | I26: 0 | J26: 0 | K26: 0 | L26: 104 | M26: 293 | N26: 0 | O26: 0 | P26: 14 | Q26: 0
A27: 76000 | B27: Repairs and Maintenance | C27: 維修/保養費 | D27: =INDEX(Builder!$D$3:$D$46,MATCH(A27,Builder!$A$3:$A$46,0)) -> Overhead | E27: =INDEX(Builder!$E$3:$E$46,MATCH(A27,Builder!$A$3:$A$46,0)) -> Other | F27: 2000 | G27: 2000 | H27: 2000 | I27: 22450 | J27: 18800 | K27: 5196 | L27: 10430 | M27: 5125 | N27: 5125 | O27: 5921 | P27: 5625 | Q27: 5125
A28: 77000 | B28: Utilities | C28: 水/電/ 煤氣 | D28: =INDEX(Builder!$D$3:$D$46,MATCH(A28,Builder!$A$3:$A$46,0)) -> Overhead | E28: =INDEX(Builder!$E$3:$E$46,MATCH(A28,Builder!$A$3:$A$46,0)) -> Utilities | F28: 21609 | G28: 22746.2 | H28: 19760 | I28: 28286 | J28: 29546 | K28: 35053.2 | L28: 36920 | M28: 38434 | N28: 38516 | O28: 36077.5 | P28: 34348 | Q28: 33073
A29: 77500 | B29: Telephone & internet | C29: 電話/網絡費 | D29: =INDEX(Builder!$D$3:$D$46,MATCH(A29,Builder!$A$3:$A$46,0)) -> Overhead | E29: =INDEX(Builder!$E$3:$E$46,MATCH(A29,Builder!$A$3:$A$46,0)) -> Other | F29: 0 | G29: 0 | H29: 1518 | I29: 0 | J29: 1518 | K29: 0 | L29: 0 | M29: 1518 | N29: 0 | O29: 0 | P29: 1518 | Q29: 0
A30: 77600 | B30: Courier and Postage | C30: 速遞及郵費 | D30: =INDEX(Builder!$D$3:$D$46,MATCH(A30,Builder!$A$3:$A$46,0)) -> Non-recurrent Exp | E30: =INDEX(Builder!$E$3:$E$46,MATCH(A30,Builder!$A$3:$A$46,0)) -> Other | F30: 0 | G30: 0 | H30: 0 | I30: 0 | J30: 0 | K30: 0 | L30: 0 | M30: 0 | N30: 0 | O30: 0 | P30: 0 | Q30: 0
A31: 78200 | B31: Bank fees | C31: 銀行費 | D31: =INDEX(Builder!$D$3:$D$46,MATCH(A31,Builder!$A$3:$A$46,0)) -> Non-recurrent Exp | E31: =INDEX(Builder!$E$3:$E$46,MATCH(A31,Builder!$A$3:$A$46,0)) -> Other | F31: 0 | G31: 0 | H31: 0 | I31: 0 | J31: 0 | K31: 0 | L31: 0 | M31: 0 | N31: 0 | O31: 0 | P31: 0 | Q31: 0
A32: 99100 | B32: Card Commission - Visa | C32: 信用咭佣金費-visa | D32: =INDEX(Builder!$D$3:$D$46,MATCH(A32,Builder!$A$3:$A$46,0)) -> Current Exp | E32: =INDEX(Builder!$E$3:$E$46,MATCH(A32,Builder!$A$3:$A$46,0)) -> Other | F32: 84.98 | G32: 303.49 | H32: 167.01 | I32: 222.79 | J32: 335.16 | K32: 4.41 | L32: 222.75 | M32: 209.69 | N32: 178.16 | O32: 144.63 | P32: 283.06 | Q32: 305.36
A33: 99105 | B33: Card Commission - Master | C33: 信用咭佣金費-master | D33: =INDEX(Builder!$D$3:$D$46,MATCH(A33,Builder!$A$3:$A$46,0)) -> Current Exp | E33: =INDEX(Builder!$E$3:$E$46,MATCH(A33,Builder!$A$3:$A$46,0)) -> Other | F33: 170.09 | G33: 89.4 | H33: 117.2 | I33: 200.55 | J33: 71.93 | K33: 156.19 | L33: 112.28 | M33: 171.39 | N33: 166.97 | O33: 96.26 | P33: 152.63 | Q33: 179.24
A34: 99110 | B34: Card Commission - Union Pay | C34: 信用咭佣金費-銀聯 | D34: =INDEX(Builder!$D$3:$D$46,MATCH(A34,Builder!$A$3:$A$46,0)) -> Current Exp | E34: =INDEX(Builder!$E$3:$E$46,MATCH(A34,Builder!$A$3:$A$46,0)) -> Other | F34: 55.42 | G34: 33.11 | H34: 49.31 | I34: 48.93 | J34: 40.86 | K34: 0 | L34: 73.41 | M34: 64.87 | N34: 154.22 | O34: 64.69 | P34: 61.38 | Q34: 263.39
A35: 99115 | B35: Card Commission - Octopus | C35: 信用咭佣金費-八達通 | D35: =INDEX(Builder!$D$3:$D$46,MATCH(A35,Builder!$A$3:$A$46,0)) -> Current Exp | E35: =INDEX(Builder!$E$3:$E$46,MATCH(A35,Builder!$A$3:$A$46,0)) -> Other | F35: 651.66 | G35: 741.74 | H35: 1011.58 | I35: 922.47 | J35: 694.51 | K35: 25.21 | L35: 1101.45 | M35: 1700.65 | N35: 1477.19 | O35: 1503.07 | P35: 1677.31 | Q35: 1788.17
A36: 99120 | B36: Card Commission Alipay | C36: 信用咭佣金費-支付寶 | D36: =INDEX(Builder!$D$3:$D$46,MATCH(A36,Builder!$A$3:$A$46,0)) -> Current Exp | E36: =INDEX(Builder!$E$3:$E$46,MATCH(A36,Builder!$A$3:$A$46,0)) -> Other | F36: 165.05 | G36: 86.16 | H36: 237.23 | I36: 160.47 | J36: 178.19 | K36: 11.09 | L36: 241.82 | M36: 439.85 | N36: 372.51 | O36: 565.26 | P36: 483.59 | Q36: 253.49
A37: 99125 | B37: Card Commission Wechat | C37: 信用咭佣金費-微信 | D37: =INDEX(Builder!$D$3:$D$46,MATCH(A37,Builder!$A$3:$A$46,0)) -> Current Exp | E37: =INDEX(Builder!$E$3:$E$46,MATCH(A37,Builder!$A$3:$A$46,0)) -> Other | F37: 0 | G37: 0 | H37: 0 | I37: 0 | J37: 0 | K37: 0 | L37: 0 | M37: 0 | N37: 0 | O37: 0 | P37: 2.04 | Q37: 48.96
A38: 99130 | B38: Deliveroo Charges | C38: 外賣餐佣金費-戶戶送 | D38: =INDEX(Builder!$D$3:$D$46,MATCH(A38,Builder!$A$3:$A$46,0)) -> Current Exp | E38: =INDEX(Builder!$E$3:$E$46,MATCH(A38,Builder!$A$3:$A$46,0)) -> Other | F38: 0 | G38: 0 | H38: 0 | I38: 0 | J38: 0 | K38: 0 | L38: 0 | M38: 0 | N38: 0 | O38: 0 | P38: 0 | Q38: 0
A39: 99135 | B39: Foodpanda Charge | C39: 外賣餐佣金費-熊貓 | D39: =INDEX(Builder!$D$3:$D$46,MATCH(A39,Builder!$A$3:$A$46,0)) -> Current Exp | E39: =INDEX(Builder!$E$3:$E$46,MATCH(A39,Builder!$A$3:$A$46,0)) -> Other | F39: 824.32 | G39: 747.5 | H39: 589.04 | I39: 577.9 | J39: 696.45 | K39: 0 | L39: 752.98 | M39: 342.53 | N39: 463.11 | O39: 385 | P39: 1319.94 | Q39: 855.59
A40: 99140 | B40: UberEat Charges | C40: 外賣餐佣金費-Ubereats | D40: =INDEX(Builder!$D$3:$D$46,MATCH(A40,Builder!$A$3:$A$46,0)) -> Current Exp | E40: =INDEX(Builder!$E$3:$E$46,MATCH(A40,Builder!$A$3:$A$46,0)) -> Other | F40: 79.36 | G40: 0 | H40: 53.76 | I40: 0 | J40: 0 | K40: 0 | L40: 0 | M40: 139.52 | N40: 0 | O40: 0 | P40: 0 | Q40: 0
A41: 78300 | B41: Insurance | C41: 保險費 | D41: =INDEX(Builder!$D$3:$D$46,MATCH(A41,Builder!$A$3:$A$46,0)) -> Non-recurrent Exp | E41: =INDEX(Builder!$E$3:$E$46,MATCH(A41,Builder!$A$3:$A$46,0)) -> Other | F41: 0 | G41: 0 | H41: 0 | I41: 34914.92 | J41: 0 | K41: 0 | L41: 0 | M41: 0 | N41: 0 | O41: 0 | P41: 0 | Q41: 0
A42: 78500 | B42: Professional fees | C42: 專業項目費 | D42: =INDEX(Builder!$D$3:$D$46,MATCH(A42,Builder!$A$3:$A$46,0)) -> Non-recurrent Exp | E42: =INDEX(Builder!$E$3:$E$46,MATCH(A42,Builder!$A$3:$A$46,0)) -> Other | F42: 0 | G42: 0 | H42: 0 | I42: 0 | J42: 0 | K42: 0 | L42: 0 | M42: 0 | N42: 0 | O42: 0 | P42: 0 | Q42: 0
A43: 78600 | B43: Stationery | C43: 文具 | D43: =INDEX(Builder!$D$3:$D$46,MATCH(A43,Builder!$A$3:$A$46,0)) -> Non-recurrent Exp | E43: =INDEX(Builder!$E$3:$E$46,MATCH(A43,Builder!$A$3:$A$46,0)) -> Other | F43: 652 | G43: 20 | H43: 0 | I43: 196 | J43: 0 | K43: 432 | L43: 0 | M43: 0 | N43: 85 | O43: 60 | P43: 0 | Q43: 1130
A44: 81000 | B44: Rent and Occupancy costs | C44: 租金及差餉費 | D44: =INDEX(Builder!$D$3:$D$46,MATCH(A44,Builder!$A$3:$A$46,0)) -> Overhead | E44: =INDEX(Builder!$E$3:$E$46,MATCH(A44,Builder!$A$3:$A$46,0)) -> Rent | F44: 53450 | G44: 53450 | H44: 53450 | I44: 53450 | J44: 53450 | K44: 53450 | L44: 40000 | M44: 53450 | N44: 53450 | O44: 53450 | P44: 53450 | Q44: 53450
A45: 87000 | B45: Depreciation & Amortization | C45: 裝修折舊費/攤銷費 | D45: =INDEX(Builder!$D$3:$D$46,MATCH(A45,Builder!$A$3:$A$46,0)) -> Non-recurrent Exp | E45: =INDEX(Builder!$E$3:$E$46,MATCH(A45,Builder!$A$3:$A$46,0)) -> Other | F45: 63633.51 | G45: 63633.51 | H45: 63633.51 | I45: 66907.34 | J45: 66907.34 | K45: 66907.34 | L45: 66907.34 | M45: 66907.34 | N45: 66907.34 | O45: 66907.34 | P45: 66907.34 | Q45: 66907.34
A46: 89000 | B46: Other expense | C46: 雜項支出 | D46: =INDEX(Builder!$D$3:$D$46,MATCH(A46,Builder!$A$3:$A$46,0)) -> Current Exp | E46: =INDEX(Builder!$E$3:$E$46,MATCH(A46,Builder!$A$3:$A$46,0)) -> Other | F46: 0 | G46: 0 | H46: 0 | I46: 0 | J46: 0 | K46: 0 | L46: 0 | M46: 0 | N46: 0 | O46: 0 | P46: 0 | Q46: 0

Sheet AccSource
A5: 真實 | H5: 2021-12-01
C7: 00 - 品味 | E7: 01 - 和味 | H7: 合共
A8: Revenues | B8: 收入
A9: Sales Revenue | B9: 營業收入 | C9: 980978 | E9: 439504 | H9: =C9+E9 -> 1420482
A10: Other Operating Income | B10: 其他營運收入
A11: Interest Income | B11: 利息收入 | C11: 0.01 | E11: 0 | H11: 0.01
A13: Total Revenues | B13: 總收入 | C13: =C9+C11 -> 980978.01 | E13: =E9+E11 -> 439504 | H13: =H9+H11 -> 1420482.01
A15: Cost of Sales | B15: 營業成本
A16: Food Cost | B16: 食材成本 | C16: 261603.67 | E16: 194310.83 | H16: =C16+E16 -> 455914.5
A17: Beverage Cost | B17: 無酒精飲料成本 | C17: 15733.6 | E17: 5928.4 | H17: =C17+E17 -> 21662
A18: Liquor Cost | B18: 烈酒成本 | C18: 0 | E18: 0 | H18: 0
A19: Beer Cost | B19: 啤酒成本 | C19: 0 | E19: 3910 | H19: 3910
A20: Wine Cost | B20: 餐酒(紅/白)成本 | C20: 0 | E20: 99 | H20: 99
A21: Total Cost of Sales | B21: 總營業成本 | C21: =SUM(C16:C20) -> 277337.27 | E21: =SUM(E16:E20) -> 204248.23 | H21: =SUM(C21+E21) -> 481585.5
A23: Gross Profit | B23: 總盈利 | C23: =SUM(C13-C21) -> 703640.74 | E23: =SUM(E13-E21) -> 235255.77 | H23: =C23+E23 -> 938896.51
A25: Expenses | B25: 支出費用
A26: Staff Wages | B26: 合約僱員 | C26: 194527 | E26: 152520 | H26: =SUM(C26+E26) -> 347047
A27: Contract Labor | B27: 兼職 | C27: 35525 | E27: 0 | H27: 35525
A28: Employers MPF - Staff | B28: 強積金-合約僱員 | C28: 9873.65 | E28: 6040 | H28: =SUM(C28+E28) -> 15913.65
A29: Management / Consultancy Fee | B29: 管理/顧問費 | C29: 15000 | E29: 0 | H29: 15000
A30: Staff Messing | B30: 員工福利 | C30: 475 | E30: 0 | H30: 475
A31: China - Glassware - Flatware | B31: 瓷器,碗碟 | C31: 5808.4 | E31: 1923.6 | H31: =SUM(C31+E31) -> 7732
A32: Restaurant & Kitchen Supply | B32: 餐館/廚房供應 | C32: 9697 | E32: 1833 | H32: =C32+E32 -> 11530
A33: Cleaning Supply & Expense | B33: 清潔用品開支/清潔費 | C33: 9570.2 | E33: 3287.8 | H33: =C33+E33 -> 12858
A34: Decorations & Guest Supply | B34: 裝飾費 | C34: 0 | E34: 0 | H34: 0
A35: Laundry - Linen - Uniforms | B35: 乾濕洗衣/員工制服 | C35: 0 | E35: 1722 | H35: 1722
A36: Fees - Permits - Licenses | B36: 牌照 | C36: 0 | E36: 0 | H36: 0
A37: Pest - Security - Others | B37: 滅蟲 | C37: 0 | E37: 0 | H37: 0
A38: POS - Tech - Online | B38: 餐飲系統/科技/上網費 | C38: 0 | E38: 0 | H38: 0
A39: Marketing | B39: 市場費用 | C39: 0 | E39: 0 | H39: 0
A40: Media & Print advertising | B40: 媒體及印刷宣傳費 | C40: 468 | E40: 312 | H40: =C40+E40 -> 780
A41: Travelling | B41: 交通費 | C41: 299 | E41: 0 | H41: 299
A42: Repairs and Maintenance | B42: 維修/保養費 | C42: 4850 | E42: 5125 | H42: =C42+E42 -> 9975
A43: Utilities | B43: 水/電/ 煤氣 | C43: 45968 | E43: 33073 | H43: =C43+E43 -> 79041
A44: Telephone & internet | B44: 電話/網絡費 | C44: 1728 | E44: 0 | H44: 1728
A45: Courier and Postage | B45: 速遞及郵費 | C45: 100 | E45: 0 | H45: 100
A46: Bank fees | B46: 銀行費 | C46: 0 | E46: 0 | H46: 0
A47: Card Commission - Visa | B47: 信用咭佣金費-visa | C47: 369.99 | E47: 305.36 | H47: =C47+E47 -> 675.35
A48: Card Commission - Master | B48: 信用咭佣金費-master | C48: 222.97 | E48: 179.24 | H48: 402.21
A49: Card Commission - Union Pay | B49: 信用咭佣金費-銀聯 | C49: 80.65 | E49: 263.39 | H49: 344.04
A50: Card Commission - Octopus | B50: 信用咭佣金費-八達通 | C50: 4058.23 | E50: 1788.17 | H50: 5846.4
A51: Card Commission Alipay | B51: 信用咭佣金費-支付寶 | C51: 450.79 | E51: 253.49 | H51: 704.28
A52: Card Commission Wechat | B52: 信用咭佣金費-微信 | C52: 142.24 | E52: 48.96 | H52: 191.2
A53: Deliveroo Charges | B53: 外賣餐佣金費-戶戶送 | C53: 308.2 | E53: 0 | H53: 308.2
A54: Foodpanda Charge | B54: 外賣餐佣金費-熊貓 | C54: 557.15 | E54: 855.59 | H54: 1412.74
A55: UberEat Charges | B55: 外賣餐佣金費-Ubereats | C55: 0 | E55: 0 | H55: 0
A56: Insurance | B56: 保險費 | C56: 0 | E56: 0 | H56: 0
A57: Professional fees | B57: 專業項目費 | C57: 0 | E57: 0 | H57: 0
A58: Stationery | B58: 文具 | C58: 1815 | E58: 1130 | H58: 2945
A59: Rent and Occupancy costs | B59: 租金及差餉費 | C59: 104000 | E59: 53450 | H59: 157450
A60: Depreciation & Amortization | B60: 裝修折舊費/攤銷費 | C60: 5691.79 | E60: 66907.34 | H60: 72599.13
A61: Other expense | B61: 雜項支出 | C61: 0 | E61: 0 | H61: 0
A63: Total Expenses | B63: 總消費支出 | C63: =SUM(C26:C60) -> 451586.26 | E63: =SUM(E26:E60) -> 331017.94 | H63: =C63+E63 -> 782604.2
A65: Net Income | B65: 淨收入 | C65: =SUM(C23-C63) -> 252054.48 | E65: =SUM(E23-E63) -> -95762.17 | H65: =SUM(C65+E65) -> 156292.31

Sheet Builder
A2: Seq | B2: eName | C2: cName | D2: AccType | E2: Topice
A3: 40000 | B3: Sales Revenue | C3: 營業收入 | D3: Direct Income | E3: Income
A4: 47000 | B4: Other Operating Income | C4: 其他營運收入 | D4: Indirect Income | E4: Income
A5: 47010 | B5: Interest Income | C5: 利息收入 | D5: Indirect Income | E5: Income
A6: 52000 | B6: Food Cost | C6: 食材成本 | D6: Direct Material | E6: Food Cost
A7: 53200 | B7: Beverage Cost | C7: 無酒精飲料成本 | D7: Direct Material | E7: Food Cost
A8: 53300 | B8: Liquor Cost | C8: 烈酒成本 | D8: Direct Material | E8: Food Cost
A9: 53400 | B9: Beer Cost | C9: 啤酒成本 | D9: Direct Material | E9: Food Cost
A10: 53500 | B10: Wine Cost | C10: 餐酒(紅/白)成本 | D10: Direct Material | E10: Food Cost
A11: 62000 | B11: Staff Wages | C11: 合約僱員 | D11: Direct Labour | E11: Labour
A12: 63000 | B12: Contract Labor | C12: 兼職 | D12: Direct Labour | E12: Labour
A13: 67000 | B13: Employers MPF - Staff | C13: 強積金-合約僱員 | D13: Direct Labour | E13: Labour
A14: 68000 | B14: Management / Consultancy Fee | C14: 管理/顧問費 | D14: Direct Labour | E14: Labour
A15: 69000 | B15: Staff Messing | C15: 員工福利 | D15: Direct Labour | E15: Labour
A16: 71100 | B16: China - Glassware - Flatware | C16: 瓷器,碗碟 | D16: Current Exp | E16: Other
A17: 71200 | B17: Restaurant & Kitchen Supply | C17: 餐館/廚房供應 | D17: Current Exp | E17: Other
A18: 71300 | B18: Cleaning Supply & Expense | C18: 清潔用品開支/清潔費 | D18: Current Exp | E18: Other
A19: 71400 | B19: Decorations & Guest Supply | C19: 裝飾費 | D19: Non-recurrent Exp | E19: Other
A20: 71500 | B20: Laundry - Linen - Uniforms | C20: 乾濕洗衣/員工制服 | D20: Current Exp | E20: Other
A21: 71600 | B21: Fees - Permits - Licenses | C21: 牌照 | D21: Current Exp | E21: Other
A22: 72000 | B22: Pest - Security - Others | C22: 滅蟲 | D22: Non-recurrent Exp | E22: Other
A23: 72500 | B23: POS - Tech - Online | C23: 餐飲系統/科技/上網費 | D23: Current Exp | E23: Other
A24: 73000 | B24: Marketing | C24: 市場費用 | D24: Non-recurrent Exp | E24: Other
A25: 73100 | B25: Media & Print advertising | C25: 媒體及印刷宣傳費 | D25: Current Exp | E25: Other
A26: 74000 | B26: Travelling | C26: 交通費 | D26: Current Exp | E26: Other
A27: 76000 | B27: Repairs and Maintenance | C27: 維修/保養費 | D27: Overhead | E27: Other
A28: 77000 | B28: Utilities | C28: 水/電/ 煤氣 | D28: Overhead | E28: Utilities
A29: 77500 | B29: Telephone & internet | C29: 電話/網絡費 | D29: Overhead | E29: Other
A30: 77600 | B30: Courier and Postage | C30: 速遞及郵費 | D30: Non-recurrent Exp | E30: Other
A31: 78200 | B31: Bank fees | C31: 銀行費 | D31: Non-recurrent Exp | E31: Other
A32: 99100 | B32: Card Commission - Visa | C32: 信用咭佣金費-visa | D32: Current Exp | E32: Other
A33: 99105 | B33: Card Commission - Master | C33: 信用咭佣金費-master | D33: Current Exp | E33: Other
A34: 99110 | B34: Card Commission - Union Pay | C34: 信用咭佣金費-銀聯 | D34: Current Exp | E34: Other
A35: 99115 | B35: Card Commission - Octopus | C35: 信用咭佣金費-八達通 | D35: Current Exp | E35: Other
A36: 99120 | B36: Card Commission Alipay | C36: 信用咭佣金費-支付寶 | D36: Current Exp | E36: Other
A37: 99125 | B37: Card Commission Wechat | C37: 信用咭佣金費-微信 | D37: Current Exp | E37: Other
A38: 99130 | B38: Deliveroo Charges | C38: 外賣餐佣金費-戶戶送 | D38: Current Exp | E38: Other
A39: 99135 | B39: Foodpanda Charge | C39: 外賣餐佣金費-熊貓 | D39: Current Exp | E39: Other
A40: 99140 | B40: UberEat Charges | C40: 外賣餐佣金費-Ubereats | D40: Current Exp | E40: Other
A41: 78300 | B41: Insurance | C41: 保險費 | D41: Non-recurrent Exp | E41: Other
A42: 78500 | B42: Professional fees | C42: 專業項目費 | D42: Non-recurrent Exp | E42: Other
A43: 78600 | B43: Stationery | C43: 文具 | D43: Non-recurrent Exp | E43: Other
A44: 81000 | B44: Rent and Occupancy costs | C44: 租金及差餉費 | D44: Overhead | E44: Rent
A45: 87000 | B45: Depreciation & Amortization | C45: 裝修折舊費/攤銷費 | D45: Non-recurrent Exp | E45: Other
A46: 89000 | B46: Other expense | C46: 雜項支出 | D46: Current Exp | E46: Other

Sheet Master
B3: AccType | C3: GeneralBudget | D3: BusinessBudget | E3: Topice | F3: ChuBudget | G3: selMonth | H3: AccTypeSelect | I3: Company
B4: Direct Income | E4: Food Cost | G4: JAN | H4: Standard | I4: V&B
B5: Indirect Income | E5: Labour | F5: 0.25 | G5: FEB | H5: Visual | I5: WOW
B6: Overhead | C6: 0.25 | D6: 0.3 | E6: Utilities | F6: 0.25 | G6: MAR | H6: Both | I6: Both
B7: Direct Material | C7: 0.3 | D7: 0.37 | E7: Rent | F7: 0.05 | G7: APR
B8: Indirect Material | E8: Other | G8: MAY
B9: Direct Labour | C9: 0.3 | D9: 0.33 | E9: Overhead | F9: 0.2 | G9: JUN
B10: Indirect Labour | G10: JUL
B11: Current Exp | C11: 0.15 | G11: AUG
B12: Non-recurrent Exp | G12: SEP
G13: OCT
C14: =SUM(C4:C12) -> 1 | G14: NOV
G15: DEC
